Workbook

Sheet Menu
F2: This file contains the excel tables of the rates contained in the published Schedule fo Standard Prices for Eskom tariffs.
F4: 2015/16 SCHEDULE OF STANDARD PRICES FOR ESKOM TARIFFS 1 April 2015 to 31 March 2016 for Non-Local Authority supplies, and 1 July 2015 to 30 June 2016 for Local Authority supplies.
H6: Click on the arrow to select the tariff
H7: Non-local authority | J7: Local Authority
F8: ê | G8: WEPS | H8: u | J8: u
F9: ê | G9: Megaflex | H9: u | J9: u
F10: ê | G10: Nightsave large Urban | H10: u | J10: u
F11: ê | G11: Miniflex | H11: u | J11: u
F12: ê | G12: Nightsave small | H12: u | J12: u
F13: ê | G13: Businessrate | H13: u | J13: u
F14: ê | G14: Transflex 1 | H14: u | J14: n/a
F15: ê | G15: Transflex 2 | H15: u | J15: n/a
F16: ê | G16: Public lighting | H16: u | J16: u
F17: ê | G17: Ruraflex | H17: u | J17: u
F18: ê | G18: Nightsave rural | H18: u | J18: u
F19: ê | G19: Landrate tariffs | H19: u | J19: u
F20: ê | G20: Homepower tariffs | H20: u | J20: u
F21: ê | G21: Homelight tariffs | H21: u | J21: n/a
F22: ê | G22: Excess NAC charges | H22: u | J22: u
F23: ê | G23: Loss factors | H23: u | J23: u
F24: ê | G24: Transmission use of system charges | H24: u | J24: n/a
F25: ê | G25: Distribution use of system charges | H25: u | J25: n/a
F26: ê | G26: Genflex Urban | H26: u | J26: n/a
F27: ê | G27: Genflex Rural | H27: u | J27: n/a
F28: ê | G28: Muniflex Urban | H28: n/a | J28: u
F29: ê | G29: Muniflex Rural | H29: n/a | J29: u
F30: ê | G30: Homeflex | H30: u | J30: n/a
F31: ê | G31: Miniflex CPDP | H31: u | I31: u | J31: n/a
F32: ê | G32: Nightsave Small CPDP | H32: u | I32: u | J32: n/a
F33: ê | G33: Ruraflex CPDP | H33: u | I33: u | J33: n/a
F34: ê | G34: Nightsave Rural CPDP | H34: u | I34: u | J34: n/a

Sheet WEPS inc
G1: Back to menu
A2: Non-municipal | G2: WEPS | R2: Non-local authority
J4: Active energy charge [c/kWh] | V4: Transmission network charges [R/kVA/m]
H5: Transmission zone | J5: High demand season [Jun - Aug] | P5: Low demand season [Sep - May]
I6: Voltage | J6: Peak | L6: Standard | N6: Off Peak | P6: Peak | R6: Standard | T6: Off Peak
A7: Tariff | B7: Tariff nameBillcode | C7: Tx zone | D7: Voltage | E7: Billcode | K7: VAT incl | M7: VAT incl | O7: VAT incl | Q7: VAT incl | S7: VAT incl | U7: VAT incl | W7: VAT incl
A8: WEPS | B8: We | C8: 0 | D8: 1 | E8: =B8&C8&D8&IF($A$2="Non-municipal","N",IF($A$2="Municiple","Y","error")) -> We01N | H8: ≤ 300km | I8: < 500V | J8: 248.94 | K8: =ROUND(J8 * (1 + VAT), 2) -> 283.79 | L8: 75.74 | M8: =ROUND(L8 * (1 + VAT), 2) -> 86.34 | N8: 41.35 | O8: =ROUND(N8 * (1 + VAT), 2) -> 47.14 | P8: 81.52 | Q8: =ROUND(P8 * (1 + VAT), 2) -> 92.93 | R8: 56.25 | S8: =ROUND(R8 * (1 + VAT), 2) -> 64.13 | T8: 35.86 | U8: =ROUND(T8 * (1 + VAT), 2) -> 40.88 | V8: 7.12 | W8: =ROUND(V8 * (1 + VAT), 2) -> 8.12
A9: WEPS | B9: We | C9: 0 | D9: 2 | E9: We02N | I9: ≥ 500V & < 66kV | J9: 245.03 | K9: =ROUND(J9 * (1 + VAT), 2) -> 279.33 | L9: 74.23 | M9: 84.62 | N9: 40.31 | O9: 45.95 | P9: 79.93 | Q9: 91.12 | R9: 55.02 | S9: 62.72 | T9: 34.9 | U9: 39.79 | V9: 6.51 | W9: 7.42
A10: WEPS | B10: We | C10: 0 | D10: 3 | E10: We03N | I10: ≥ 66kV & ≤ 132kV | J10: 237.28 | K10: 270.5 | L10: 71.87 | M10: 81.93 | N10: 39.04 | O10: 44.51 | P10: 77.41 | Q10: 88.25 | R10: 53.27 | S10: 60.73 | T10: 33.8 | U10: 38.53 | V10: 6.34 | W10: 7.23
A11: WEPS | B11: We | C11: 0 | D11: 4 | E11: We04N | I11: > 132kV* | J11: 223.63 | K11: 254.94 | L11: 67.74 | M11: 77.22 | N11: 36.79 | O11: 41.94 | P11: 72.96 | Q11: 83.17 | R11: 50.2 | S11: 57.23 | T11: 31.86 | U11: 36.32 | V11: 8.01 | W11: 9.13
A12: WEPS | B12: We | C12: 1 | D12: 1 | E12: We11N | H12: > 300km and ≤ 600km | I12: < 500V | J12: 250.97 | K12: 286.11 | L12: 76.04 | M12: 86.69 | N12: 41.29 | O12: 47.07 | P12: 81.87 | Q12: 93.33 | R12: 56.36 | S12: 64.25 | T12: 35.76 | U12: 40.77 | V12: 7.18 | W12: 8.19
A13: WEPS | B13: We | C13: 1 | D13: 2 | E13: We12N | I13: ≥ 500V & < 66kV | J13: 247.48 | K13: 282.13 | L13: 74.97 | M13: 85.47 | N13: 40.71 | O13: 46.41 | P13: 80.74 | Q13: 92.04 | R13: 55.56 | S13: 63.34 | T13: 35.25 | U13: 40.19 | V13: 6.57 | W13: 7.49
A14: WEPS | B14: We | C14: 1 | D14: 3 | E14: We13N | I14: ≥ 66kV & ≤ 132kV | J14: 239.61 | K14: 273.16 | L14: 72.58 | M14: 82.74 | N14: 39.41 | O14: 44.93 | P14: 78.16 | Q14: 89.1 | R14: 53.79 | S14: 61.32 | T14: 34.12 | U14: 38.9 | V14: 6.39 | W14: 7.28
A15: WEPS | B15: We | C15: 1 | D15: 4 | E15: We14N | I15: > 132kV* | J15: 225.86 | K15: 257.48 | L15: 68.43 | M15: 78.01 | N15: 37.14 | O15: 42.34 | P15: 73.67 | Q15: 83.98 | R15: 50.7 | S15: 57.8 | T15: 32.16 | U15: 36.66 | V15: 8.09 | W15: 9.22
A16: WEPS | B16: We | C16: 2 | D16: 1 | E16: We21N | H16: > 600km and ≤ 900km | I16: < 500V | J16: 253.47 | K16: 288.96 | L16: 76.78 | M16: 87.53 | N16: 41.68 | O16: 47.52 | P16: 82.69 | Q16: 94.27 | R16: 56.91 | S16: 64.88 | T16: 36.09 | U16: 41.14 | V16: 7.27 | W16: 8.29
A17: WEPS | B17: We | C17: 2 | D17: 2 | E17: We22N | I17: ≥ 500V & < 66kV | J17: 249.96 | K17: 284.95 | L17: 75.73 | M17: 86.33 | N17: 41.12 | O17: 46.88 | P17: 81.54 | Q17: 92.96 | R17: 56.12 | S17: 63.98 | T17: 35.6 | U17: 40.58 | V17: 6.63 | W17: 7.56
A18: WEPS | B18: We | C18: 2 | D18: 3 | E18: We23N | I18: ≥ 66kV & ≤ 132kV | J18: 242.05 | K18: 275.94 | L18: 73.33 | M18: 83.6 | N18: 39.81 | O18: 45.38 | P18: 78.95 | Q18: 90 | R18: 54.34 | S18: 61.95 | T18: 34.47 | U18: 39.3 | V18: 6.43 | W18: 7.33
A19: WEPS | B19: We | C19: 2 | D19: 4 | E19: We24N | I19: > 132kV* | J19: 228.14 | K19: 260.08 | L19: 69.1 | M19: 78.77 | N19: 37.54 | O19: 42.8 | P19: 74.42 | Q19: 84.84 | R19: 51.22 | S19: 58.39 | T19: 32.5 | U19: 37.05 | V19: 8.2 | W19: 9.35
A20: WEPS | B20: We | C20: 3 | D20: 1 | E20: We31N | H20: > 900km | I20: < 500V | J20: 256.02 | K20: 291.86 | L20: 77.58 | M20: 88.44 | N20: 42.12 | O20: 48.02 | P20: 83.53 | Q20: 95.22 | R20: 57.48 | S20: 65.53 | T20: 36.48 | U20: 41.59 | V20: 7.29 | W20: 8.31
A21: WEPS | B21: We | C21: 3 | D21: 2 | E21: We32N | I21: ≥ 500V & < 66kV | J21: 252.45 | K21: 287.79 | L21: 76.47 | M21: 87.18 | N21: 41.51 | O21: 47.32 | P21: 82.34 | Q21: 93.87 | R21: 56.66 | S21: 64.59 | T21: 35.95 | U21: 40.98 | V21: 6.71 | W21: 7.65
A22: WEPS | B22: We | C22: 3 | D22: 3 | E22: We33N | I22: ≥ 66kV & ≤ 132kV | J22: 244.48 | K22: 278.71 | L22: 74.06 | M22: 84.43 | N22: 40.21 | O22: 45.84 | P22: 79.74 | Q22: 90.9 | R22: 54.89 | S22: 62.57 | T22: 34.82 | U22: 39.69 | V22: 6.48 | W22: 7.39
A23: WEPS | B23: We | C23: 3 | D23: 4 | E23: We34N | I23: > 132kV* | J23: 230.37 | K23: 262.62 | L23: 69.82 | M23: 79.59 | N23: 37.93 | O23: 43.24 | P23: 75.19 | Q23: 85.72 | R23: 51.76 | S23: 59.01 | T23: 32.86 | U23: 37.46 | V23: 8.26 | W23: 9.42
I24: * 132 kV or Transmission connected
H25: Distribution network charges
J26: Network capacity charge [R/kVA/m] | L26: Network demand charge [R/kVA/m] | N26: Urban low voltage subsidy charge [R/kVA/m]
S27: Ancillary service charge [c/kWh]
A28: Tariff | B28: Tariff nameBillcode | C28: Tx zone | D28: Voltage | E28: Billcode | H28: Voltage | K28: VAT incl | M28: VAT incl | O28: VAT incl | Q28: Voltage | T28: VAT incl
A29: WEPS | B29: We | C29: 0 | D29: 1 | E29: We01N | H29: < 500V | J29: 14.15 | K29: =ROUND(J29 * (1 + VAT), 2) -> 16.13 | L29: 26.83 | M29: =ROUND(L29 * (1 + VAT), 2) -> 30.59 | N29: 0 | O29: =ROUND(N29 * (1 + VAT), 2) -> 0 | Q29: < 500V | S29: 0.33 | T29: =ROUND(S29 * (1 + VAT), 2) -> 0.38
A30: WEPS | B30: We | C30: 0 | D30: 2 | E30: We02N | H30: ≥ 500V & < 66kV | J30: 12.98 | K30: =ROUND(J30 * (1 + VAT), 2) -> 14.8 | L30: 24.62 | M30: =ROUND(L30 * (1 + VAT), 2) -> 28.07 | N30: 0 | O30: =ROUND(N30 * (1 + VAT), 2) -> 0 | Q30: ≥ 500V & < 66kV | S30: 0.32 | T30: =ROUND(S30 * (1 + VAT), 2) -> 0.36
A31: WEPS | B31: We | C31: 0 | D31: 3 | E31: We03N | H31: ≥ 66kV & ≤ 132kV | J31: 4.63 | K31: =ROUND(J31 * (1 + VAT), 2) -> 5.28 | L31: 8.58 | M31: =ROUND(L31 * (1 + VAT), 2) -> 9.78 | N31: 11.43 | O31: =ROUND(N31 * (1 + VAT), 2) -> 13.03 | Q31: ≥ 66kV & ≤ 132kV | S31: 0.3 | T31: =ROUND(S31 * (1 + VAT), 2) -> 0.34
A32: WEPS | B32: We | C32: 0 | D32: 4 | E32: We04N | H32: > 132kV / Transmission connected | J32: 0 | K32: =ROUND(J32 * (1 + VAT), 2) -> 0 | L32: 0 | M32: =ROUND(L32 * (1 + VAT), 2) -> 0 | N32: 11.43 | O32: =ROUND(N32 * (1 + VAT), 2) -> 13.03 | Q32: > 132kV / Transmission connected | S32: 0.28 | T32: =ROUND(S32 * (1 + VAT), 2) -> 0.32
H34: Customer categories | J34: Service charge [R/account/day] | L34: Administration charge [R/POD/day] | Q34: Reactive energy charge [c/kVArh]
A36: Tariff | B36: Tariff nameBillcode | C36: Tx zone | D36: Voltage | E36: Billcode | K36: VAT incl | M36: VAT incl | Q36: High season | S36: Low season
A37: WEPS | B37: We | C37: 0 | D37: 1 | E37: We01N | H37: ≤ 100 kVA | J37: 11.55 | K37: =ROUND(J37 * (1 + VAT), 2) -> 13.17 | L37: 2.54 | M37: =ROUND(L37 * (1 + VAT), 2) -> 2.9 | R37: VAT incl | T37: VAT incl
A38: WEPS | B38: We | C38: 0 | D38: 1 | E38: We01N | H38: > 100 kVA & ≤ 500 kVA | J38: 52.8 | K38: =ROUND(J38 * (1 + VAT), 2) -> 60.19 | L38: 14.8 | M38: =ROUND(L38 * (1 + VAT), 2) -> 16.87 | Q38: 11.44 | R38: =ROUND(Q38 * (1 + VAT), 2) -> 13.04 | S38: 0 | T38: =ROUND(S38 * (1 + VAT), 2) -> 0
A39: WEPS | B39: We | C39: 0 | D39: 1 | E39: We01N | H39: > 500 kVA & ≤ 1 MVA | J39: 162.48 | K39: =ROUND(J39 * (1 + VAT), 2) -> 185.23 | L39: 29.41 | M39: =ROUND(L39 * (1 + VAT), 2) -> 33.53
A40: WEPS | B40: We | C40: 0 | D40: 1 | E40: We01N | H40: > 1 MVA | J40: 162.48 | K40: =ROUND(J40 * (1 + VAT), 2) -> 185.23 | L40: 73.23 | M40: =ROUND(L40 * (1 + VAT), 2) -> 83.48
A41: WEPS | B41: We | C41: 0 | D41: 1 | E41: We01N | H41: Key customers | J41: 3183.88 | K41: =ROUND(J41 * (1 + VAT), 2) -> 3629.62 | L41: 101.68 | M41: =ROUND(L41 * (1 + VAT), 2) -> 115.92
H44: Electrification and rural network subsidy charge [c/kWh] | J44: Affordability subsidy charge [c/kWh] Only payable by non-local authority tariffs
H46: All seasons | J46: All seasons
A47: Tariff | B47: Tariff nameBillcode | C47: Tx zone | D47: Voltage | E47: Billcode | I47: VAT incl | K47: VAT incl
A48: WEPS | B48: We | C48: 0 | D48: 1 | E48: We01N | H48: 6.33 | I48: =ROUND(H48 * (1 + VAT), 2) -> 7.22 | J48: 2.44 | K48: =ROUND(J48 * (1 + VAT), 2) -> 2.78
H51: Active energy charge excluding losses [c/kWh]
H52: High demand season [Jun - Aug] | N52: Low demand season [Sep - May]
H53: Peak | J53: Standard | L53: Off Peak | N53: Peak | P53: Standard | R53: Off Peak
A54: Tariff | B54: Tariff nameBillcode | C54: Tx zone | D54: Voltage | E54: Billcode | I54: VAT incl | K54: VAT incl | M54: VAT incl | O54: VAT incl | Q54: VAT incl | S54: VAT incl
A55: WEPS | B55: We | C55: 0 | D55: 1 | E55: We01N | H55: =ROUND(J11/'Loss Factors'!$T$6, 2) -> 221.26 | I55: =ROUND(H55 * (1 + VAT), 2) -> 252.24 | J55: =ROUND(L11/'Loss Factors'!$T$6, 2) -> 67.02 | K55: =ROUND(J55 * (1 + VAT), 2) -> 76.4 | L55: =ROUND(N11/'Loss Factors'!$T$6, 2) -> 36.4 | M55: =ROUND(L55 * (1 + VAT), 2) -> 41.5 | N55: =ROUND(P11/'Loss Factors'!$T$6, 2) -> 72.19 | O55: =ROUND(N55 * (1 + VAT), 2) -> 82.3 | P55: =ROUND(R11/'Loss Factors'!$T$6, 2) -> 49.67 | Q55: =ROUND(P55 * (1 + VAT), 2) -> 56.62 | R55: =ROUND(T11/'Loss Factors'!$T$6, 2) -> 31.52 | S55: =ROUND(R55 * (1 + VAT), 2) -> 35.93
H57: Active energy charge excluding losses and enviromental levy [c/kWh]
H58: High demand season [Jun - Aug] | N58: Low demand season [Sep - May]
H59: Peak | J59: Standard | L59: Off Peak | N59: Peak | P59: Standard | R59: Off Peak
A60: Tariff | B60: Tariff nameBillcode | C60: Tx zone | D60: Voltage | E60: Billcode | I60: VAT incl | K60: VAT incl | M60: VAT incl | O60: VAT incl | Q60: VAT incl | S60: VAT incl
A61: WEPS | B61: We | C61: 0 | D61: 1 | E61: We01N | H61: =H55-ROUND('Env levy'!$C$8,2) -> 217.77 | I61: =ROUND(H61 * (1 + VAT), 2) -> 248.26 | J61: =J55-ROUND('Env levy'!$C$8,2) -> 63.53 | K61: =ROUND(J61 * (1 + VAT), 2) -> 72.42 | L61: =L55-ROUND('Env levy'!$C$8,2) -> 32.91 | M61: =ROUND(L61 * (1 + VAT), 2) -> 37.52 | N61: =N55-ROUND('Env levy'!$C$8,2) -> 68.7 | O61: =ROUND(N61 * (1 + VAT), 2) -> 78.32 | P61: =P55-ROUND('Env levy'!$C$8,2) -> 46.18 | Q61: =ROUND(P61 * (1 + VAT), 2) -> 52.65 | R61: =R55-ROUND('Env levy'!$C$8,2) -> 28.03 | S61: =ROUND(R61 * (1 + VAT), 2) -> 31.95

Sheet WEPS Munic inc
G1: Back to menu
A2: Municiple | G2: WEPS | R2: Local authority
J4: Active energy charge [c/kWh] | V4: Transmission network charges [R/kVA/m]
H5: Transmission zone | J5: High demand season [Jun - Aug] | P5: Low demand season [Sep - May]
I6: Voltage | J6: Peak | L6: Standard | N6: Off Peak | P6: Peak | R6: Standard | T6: Off Peak
A7: Tariff | B7: Tariff nameBillcode | C7: Tx zone | D7: Voltage | E7: Billcode | K7: VAT incl | M7: VAT incl | O7: VAT incl | Q7: VAT incl | S7: VAT incl | U7: VAT incl | W7: VAT incl
A8: WEPS | B8: We | C8: 0 | D8: 1 | E8: =B8&C8&D8&IF($A$2="Non-municipal","N",IF($A$2="Municiple","Y","error")) -> We01Y | H8: ≤ 300km | I8: < 500V | J8: 258.53 | K8: =ROUND(J8 * (1 + VAT), 2) -> 294.72 | L8: 78.67 | M8: =ROUND(L8 * (1 + VAT), 2) -> 89.68 | N8: 42.93 | O8: =ROUND(N8 * (1 + VAT), 2) -> 48.94 | P8: 84.65 | Q8: =ROUND(P8 * (1 + VAT), 2) -> 96.5 | R8: 58.41 | S8: =ROUND(R8 * (1 + VAT), 2) -> 66.59 | T8: 37.23 | U8: =ROUND(T8 * (1 + VAT), 2) -> 42.44 | V8: 7.2 | W8: =ROUND(V8 * (1 + VAT), 2) -> 8.21
A9: WEPS | B9: We | C9: 0 | D9: 2 | E9: =B9&C9&D9&IF($A$2="Non-municipal","N",IF($A$2="Municiple","Y","error")) -> We02Y | I9: ≥ 500V & < 66kV | J9: 254.45 | K9: 290.07 | L9: 77.09 | M9: 87.88 | N9: 41.86 | O9: 47.72 | P9: 83.01 | Q9: 94.63 | R9: 57.13 | S9: 65.13 | T9: 36.25 | U9: 41.33 | V9: 6.57 | W9: 7.49
A10: WEPS | B10: We | C10: 0 | D10: 3 | E10: We03Y | I10: ≥ 66kV & ≤ 132kV | J10: 246.42 | K10: 280.92 | L10: 74.64 | M10: 85.09 | N10: 40.53 | O10: 46.2 | P10: 80.38 | Q10: 91.63 | R10: 55.33 | S10: 63.08 | T10: 35.09 | U10: 40 | V10: 6.4 | W10: 7.3
A11: WEPS | B11: We | C11: 0 | D11: 4 | E11: We04Y | I11: > 132kV* | J11: 232.24 | K11: 264.75 | L11: 70.35 | M11: 80.2 | N11: 38.2 | O11: 43.55 | P11: 75.76 | Q11: 86.37 | R11: 52.14 | S11: 59.44 | T11: 33.08 | U11: 37.71 | V11: 8.09 | W11: 9.22
A12: WEPS | B12: We | C12: 1 | D12: 1 | E12: We11Y | H12: > 300km and ≤ 600km | I12: < 500V | J12: 260.63 | K12: 297.12 | L12: 78.96 | M12: 90.01 | N12: 42.87 | O12: 48.87 | P12: 85.03 | Q12: 96.93 | R12: 58.53 | S12: 66.72 | T12: 37.13 | U12: 42.33 | V12: 7.24 | W12: 8.25
A13: WEPS | B13: We | C13: 1 | D13: 2 | E13: We12Y | I13: ≥ 500V & < 66kV | J13: 256.99 | K13: 292.97 | L13: 77.85 | M13: 88.75 | N13: 42.28 | O13: 48.2 | P13: 83.84 | Q13: 95.58 | R13: 57.7 | S13: 65.78 | T13: 36.6 | U13: 41.72 | V13: 6.64 | W13: 7.57
A14: WEPS | B14: We | C14: 1 | D14: 3 | E14: We13Y | I14: ≥ 66kV & ≤ 132kV | J14: 248.83 | K14: 283.67 | L14: 75.38 | M14: 85.93 | N14: 40.92 | O14: 46.65 | P14: 81.17 | Q14: 92.53 | R14: 55.86 | S14: 63.68 | T14: 35.43 | U14: 40.39 | V14: 6.44 | W14: 7.34
A15: WEPS | B15: We | C15: 1 | D15: 4 | E15: We14Y | I15: > 132kV* | J15: 234.55 | K15: 267.39 | L15: 71.06 | M15: 81.01 | N15: 38.58 | O15: 43.98 | P15: 76.5 | Q15: 87.21 | R15: 52.66 | S15: 60.03 | T15: 33.4 | U15: 38.08 | V15: 8.17 | W15: 9.31
A16: WEPS | B16: We | C16: 2 | D16: 1 | E16: We21Y | H16: > 600km and ≤ 900km | I16: < 500V | J16: 263.23 | K16: 300.08 | L16: 79.74 | M16: 90.9 | N16: 43.3 | O16: 49.36 | P16: 85.86 | Q16: 97.88 | R16: 59.1 | S16: 67.37 | T16: 37.49 | U16: 42.74 | V16: 7.33 | W16: 8.36
A17: WEPS | B17: We | C17: 2 | D17: 2 | E17: We22Y | I17: ≥ 500V & < 66kV | J17: 259.58 | K17: 295.92 | L17: 78.63 | M17: 89.64 | N17: 42.7 | O17: 48.68 | P17: 84.69 | Q17: 96.55 | R17: 58.26 | S17: 66.42 | T17: 36.97 | U17: 42.15 | V17: 6.69 | W17: 7.63
A18: WEPS | B18: We | C18: 2 | D18: 3 | E18: We23Y | I18: ≥ 66kV & ≤ 132kV | J18: 251.36 | K18: 286.55 | L18: 76.14 | M18: 86.8 | N18: 41.34 | O18: 47.13 | P18: 81.98 | Q18: 93.46 | R18: 56.42 | S18: 64.32 | T18: 35.79 | U18: 40.8 | V18: 6.5 | W18: 7.41
A19: WEPS | B19: We | C19: 2 | D19: 4 | E19: We24Y | I19: > 132kV* | J19: 236.91 | K19: 270.08 | L19: 71.78 | M19: 81.83 | N19: 38.97 | O19: 44.43 | P19: 77.29 | Q19: 88.11 | R19: 53.19 | S19: 60.64 | T19: 33.75 | U19: 38.48 | V19: 8.28 | W19: 9.44
A20: WEPS | B20: We | C20: 3 | D20: 1 | E20: We31Y | H20: > 900km | I20: < 500V | J20: 265.87 | K20: 303.09 | L20: 80.55 | M20: 91.83 | N20: 43.74 | O20: 49.86 | P20: 86.73 | Q20: 98.87 | R20: 59.69 | S20: 68.05 | T20: 37.87 | U20: 43.17 | V20: 7.37 | W20: 8.4
A21: WEPS | B21: We | C21: 3 | D21: 2 | E21: We32Y | I21: ≥ 500V & < 66kV | J21: 262.17 | K21: 298.87 | L21: 79.41 | M21: 90.53 | N21: 43.13 | O21: 49.17 | P21: 85.51 | Q21: 97.48 | R21: 58.85 | S21: 67.09 | T21: 37.33 | U21: 42.56 | V21: 6.76 | W21: 7.71
A22: WEPS | B22: We | C22: 3 | D22: 3 | E22: We33Y | I22: ≥ 66kV & ≤ 132kV | J22: 253.89 | K22: 289.43 | L22: 76.91 | M22: 87.68 | N22: 41.77 | O22: 47.62 | P22: 82.81 | Q22: 94.4 | R22: 56.99 | S22: 64.97 | T22: 36.16 | U22: 41.22 | V22: 6.55 | W22: 7.47
A23: WEPS | B23: We | C23: 3 | D23: 4 | E23: We34Y | I23: > 132kV* | J23: 239.24 | K23: 272.73 | L23: 72.51 | M23: 82.66 | N23: 39.4 | O23: 44.92 | P23: 78.08 | Q23: 89.01 | R23: 53.75 | S23: 61.28 | T23: 34.12 | U23: 38.9 | V23: 8.34 | W23: 9.51
I24: * 132 kV or Transmission connected
H25: Distribution network charges
J26: Network capacity charge [R/kVA/m] | L26: Network demand charge [R/kVA/m] | N26: Urban low voltage subsidy charge [R/kVA/m]
S27: Ancillary service charge [c/kWh]
A28: Tariff | B28: Tariff nameBillcode | C28: Tx zone | D28: Voltage | E28: Billcode | H28: Voltage | K28: VAT incl | M28: VAT incl | O28: VAT incl | Q28: Voltage | T28: VAT incl
A29: WEPS | B29: We | C29: 0 | D29: 1 | E29: =B29&C29&D29&IF($A$2="Non-municipal","N",IF($A$2="Municiple","Y","error")) -> We01Y | H29: < 500V | J29: 14.36 | K29: =ROUND(J29 * (1 + VAT), 2) -> 16.37 | L29: 27.22 | M29: =ROUND(L29 * (1 + VAT), 2) -> 31.03 | N29: 0 | O29: =ROUND(N29 * (1 + VAT), 2) -> 0 | Q29: < 500V | S29: 0.33 | T29: =ROUND(S29 * (1 + VAT), 2) -> 0.38
A30: WEPS | B30: We | C30: 0 | D30: 2 | E30: =B30&C30&D30&IF($A$2="Non-municipal","N",IF($A$2="Municiple","Y","error")) -> We02Y | H30: ≥ 500V & < 66kV | J30: 13.17 | K30: =ROUND(J30 * (1 + VAT), 2) -> 15.01 | L30: 24.97 | M30: =ROUND(L30 * (1 + VAT), 2) -> 28.47 | N30: 0 | O30: =ROUND(N30 * (1 + VAT), 2) -> 0 | Q30: ≥ 500V & < 66kV | S30: 0.32 | T30: =ROUND(S30 * (1 + VAT), 2) -> 0.36
A31: WEPS | B31: We | C31: 0 | D31: 3 | E31: We03Y | H31: ≥ 66kV & ≤ 132kV | J31: 4.71 | K31: =ROUND(J31 * (1 + VAT), 2) -> 5.37 | L31: 8.71 | M31: =ROUND(L31 * (1 + VAT), 2) -> 9.93 | N31: 11.53 | O31: =ROUND(N31 * (1 + VAT), 2) -> 13.14 | Q31: ≥ 66kV & ≤ 132kV | S31: 0.31 | T31: =ROUND(S31 * (1 + VAT), 2) -> 0.35
A32: WEPS | B32: We | C32: 0 | D32: 4 | E32: We04Y | H32: > 132kV / Transmission connected | J32: 0 | K32: =ROUND(J32 * (1 + VAT), 2) -> 0 | L32: 0 | M32: =ROUND(L32 * (1 + VAT), 2) -> 0 | N32: 11.53 | O32: =ROUND(N32 * (1 + VAT), 2) -> 13.14 | Q32: > 132kV / Transmission | S32: 0.29 | T32: =ROUND(S32 * (1 + VAT), 2) -> 0.33
H34: Customer categories | J34: Service charge [R/account/day] | L34: Administration charge [R/POD/day] | Q34: Reactive energy charge [c/kVArh]
A36: Tariff | B36: Tariff nameBillcode | C36: Tx zone | D36: Voltage | E36: Billcode | K36: VAT incl | M36: VAT incl | Q36: High season | S36: Low season
A37: WEPS | B37: We | C37: 0 | D37: 1 | E37: =B37&C37&D37&IF($A$2="Non-municipal","N",IF($A$2="Municiple","Y","error")) -> We01Y | H37: ≤ 100 kVA | J37: 11.66 | K37: =ROUND(J37 * (1 + VAT), 2) -> 13.29 | L37: 2.56 | M37: =ROUND(L37 * (1 + VAT), 2) -> 2.92 | R37: VAT incl | T37: VAT incl
A38: WEPS | B38: We | C38: 0 | D38: 1 | E38: =B38&C38&D38&IF($A$2="Non-municipal","N",IF($A$2="Municiple","Y","error")) -> We01Y | H38: > 100 kVA & ≤ 500 kVA | J38: 53.3 | K38: =ROUND(J38 * (1 + VAT), 2) -> 60.76 | L38: 14.94 | M38: =ROUND(L38 * (1 + VAT), 2) -> 17.03 | Q38: 11.54 | R38: =ROUND(Q38 * (1 + VAT), 2) -> 13.16 | S38: 0 | T38: =ROUND(S38 * (1 + VAT), 2) -> 0
A39: WEPS | B39: We | C39: 0 | D39: 1 | E39: =B39&C39&D39&IF($A$2="Non-municipal","N",IF($A$2="Municiple","Y","error")) -> We01Y | H39: > 500 kVA & ≤ 1 MVA | J39: 164.04 | K39: =ROUND(J39 * (1 + VAT), 2) -> 187.01 | L39: 29.7 | M39: =ROUND(L39 * (1 + VAT), 2) -> 33.86
A40: WEPS | B40: We | C40: 0 | D40: 1 | E40: =B40&C40&D40&IF($A$2="Non-municipal","N",IF($A$2="Municiple","Y","error")) -> We01Y | H40: > 1 MVA | J40: 164.04 | K40: =ROUND(J40 * (1 + VAT), 2) -> 187.01 | L40: 73.94 | M40: =ROUND(L40 * (1 + VAT), 2) -> 84.29
A41: WEPS | B41: We | C41: 0 | D41: 1 | E41: =B41&C41&D41&IF($A$2="Non-municipal","N",IF($A$2="Municiple","Y","error")) -> We01Y | H41: Key customers | J41: 3214.52 | K41: =ROUND(J41 * (1 + VAT), 2) -> 3664.55 | L41: 102.66 | M41: =ROUND(L41 * (1 + VAT), 2) -> 117.03
H44: Electrification and rural network subsidy charge [c/kWh]
H46: All seasons
A47: Tariff | B47: Tariff nameBillcode | C47: Tx zone | D47: Voltage | E47: Billcode | I47: VAT incl
A48: WEPS | B48: We | C48: 0 | D48: 1 | E48: =B48&C48&D48&IF($A$2="Non-municipal","N",IF($A$2="Municiple","Y","error")) -> We01Y | H48: 6.39 | I48: =ROUND(H48 * (1 + VAT), 2) -> 7.28
H51: Active energy charge excluding losses [c/kWh]
H52: High demand season [Jun - Aug] | N52: Low demand season [Sep - May]
H53: Peak | J53: Standard | L53: Off Peak | N53: Peak | P53: Standard | R53: Off Peak
A54: Tariff | B54: Tariff nameBillcode | C54: Tx zone | D54: Voltage | E54: Billcode | I54: VAT incl | K54: VAT incl | M54: VAT incl | O54: VAT incl | Q54: VAT incl | S54: VAT incl
A55: WEPS | B55: We | C55: 0 | D55: 1 | E55: =B55&C55&D55&IF($A$2="Non-municipal","N",IF($A$2="Municiple","Y","error")) -> We01Y | H55: =ROUND(J11/'Loss Factors'!$T$6, 2) -> 229.78 | I55: =ROUND(H55 * (1 + VAT), 2) -> 261.95 | J55: =ROUND(L11/'Loss Factors'!$T$6, 2) -> 69.61 | K55: =ROUND(J55 * (1 + VAT), 2) -> 79.36 | L55: =ROUND(N11/'Loss Factors'!$T$6, 2) -> 37.8 | M55: =ROUND(L55 * (1 + VAT), 2) -> 43.09 | N55: =ROUND(P11/'Loss Factors'!$T$6, 2) -> 74.96 | O55: =ROUND(N55 * (1 + VAT), 2) -> 85.45 | P55: =ROUND(R11/'Loss Factors'!$T$6, 2) -> 51.59 | Q55: =ROUND(P55 * (1 + VAT), 2) -> 58.81 | R55: =ROUND(T11/'Loss Factors'!$T$6, 2) -> 32.73 | S55: =ROUND(R55 * (1 + VAT), 2) -> 37.31
H57: Active energy charge excluding losses and enviromental levy [c/kWh]
H58: High demand season [Jun - Aug] | N58: Low demand season [Sep - May]
H59: Peak | J59: Standard | L59: Off Peak | N59: Peak | P59: Standard | R59: Off Peak
A60: Tariff | B60: Tariff nameBillcode | C60: Tx zone | D60: Voltage | E60: Billcode | I60: VAT incl | K60: VAT incl | M60: VAT incl | O60: VAT incl | Q60: VAT incl | S60: VAT incl
A61: WEPS | B61: We | C61: 0 | D61: 1 | E61: =B61&C61&D61&IF($A$2="Non-municipal","N",IF($A$2="Municiple","Y","error")) -> We01Y | H61: =H55-ROUND('Env levy'!$C$8,2) -> 226.29 | I61: =ROUND(H61 * (1 + VAT), 2) -> 257.97 | J61: =J55-ROUND('Env levy'!$C$8,2) -> 66.12 | K61: =ROUND(J61 * (1 + VAT), 2) -> 75.38 | L61: =L55-ROUND('Env levy'!$C$8,2) -> 34.31 | M61: =ROUND(L61 * (1 + VAT), 2) -> 39.11 | N61: =N55-ROUND('Env levy'!$C$8,2) -> 71.47 | O61: =ROUND(N61 * (1 + VAT), 2) -> 81.48 | P61: =P55-ROUND('Env levy'!$C$8,2) -> 48.1 | Q61: =ROUND(P61 * (1 + VAT), 2) -> 54.83 | R61: =R55-ROUND('Env levy'!$C$8,2) -> 29.24 | S61: =ROUND(R61 * (1 + VAT), 2) -> 33.33

Sheet Nightsave Large inc
H1: Back to menu
A2: Non-municipal | H2: Nightsave Urban Large tariff | Q2: Non-local authority | AG2: check value
J4: Active energy charge [c/kWh] | N4: Energy demand charge [R/kVA/m] | R4: Transmission network charges [R/kVA/m]
H5: Transmission zone | J5: High demand season [Jun - Aug] | L5: Low demand season [Sep - May] | N5: High demand season [Jun - Aug] | P5: Low demand season [Sep - May]
I6: Voltage
A7: Tariff | B7: Tariff nameBillcode | C7: Tx zone | D7: Voltage | E7: Billcode | K7: VAT incl | M7: VAT incl | O7: VAT incl | Q7: VAT incl | S7: VAT incl
A8: Nightsave Large | B8: NL | C8: 0 | D8: 1 | E8: =B8&C8&D8&IF($A$2="Non-municipal","N",IF($A$2="Municiple","Y","error")) -> NL01N | H8: ≤ 300km | I8: < 500V | J8: 61.48 | K8: =ROUND(J8 * (1 + VAT), 2) -> 70.09 | L8: 47.8 | M8: =ROUND(L8 * (1 + VAT), 2) -> 54.49 | N8: 187.08 | O8: =ROUND(N8 * (1 + VAT), 2) -> 213.27 | P8: 26.14 | Q8: =ROUND(P8 * (1 + VAT), 2) -> 29.8 | R8: 7.12 | S8: =ROUND(R8 * (1 + VAT), 2) -> 8.12
A9: Nightsave Large | B9: NL | C9: 0 | D9: 2 | E9: =B9&C9&D9&IF($A$2="Non-municipal","N",IF($A$2="Municiple","Y","error")) -> NL02N | I9: ≥ 500V & < 66kV | J9: 58.23 | K9: 66.38 | L9: 45.45 | M9: 51.81 | N9: 181.07 | O9: 206.42 | P9: 25.31 | Q9: 28.85 | R9: 6.51 | S9: 7.42
A10: Nightsave Large | B10: NL | C10: 0 | D10: 3 | E10: NL03N | I10: ≥ 66kV & ≤ 132kV | J10: 57.8 | K10: 65.89 | L10: 44.9 | M10: 51.19 | N10: 174.48 | O10: 198.91 | P10: 24.39 | Q10: 27.8 | R10: 6.34 | S10: 7.23
A11: Nightsave Large | B11: NL | C11: 0 | D11: 4 | E11: NL04N | I11: > 132kV* | J11: 54.07 | K11: 61.64 | L11: 42.04 | M11: 47.93 | N11: 168.31 | O11: 191.87 | P11: 23.52 | Q11: 26.81 | R11: 8.01 | S11: 9.13
A12: Nightsave Large | B12: NL | C12: 1 | D12: 1 | E12: NL11N | H12: > 300km and ≤ 600km | I12: < 500V | J12: 62.31 | K12: 71.03 | L12: 48.32 | M12: 55.08 | N12: 189.01 | O12: 215.47 | P12: 26.4 | Q12: 30.1 | R12: 7.18 | S12: 8.19
A13: Nightsave Large | B13: NL | C13: 1 | D13: 2 | E13: NL12N | I13: ≥ 500V & < 66kV | J13: 59.44 | K13: 67.76 | L13: 46.37 | M13: 52.86 | N13: 182.91 | O13: 208.52 | P13: 25.54 | Q13: 29.12 | R13: 6.57 | S13: 7.49
A14: Nightsave Large | B14: NL | C14: 1 | D14: 3 | E14: NL13N | I14: ≥ 66kV & ≤ 132kV | J14: 59 | K14: 67.26 | L14: 45.81 | M14: 52.22 | N14: 176.21 | O14: 200.88 | P14: 24.62 | Q14: 28.07 | R14: 6.39 | S14: 7.28
A15: Nightsave Large | B15: NL | C15: 1 | D15: 4 | E15: NL14N | I15: > 132kV* | J15: 55.2 | K15: 62.93 | L15: 42.9 | M15: 48.91 | N15: 170.03 | O15: 193.83 | P15: 23.74 | Q15: 27.06 | R15: 8.09 | S15: 9.22
A16: Nightsave Large | B16: NL | C16: 2 | D16: 1 | E16: NL21N | H16: > 600km and ≤ 900km | I16: < 500V | J16: 62.89 | K16: 71.69 | L16: 48.79 | M16: 55.62 | N16: 190.94 | O16: 217.67 | P16: 26.67 | Q16: 30.4 | R16: 7.27 | S16: 8.29
A17: Nightsave Large | B17: NL | C17: 2 | D17: 2 | E17: NL22N | I17: ≥ 500V & < 66kV | J17: 60.04 | K17: 68.45 | L17: 46.85 | M17: 53.41 | N17: 184.74 | O17: 210.6 | P17: 25.82 | Q17: 29.43 | R17: 6.63 | S17: 7.56
A18: Nightsave Large | B18: NL | C18: 2 | D18: 3 | E18: NL23N | I18: ≥ 66kV & ≤ 132kV | J18: 59.59 | K18: 67.93 | L18: 46.27 | M18: 52.75 | N18: 177.98 | O18: 202.9 | P18: 24.86 | Q18: 28.34 | R18: 6.43 | S18: 7.33
A19: Nightsave Large | B19: NL | C19: 2 | D19: 4 | E19: NL24N | I19: > 132kV* | J19: 55.74 | K19: 63.54 | L19: 43.34 | M19: 49.41 | N19: 171.73 | O19: 195.77 | P19: 23.98 | Q19: 27.34 | R19: 8.2 | S19: 9.35
A20: Nightsave Large | B20: NL | C20: 3 | D20: 1 | E20: NL31N | H20: > 900km | I20: < 500V | J20: 63.56 | K20: 72.46 | L20: 49.29 | M20: 56.19 | N20: 192.8 | O20: 219.79 | P20: 26.93 | Q20: 30.7 | R20: 7.29 | S20: 8.31
A21: Nightsave Large | B21: NL | C21: 3 | D21: 2 | E21: NL32N | I21: ≥ 500V & < 66kV | J21: 60.62 | K21: 69.11 | L21: 47.3 | M21: 53.92 | N21: 186.6 | O21: 212.72 | P21: 26.04 | Q21: 29.69 | R21: 6.71 | S21: 7.65
A22: Nightsave Large | B22: NL | C22: 3 | D22: 3 | E22: NL33N | I22: ≥ 66kV & ≤ 132kV | J22: 60.2 | K22: 68.63 | L22: 46.73 | M22: 53.27 | N22: 179.8 | O22: 204.97 | P22: 25.12 | Q22: 28.64 | R22: 6.48 | S22: 7.39
A23: Nightsave Large | B23: NL | C23: 3 | D23: 4 | E23: NL34N | I23: > 132kV* | J23: 56.33 | K23: 64.22 | L23: 43.81 | M23: 49.94 | N23: 173.46 | O23: 197.74 | P23: 24.22 | Q23: 27.61 | R23: 8.26 | S23: 9.42
I24: * 132 kV or Transmission connected
H26: Distribution network charges
J27: Network capacity charge [R/kVA/m] | L27: Network demand charge [R/kVA/m] | N27: Urban low voltage subsidy charge [R/kVA/m]
R28: Ancillary service charge [c/kWh]
A29: Tariff | B29: Tariff nameBillcode | C29: Tx zone | D29: Voltage | E29: Billcode | H29: Voltage | K29: VAT incl | M29: VAT incl | O29: VAT incl | Q29: Voltage | S29: VAT incl
A30: Nightsave Large | B30: NL | C30: 0 | D30: 1 | E30: =B30&C30&D30&IF($A$2="Non-municipal","N",IF($A$2="Municiple","Y","error")) -> NL01N | H30: < 500V | J30: 14.15 | K30: =ROUND(J30 * (1 + VAT), 2) -> 16.13 | L30: 26.83 | M30: =ROUND(L30 * (1 + VAT), 2) -> 30.59 | N30: 0 | O30: =ROUND(N30 * (1 + VAT), 2) -> 0 | Q30: < 500V | R30: 0.33 | S30: =ROUND(R30 * (1 + VAT), 2) -> 0.38
A31: Nightsave Large | B31: NL | C31: 0 | D31: 2 | E31: =B31&C31&D31&IF($A$2="Non-municipal","N",IF($A$2="Municiple","Y","error")) -> NL02N | H31: ≥ 500V & < 66kV | J31: 12.98 | K31: =ROUND(J31 * (1 + VAT), 2) -> 14.8 | L31: 24.62 | M31: =ROUND(L31 * (1 + VAT), 2) -> 28.07 | N31: 0 | O31: =ROUND(N31 * (1 + VAT), 2) -> 0 | Q31: ≥ 500V & < 66kV | R31: 0.32 | S31: =ROUND(R31 * (1 + VAT), 2) -> 0.36
A32: Nightsave Large | B32: NL | C32: 0 | D32: 3 | E32: NL03N | H32: ≥ 66kV & ≤ 132kV | J32: 4.63 | K32: =ROUND(J32 * (1 + VAT), 2) -> 5.28 | L32: 8.58 | M32: =ROUND(L32 * (1 + VAT), 2) -> 9.78 | N32: 11.43 | O32: =ROUND(N32 * (1 + VAT), 2) -> 13.03 | Q32: ≥ 66kV & ≤ 132kV | R32: 0.3 | S32: =ROUND(R32 * (1 + VAT), 2) -> 0.34
A33: Nightsave Large | B33: NL | C33: 0 | D33: 4 | E33: NL04N | H33: > 132kV / Transmission connected | J33: 0 | K33: =ROUND(J33 * (1 + VAT), 2) -> 0 | L33: 0 | M33: =ROUND(L33 * (1 + VAT), 2) -> 0 | N33: 11.43 | O33: =ROUND(N33 * (1 + VAT), 2) -> 13.03 | Q33: > 132kV* | R33: 0.28 | S33: =ROUND(R33 * (1 + VAT), 2) -> 0.32
Q34: * 132 kV or Transmission connected
H36: Customer categories | I36: Service charge [R/account/day] | K36: Administration charge [R/POD/day]
A38: Tariff | B38: Tariff nameBillcode | C38: Tx zone | D38: Voltage | E38: Billcode | J38: VAT incl | L38: VAT incl
A39: Nightsave Large | B39: NL | C39: 0 | D39: 1 | E39: =B39&C39&D39&IF($A$2="Non-municipal","N",IF($A$2="Municiple","Y","error")) -> NL01N | H39: >1 MVA | I39: 162.48 | J39: =ROUND(I39 * (1 + VAT), 2) -> 185.23 | K39: 73.23 | L39: =ROUND(K39 * (1 + VAT), 2) -> 83.48
A40: Nightsave Large | B40: NL | C40: 0 | D40: 1 | E40: =B40&C40&D40&IF($A$2="Non-municipal","N",IF($A$2="Municiple","Y","error")) -> NL01N | H40: Key customers | I40: 3183.88 | J40: =ROUND(I40 * (1 + VAT), 2) -> 3629.62 | K40: 101.68 | L40: =ROUND(K40 * (1 + VAT), 2) -> 115.92
H43: Electrification and rural network subsidy charge [c/kWh] | J43: Affordability subsidy charge [c/kWh] Only payable by non-local authority tariffs
H45: All seasons | J45: All seasons
A46: Tariff | B46: Tariff nameBillcode | C46: Tx zone | D46: Voltage | E46: Billcode | I46: VAT incl | K46: VAT incl
A47: Nightsave Large | B47: NL | C47: 0 | D47: 1 | E47: =B47&C47&D47&IF($A$2="Non-municipal","N",IF($A$2="Municiple","Y","error")) -> NL01N | H47: 6.33 | I47: =ROUND(H47 * (1 + VAT), 2) -> 7.22 | J47: 2.44 | K47: =ROUND(J47 * (1 + VAT), 2) -> 2.78

Sheet Nightsave Large Munic inc
H1: Back to menu
A2: Municiple | H2: Nightsave Urban Large tariff | Q2: Local authority | AG2: check value
J4: Active energy charge [c/kWh] | N4: Energy demand charge [R/kVA/m] | R4: Transmission network charges [R/kVA/m]
H5: Transmission zone | J5: High demand season [Jun - Aug] | L5: Low demand season [Sep - May] | N5: High demand season [Jun - Aug] | P5: Low demand season [Sep - May]
I6: Voltage
A7: Tariff | B7: Tariff nameBillcode | C7: Tx zone | D7: Voltage | E7: Billcode | K7: VAT incl | M7: VAT incl | O7: VAT incl | Q7: VAT incl | S7: VAT incl
A8: Nightsave Large | B8: NL | C8: 0 | D8: 1 | E8: =B8&C8&D8&IF($A$2="Non-municipal","N",IF($A$2="Municiple","Y","error")) -> NL01Y | H8: ≤ 300km | I8: < 500V | J8: 63.85 | K8: =ROUND(J8 * (1 + VAT), 2) -> 72.79 | L8: 49.65 | M8: =ROUND(L8 * (1 + VAT), 2) -> 56.6 | N8: 190.64 | O8: =ROUND(N8 * (1 + VAT), 2) -> 217.33 | P8: 26.64 | Q8: =ROUND(P8 * (1 + VAT), 2) -> 30.37 | R8: 7.2 | S8: =ROUND(R8 * (1 + VAT), 2) -> 8.21
A9: Nightsave Large | B9: NL | C9: 0 | D9: 2 | E9: =B9&C9&D9&IF($A$2="Non-municipal","N",IF($A$2="Municiple","Y","error")) -> NL02Y | I9: ≥ 500V & < 66kV | J9: 60.47 | K9: 68.94 | L9: 47.19 | M9: 53.8 | N9: 184.52 | O9: 210.35 | P9: 25.8 | Q9: 29.41 | R9: 6.57 | S9: 7.49
A10: Nightsave Large | B10: NL | C10: 0 | D10: 3 | E10: NL03Y | I10: ≥ 66kV & ≤ 132kV | J10: 60.02 | K10: 68.42 | L10: 46.61 | M10: 53.14 | N10: 177.8 | O10: 202.69 | P10: 24.85 | Q10: 28.33 | R10: 6.4 | S10: 7.3
A11: Nightsave Large | B11: NL | C11: 0 | D11: 4 | E11: NL04Y | I11: > 132kV* | J11: 56.15 | K11: 64.01 | L11: 43.66 | M11: 49.77 | N11: 171.52 | O11: 195.53 | P11: 23.96 | Q11: 27.31 | R11: 8.09 | S11: 9.22
A12: Nightsave Large | B12: NL | C12: 1 | D12: 1 | E12: NL11Y | H12: > 300km and ≤ 600km | I12: < 500V | J12: 64.69 | K12: 73.75 | L12: 50.19 | M12: 57.22 | N12: 192.62 | O12: 219.59 | P12: 26.9 | Q12: 30.67 | R12: 7.24 | S12: 8.25
A13: Nightsave Large | B13: NL | C13: 1 | D13: 2 | E13: NL12Y | I13: ≥ 500V & < 66kV | J13: 61.72 | K13: 70.36 | L13: 48.15 | M13: 54.89 | N13: 186.38 | O13: 212.47 | P13: 26.02 | Q13: 29.66 | R13: 6.64 | S13: 7.57
A14: Nightsave Large | B14: NL | C14: 1 | D14: 3 | E14: NL13Y | I14: ≥ 66kV & ≤ 132kV | J14: 61.27 | K14: 69.85 | L14: 47.58 | M14: 54.24 | N14: 179.57 | O14: 204.71 | P14: 25.1 | Q14: 28.61 | R14: 6.44 | S14: 7.34
A15: Nightsave Large | B15: NL | C15: 1 | D15: 4 | E15: NL14Y | I15: > 132kV* | J15: 57.31 | K15: 65.33 | L15: 44.55 | M15: 50.79 | N15: 173.26 | O15: 197.52 | P15: 24.2 | Q15: 27.59 | R15: 8.17 | S15: 9.31
A16: Nightsave Large | B16: NL | C16: 2 | D16: 1 | E16: NL21Y | H16: > 600km and ≤ 900km | I16: < 500V | J16: 65.31 | K16: 74.45 | L16: 50.67 | M16: 57.76 | N16: 194.57 | O16: 221.81 | P16: 27.18 | Q16: 30.99 | R16: 7.33 | S16: 8.36
A17: Nightsave Large | B17: NL | C17: 2 | D17: 2 | E17: NL22Y | I17: ≥ 500V & < 66kV | J17: 62.34 | K17: 71.07 | L17: 48.65 | M17: 55.46 | N17: 188.27 | O17: 214.63 | P17: 26.31 | Q17: 29.99 | R17: 6.69 | S17: 7.63
A18: Nightsave Large | B18: NL | C18: 2 | D18: 3 | E18: NL23Y | I18: ≥ 66kV & ≤ 132kV | J18: 61.88 | K18: 70.54 | L18: 48.06 | M18: 54.79 | N18: 181.37 | O18: 206.76 | P18: 25.33 | Q18: 28.88 | R18: 6.5 | S18: 7.41
A19: Nightsave Large | B19: NL | C19: 2 | D19: 4 | E19: NL24Y | I19: > 132kV* | J19: 57.89 | K19: 65.99 | L19: 45 | M19: 51.3 | N19: 175 | O19: 199.5 | P19: 24.45 | Q19: 27.87 | R19: 8.28 | S19: 9.44
A20: Nightsave Large | B20: NL | C20: 3 | D20: 1 | E20: NL31Y | H20: > 900km | I20: < 500V | J20: 66 | K20: 75.24 | L20: 51.18 | M20: 58.35 | N20: 196.48 | O20: 223.99 | P20: 27.45 | Q20: 31.29 | R20: 7.37 | S20: 8.4
A21: Nightsave Large | B21: NL | C21: 3 | D21: 2 | E21: NL32Y | I21: ≥ 500V & < 66kV | J21: 62.96 | K21: 71.77 | L21: 49.12 | M21: 56 | N21: 190.14 | O21: 216.76 | P21: 26.54 | Q21: 30.26 | R21: 6.76 | S21: 7.71
A22: Nightsave Large | B22: NL | C22: 3 | D22: 3 | E22: NL33Y | I22: ≥ 66kV & ≤ 132kV | J22: 62.5 | K22: 71.25 | L22: 48.53 | M22: 55.32 | N22: 183.21 | O22: 208.86 | P22: 25.6 | Q22: 29.18 | R22: 6.55 | S22: 7.47
A23: Nightsave Large | B23: NL | C23: 3 | D23: 4 | E23: NL34Y | I23: > 132kV* | J23: 58.51 | K23: 66.7 | L23: 45.5 | M23: 51.87 | N23: 176.77 | O23: 201.52 | P23: 24.68 | Q23: 28.14 | R23: 8.34 | S23: 9.51
I24: * 132 kV or Transmission connected
H26: Distribution network charges
J27: Network capacity charge [R/kVA/m] | L27: Network demand charge [R/kVA/m] | N27: Urban low voltage subsidy charge [R/kVA/m]
R28: Ancillary service charge [c/kWh]
A29: Tariff | B29: Tariff nameBillcode | C29: Tx zone | D29: Voltage | E29: Billcode | H29: Voltage | K29: VAT incl | M29: VAT incl | O29: VAT incl | Q29: Voltage | S29: VAT incl
A30: Nightsave Large | B30: NL | C30: 0 | D30: 1 | E30: =B30&C30&D30&IF($A$2="Non-municipal","N",IF($A$2="Municiple","Y","error")) -> NL01Y | H30: < 500V | J30: 14.36 | K30: =ROUND(J30 * (1 + VAT), 2) -> 16.37 | L30: 27.22 | M30: =ROUND(L30 * (1 + VAT), 2) -> 31.03 | N30: 0 | O30: =ROUND(N30 * (1 + VAT), 2) -> 0 | Q30: < 500V | R30: 0.33 | S30: =ROUND(R30 * (1 + VAT), 2) -> 0.38
A31: Nightsave Large | B31: NL | C31: 0 | D31: 2 | E31: =B31&C31&D31&IF($A$2="Non-municipal","N",IF($A$2="Municiple","Y","error")) -> NL02Y | H31: ≥ 500V & < 66kV | J31: 13.17 | K31: =ROUND(J31 * (1 + VAT), 2) -> 15.01 | L31: 24.97 | M31: =ROUND(L31 * (1 + VAT), 2) -> 28.47 | N31: 0 | O31: =ROUND(N31 * (1 + VAT), 2) -> 0 | Q31: ≥ 500V & < 66kV | R31: 0.32 | S31: =ROUND(R31 * (1 + VAT), 2) -> 0.36
A32: Nightsave Large | B32: NL | C32: 0 | D32: 3 | E32: NL03Y | H32: ≥ 66kV & ≤ 132kV | J32: 4.71 | K32: =ROUND(J32 * (1 + VAT), 2) -> 5.37 | L32: 8.71 | M32: =ROUND(L32 * (1 + VAT), 2) -> 9.93 | N32: 11.53 | O32: =ROUND(N32 * (1 + VAT), 2) -> 13.14 | Q32: ≥ 66kV & ≤ 132kV | R32: 0.31 | S32: =ROUND(R32 * (1 + VAT), 2) -> 0.35
A33: Nightsave Large | B33: NL | C33: 0 | D33: 4 | E33: NL04Y | H33: > 132kV / Transmission connected | J33: 0 | K33: =ROUND(J33 * (1 + VAT), 2) -> 0 | L33: 0 | M33: =ROUND(L33 * (1 + VAT), 2) -> 0 | N33: 11.53 | O33: =ROUND(N33 * (1 + VAT), 2) -> 13.14 | Q33: > 132kV* | R33: 0.29 | S33: =ROUND(R33 * (1 + VAT), 2) -> 0.33
Q34: * 132 kV or Transmission connected
H36: Customer categories | I36: Service charge [R/account/day] | K36: Administration charge [R/POD/day]
A38: Tariff | B38: Tariff nameBillcode | C38: Tx zone | D38: Voltage | E38: Billcode | J38: VAT incl | L38: VAT incl
A39: Nightsave Large | B39: NL | C39: 0 | D39: 1 | E39: =B39&C39&D39&IF($A$2="Non-municipal","N",IF($A$2="Municiple","Y","error")) -> NL01Y | H39: >1 MVA | I39: 164.04 | J39: =ROUND(I39 * (1 + VAT), 2) -> 187.01 | K39: 73.94 | L39: =ROUND(K39 * (1 + VAT), 2) -> 84.29
A40: Nightsave Large | B40: NL | C40: 0 | D40: 1 | E40: =B40&C40&D40&IF($A$2="Non-municipal","N",IF($A$2="Municiple","Y","error")) -> NL01Y | H40: Key customers | I40: 3214.52 | J40: =ROUND(I40 * (1 + VAT), 2) -> 3664.55 | K40: 102.66 | L40: =ROUND(K40 * (1 + VAT), 2) -> 117.03
H43: Electrification and rural network subsidy charge [c/kWh]
H45: All seasons
A46: Tariff | B46: Tariff nameBillcode | C46: Tx zone | D46: Voltage | E46: Billcode | I46: VAT incl
A47: Nightsave Large | B47: NL | C47: 0 | D47: 1 | E47: =B47&C47&D47&IF($A$2="Non-municipal","N",IF($A$2="Municiple","Y","error")) -> NL01Y | H47: 6.39 | I47: =ROUND(H47 * (1 + VAT), 2) -> 7.28

Sheet Nightsave Small inc
G1: Back to menu
A2: Non-municipal | G2: Nightsave Urban Small tariff | R2: Non-local authority | AF2: =SUM(#REF!,#REF!,#REF!,#REF!,#REF!,#REF!,#REF!,#REF!,#REF!) ->  | AG2: check value
J4: Active energy charge [c/kWh] | N4: Energy demand charge [R/kVA/m] | R4: Transmission network charges [R/kVA/m]
H5: Transmission zone | J5: High demand season [Jun - Aug] | L5: Low demand season [Sep - May] | N5: High demand season [Jun - Aug] | P5: Low demand season [Sep - May]
I6: Voltage
A7: Tariff | B7: Tariff nameBillcode | C7: Tx zone | D7: Voltage | E7: Billcode | K7: VAT incl | M7: VAT incl | O7: VAT incl | Q7: VAT incl | S7: VAT incl
A8: Nightsave Small | B8: NS | C8: 0 | D8: 1 | E8: =B8&C8&D8&IF($A$2="Non-municipal","N",IF($A$2="Municiple","Y","error")) -> NS01N | H8: ≤ 300km | I8: < 500V | J8: 61.48 | K8: =ROUND(J8 * (1 + VAT), 2) -> 70.09 | L8: 47.8 | M8: =ROUND(L8 * (1 + VAT), 2) -> 54.49 | N8: 131.39 | O8: =ROUND(N8 * (1 + VAT), 2) -> 149.78 | P8: 16.93 | Q8: =ROUND(P8 * (1 + VAT), 2) -> 19.3 | R8: 7.12 | S8: =ROUND(R8 * (1 + VAT), 2) -> 8.12
A9: Nightsave Small | B9: NS | C9: 0 | D9: 2 | E9: =B9&C9&D9&IF($A$2="Non-municipal","N",IF($A$2="Municiple","Y","error")) -> NS02N | I9: ≥ 500V & < 66kV | J9: 58.23 | K9: 66.38 | L9: 45.45 | M9: 51.81 | N9: 127.16 | O9: 144.96 | P9: 16.36 | Q9: 18.65 | R9: 6.51 | S9: 7.42
A10: Nightsave Small | B10: NS | C10: 0 | D10: 3 | E10: NS03N | I10: ≥ 66kV & ≤ 132kV | J10: 57.8 | K10: 65.89 | L10: 44.9 | M10: 51.19 | N10: 122.48 | O10: 139.63 | P10: 15.75 | Q10: 17.96 | R10: 6.34 | S10: 7.23
A11: Nightsave Small | B11: NS | C11: 0 | D11: 4 | E11: NS04N | I11: > 132kV* | J11: 54.07 | K11: 61.64 | L11: 42.04 | M11: 47.93 | N11: 118.2 | O11: 134.75 | P11: 15.2 | Q11: 17.33 | R11: 8.01 | S11: 9.13
A12: Nightsave Small | B12: NS | C12: 1 | D12: 1 | E12: NS11N | H12: > 300km and ≤ 600km | I12: < 500V | J12: 62.31 | K12: 71.03 | L12: 48.32 | M12: 55.08 | N12: 132.73 | O12: 151.31 | P12: 17.07 | Q12: 19.46 | R12: 7.18 | S12: 8.19
A13: Nightsave Small | B13: NS | C13: 1 | D13: 2 | E13: NS12N | I13: ≥ 500V & < 66kV | J13: 59.44 | K13: 67.76 | L13: 46.37 | M13: 52.86 | N13: 128.44 | O13: 146.42 | P13: 16.52 | Q13: 18.83 | R13: 6.57 | S13: 7.49
A14: Nightsave Small | B14: NS | C14: 1 | D14: 3 | E14: NS13N | I14: ≥ 66kV & ≤ 132kV | J14: 59 | K14: 67.26 | L14: 45.81 | M14: 52.22 | N14: 123.74 | O14: 141.06 | P14: 15.92 | Q14: 18.15 | R14: 6.39 | S14: 7.28
A15: Nightsave Small | B15: NS | C15: 1 | D15: 4 | E15: NS14N | I15: > 132kV* | J15: 55.2 | K15: 62.93 | L15: 42.9 | M15: 48.91 | N15: 119.38 | O15: 136.09 | P15: 15.36 | Q15: 17.51 | R15: 8.09 | S15: 9.22
A16: Nightsave Small | B16: NS | C16: 2 | D16: 1 | E16: NS21N | H16: > 600km and ≤ 900km | I16: < 500V | J16: 62.89 | K16: 71.69 | L16: 48.79 | M16: 55.62 | N16: 134.03 | O16: 152.79 | P16: 17.23 | Q16: 19.64 | R16: 7.27 | S16: 8.29
A17: Nightsave Small | B17: NS | C17: 2 | D17: 2 | E17: NS22N | I17: ≥ 500V & < 66kV | J17: 60.04 | K17: 68.45 | L17: 46.85 | M17: 53.41 | N17: 129.75 | O17: 147.92 | P17: 16.69 | Q17: 19.03 | R17: 6.63 | S17: 7.56
A18: Nightsave Small | B18: NS | C18: 2 | D18: 3 | E18: NS23N | I18: ≥ 66kV & ≤ 132kV | J18: 59.59 | K18: 67.93 | L18: 46.27 | M18: 52.75 | N18: 124.98 | O18: 142.48 | P18: 16.08 | Q18: 18.33 | R18: 6.43 | S18: 7.33
A19: Nightsave Small | B19: NS | C19: 2 | D19: 4 | E19: NS24N | I19: > 132kV* | J19: 55.74 | K19: 63.54 | L19: 43.34 | M19: 49.41 | N19: 120.56 | O19: 137.44 | P19: 15.51 | Q19: 17.68 | R19: 8.2 | S19: 9.35
A20: Nightsave Small | B20: NS | C20: 3 | D20: 1 | E20: NS31N | H20: > 900km | I20: < 500V | J20: 63.56 | K20: 72.46 | L20: 49.29 | M20: 56.19 | N20: 135.4 | O20: 154.36 | P20: 17.41 | Q20: 19.85 | R20: 7.29 | S20: 8.31
A21: Nightsave Small | B21: NS | C21: 3 | D21: 2 | E21: NS32N | I21: ≥ 500V & < 66kV | J21: 60.62 | K21: 69.11 | L21: 47.3 | M21: 53.92 | N21: 131.02 | O21: 149.36 | P21: 16.86 | Q21: 19.22 | R21: 6.71 | S21: 7.65
A22: Nightsave Small | B22: NS | C22: 3 | D22: 3 | E22: NS33N | I22: ≥ 66kV & ≤ 132kV | J22: 60.2 | K22: 68.63 | L22: 46.73 | M22: 53.27 | N22: 126.26 | O22: 143.94 | P22: 16.25 | Q22: 18.53 | R22: 6.48 | S22: 7.39
A23: Nightsave Small | B23: NS | C23: 3 | D23: 4 | E23: NS34N | I23: > 132kV* | J23: 56.33 | K23: 64.22 | L23: 43.81 | M23: 49.94 | N23: 121.82 | O23: 138.87 | P23: 15.69 | Q23: 17.89 | R23: 8.26 | S23: 9.42
I24: * 132 kV or Transmission connected
H26: Distribution network charges
J27: Network capacity charge [R/kVA/m] | L27: Network demand charge [R/kVA/m] | N27: Urban low voltage subsidy charge [R/kVA/m]
R28: Ancillary service charge [c/kWh]
A29: Tariff | B29: Tariff nameBillcode | C29: Tx zone | D29: Voltage | E29: Billcode | H29: Voltage | K29: VAT incl | M29: VAT incl | O29: VAT incl | Q29: Voltage | S29: VAT incl
A30: Nightsave Small | B30: NS | C30: 0 | D30: 1 | E30: =B30&C30&D30&IF($A$2="Non-municipal","N",IF($A$2="Municiple","Y","error")) -> NS01N | H30: < 500V | J30: 14.15 | K30: =ROUND(J30 * (1 + VAT), 2) -> 16.13 | L30: 26.83 | M30: =ROUND(L30 * (1 + VAT), 2) -> 30.59 | N30: 0 | O30: =ROUND(N30 * (1 + VAT), 2) -> 0 | Q30: < 500V | R30: 0.33 | S30: =ROUND(R30 * (1 + VAT), 2) -> 0.38
A31: Nightsave Small | B31: NS | C31: 0 | D31: 2 | E31: =B31&C31&D31&IF($A$2="Non-municipal","N",IF($A$2="Municiple","Y","error")) -> NS02N | H31: ≥ 500V & < 66kV | J31: 12.98 | K31: =ROUND(J31 * (1 + VAT), 2) -> 14.8 | L31: 24.62 | M31: =ROUND(L31 * (1 + VAT), 2) -> 28.07 | N31: 0 | O31: =ROUND(N31 * (1 + VAT), 2) -> 0 | Q31: ≥ 500V & < 66kV | R31: 0.32 | S31: =ROUND(R31 * (1 + VAT), 2) -> 0.36
A32: Nightsave Small | B32: NS | C32: 0 | D32: 3 | E32: NS03N | H32: ≥ 66kV & ≤ 132kV | J32: 4.63 | K32: =ROUND(J32 * (1 + VAT), 2) -> 5.28 | L32: 8.58 | M32: =ROUND(L32 * (1 + VAT), 2) -> 9.78 | N32: 11.43 | O32: =ROUND(N32 * (1 + VAT), 2) -> 13.03 | Q32: ≥ 66kV & ≤ 132kV | R32: 0.3 | S32: =ROUND(R32 * (1 + VAT), 2) -> 0.34
A33: Nightsave Small | B33: NS | C33: 0 | D33: 4 | E33: NS04N | H33: > 132kV / Transmission connected | J33: 0 | K33: =ROUND(J33 * (1 + VAT), 2) -> 0 | L33: 0 | M33: =ROUND(L33 * (1 + VAT), 2) -> 0 | N33: 11.43 | O33: =ROUND(N33 * (1 + VAT), 2) -> 13.03 | Q33: > 132kV* | R33: 0.28 | S33: =ROUND(R33 * (1 + VAT), 2) -> 0.32
Q34: * 132 kV or Transmission connected
H36: Customer categories | I36: Service charge [R/account/day] | K36: Administration charge [R/POD/day]
A38: Tariff | B38: Tariff nameBillcode | C38: Tx zone | D38: Voltage | E38: Billcode | J38: VAT incl | L38: VAT incl
A39: Nightsave Small | B39: NS | C39: 0 | D39: 1 | E39: =B39&C39&D39&IF($A$2="Non-municipal","N",IF($A$2="Municiple","Y","error")) -> NS01N | H39: ≤ 100 kVA | I39: 11.55 | J39: =ROUND(I39 * (1 + VAT), 2) -> 13.17 | K39: 2.54 | L39: =ROUND(K39 * (1 + VAT), 2) -> 2.9
A40: Nightsave Small | B40: NS | C40: 0 | D40: 1 | E40: =B40&C40&D40&IF($A$2="Non-municipal","N",IF($A$2="Municiple","Y","error")) -> NS01N | H40: > 100 kVA & ≤ 500 kVA | I40: 52.8 | J40: =ROUND(I40 * (1 + VAT), 2) -> 60.19 | K40: 14.8 | L40: =ROUND(K40 * (1 + VAT), 2) -> 16.87
A41: Nightsave Small | B41: NS | C41: 0 | D41: 1 | E41: =B41&C41&D41&IF($A$2="Non-municipal","N",IF($A$2="Municiple","Y","error")) -> NS01N | H41: > 500 kVA & ≤ 1 MVA | I41: 162.48 | J41: =ROUND(I41 * (1 + VAT), 2) -> 185.23 | K41: 29.41 | L41: =ROUND(K41 * (1 + VAT), 2) -> 33.53
A42: Nightsave Small | B42: NS | C42: 0 | D42: 1 | E42: =B42&C42&D42&IF($A$2="Non-municipal","N",IF($A$2="Municiple","Y","error")) -> NS01N | H42: Key customers | I42: 3183.88 | J42: =ROUND(I42 * (1 + VAT), 2) -> 3629.62 | K42: 101.68 | L42: =ROUND(K42 * (1 + VAT), 2) -> 115.92
H44: Electrification and rural network subsidy charge [c/kWh] | J44: Affordability subsidy charge [c/kWh] Only payable by non-local authority tariffs
J46: All seasons
A47: Tariff | B47: Tariff nameBillcode | C47: Tx zone | D47: Voltage | E47: Billcode | I47: VAT incl | K47: VAT incl
A48: Nightsave Small | B48: NS | C48: 0 | D48: 1 | E48: =B48&C48&D48&IF($A$2="Non-municipal","N",IF($A$2="Municiple","Y","error")) -> NS01N | H48: 6.33 | I48: =ROUND(H48 * (1 + VAT), 2) -> 7.22 | J48: 2.44 | K48: =ROUND(J48 * (1 + VAT), 2) -> 2.78

Sheet Nightsave Small Munic inc
G1: Back to menu
A2: Municiple | G2: Nightsave Urban Small tariff | R2: Local authority | AF2: =SUM(#REF!,#REF!,#REF!,#REF!,#REF!,#REF!,#REF!,#REF!,#REF!) ->  | AG2: check value
J4: Active energy charge [c/kWh] | N4: Energy demand charge [R/kVA/m] | R4: Transmission network charges [R/kVA/m]
H5: Transmission zone | J5: High demand season [Jun - Aug] | L5: Low demand season [Sep - May] | N5: High demand season [Jun - Aug] | P5: Low demand season [Sep - May]
I6: Voltage
A7: Tariff | B7: Tariff nameBillcode | C7: Tx zone | D7: Voltage | E7: Billcode | K7: VAT incl | M7: VAT incl | O7: VAT incl | Q7: VAT incl | S7: VAT incl
A8: Nightsave Small | B8: NS | C8: 0 | D8: 1 | E8: =B8&C8&D8&IF($A$2="Non-municipal","N",IF($A$2="Municiple","Y","error")) -> NS01Y | H8: ≤ 300km | I8: < 500V | J8: 63.85 | K8: =ROUND(J8 * (1 + VAT), 2) -> 72.79 | L8: 49.65 | M8: =ROUND(L8 * (1 + VAT), 2) -> 56.6 | N8: 133.88 | O8: =ROUND(N8 * (1 + VAT), 2) -> 152.62 | P8: 17.26 | Q8: =ROUND(P8 * (1 + VAT), 2) -> 19.68 | R8: 7.2 | S8: =ROUND(R8 * (1 + VAT), 2) -> 8.21
A9: Nightsave Small | B9: NS | C9: 0 | D9: 2 | E9: =B9&C9&D9&IF($A$2="Non-municipal","N",IF($A$2="Municiple","Y","error")) -> NS02Y | I9: ≥ 500V & < 66kV | J9: 60.47 | K9: 68.94 | L9: 47.19 | M9: 53.8 | N9: 129.58 | O9: 147.72 | P9: 16.67 | Q9: 19 | R9: 6.57 | S9: 7.49
A10: Nightsave Small | B10: NS | C10: 0 | D10: 3 | E10: NS03Y | I10: ≥ 66kV & ≤ 132kV | J10: 60.02 | K10: 68.42 | L10: 46.61 | M10: 53.14 | N10: 124.82 | O10: 142.29 | P10: 16.05 | Q10: 18.3 | R10: 6.4 | S10: 7.3
A11: Nightsave Small | B11: NS | C11: 0 | D11: 4 | E11: NS04Y | I11: > 132kV* | J11: 56.15 | K11: 64.01 | L11: 43.66 | M11: 49.77 | N11: 120.44 | O11: 137.3 | P11: 15.49 | Q11: 17.66 | R11: 8.09 | S11: 9.22
A12: Nightsave Small | B12: NS | C12: 1 | D12: 1 | E12: NS11Y | H12: > 300km and ≤ 600km | I12: < 500V | J12: 64.69 | K12: 73.75 | L12: 50.19 | M12: 57.22 | N12: 135.26 | O12: 154.2 | P12: 17.4 | Q12: 19.84 | R12: 7.24 | S12: 8.25
A13: Nightsave Small | B13: NS | C13: 1 | D13: 2 | E13: NS12Y | I13: ≥ 500V & < 66kV | J13: 61.72 | K13: 70.36 | L13: 48.15 | M13: 54.89 | N13: 130.9 | O13: 149.23 | P13: 16.83 | Q13: 19.19 | R13: 6.64 | S13: 7.57
A14: Nightsave Small | B14: NS | C14: 1 | D14: 3 | E14: NS13Y | I14: ≥ 66kV & ≤ 132kV | J14: 61.27 | K14: 69.85 | L14: 47.58 | M14: 54.24 | N14: 126.11 | O14: 143.77 | P14: 16.22 | Q14: 18.49 | R14: 6.44 | S14: 7.34
A15: Nightsave Small | B15: NS | C15: 1 | D15: 4 | E15: NS14Y | I15: > 132kV* | J15: 57.31 | K15: 65.33 | L15: 44.55 | M15: 50.79 | N15: 121.65 | O15: 138.68 | P15: 15.65 | Q15: 17.84 | R15: 8.17 | S15: 9.31
A16: Nightsave Small | B16: NS | C16: 2 | D16: 1 | E16: NS21Y | H16: > 600km and ≤ 900km | I16: < 500V | J16: 65.31 | K16: 74.45 | L16: 50.67 | M16: 57.76 | N16: 136.6 | O16: 155.72 | P16: 17.56 | Q16: 20.02 | R16: 7.33 | S16: 8.36
A17: Nightsave Small | B17: NS | C17: 2 | D17: 2 | E17: NS22Y | I17: ≥ 500V & < 66kV | J17: 62.34 | K17: 71.07 | L17: 48.65 | M17: 55.46 | N17: 132.21 | O17: 150.72 | P17: 17 | Q17: 19.38 | R17: 6.69 | S17: 7.63
A18: Nightsave Small | B18: NS | C18: 2 | D18: 3 | E18: NS23Y | I18: ≥ 66kV & ≤ 132kV | J18: 61.88 | K18: 70.54 | L18: 48.06 | M18: 54.79 | N18: 127.37 | O18: 145.2 | P18: 16.38 | Q18: 18.67 | R18: 6.5 | S18: 7.41
A19: Nightsave Small | B19: NS | C19: 2 | D19: 4 | E19: NS24Y | I19: > 132kV* | J19: 57.89 | K19: 65.99 | L19: 45 | M19: 51.3 | N19: 122.85 | O19: 140.05 | P19: 15.8 | Q19: 18.01 | R19: 8.28 | S19: 9.44
A20: Nightsave Small | B20: NS | C20: 3 | D20: 1 | E20: NS31Y | H20: > 900km | I20: < 500V | J20: 66 | K20: 75.24 | L20: 51.18 | M20: 58.35 | N20: 137.98 | O20: 157.3 | P20: 17.74 | Q20: 20.22 | R20: 7.37 | S20: 8.4
A21: Nightsave Small | B21: NS | C21: 3 | D21: 2 | E21: NS32Y | I21: ≥ 500V & < 66kV | J21: 62.96 | K21: 71.77 | L21: 49.12 | M21: 56 | N21: 133.52 | O21: 152.21 | P21: 17.17 | Q21: 19.57 | R21: 6.76 | S21: 7.71
A22: Nightsave Small | B22: NS | C22: 3 | D22: 3 | E22: NS33Y | I22: ≥ 66kV & ≤ 132kV | J22: 62.5 | K22: 71.25 | L22: 48.53 | M22: 55.32 | N22: 128.66 | O22: 146.67 | P22: 16.55 | Q22: 18.87 | R22: 6.55 | S22: 7.47
A23: Nightsave Small | B23: NS | C23: 3 | D23: 4 | E23: NS34Y | I23: > 132kV* | J23: 58.51 | K23: 66.7 | L23: 45.5 | M23: 51.87 | N23: 124.14 | O23: 141.52 | P23: 15.98 | Q23: 18.22 | R23: 8.34 | S23: 9.51
I24: * 132 kV or Transmission connected
H26: Distribution network charges
J27: Network capacity charge [R/kVA/m] | L27: Network demand charge [R/kVA/m] | N27: Urban low voltage subsidy charge [R/kVA/m]
R28: Ancillary service charge [c/kWh]
A29: Tariff | B29: Tariff nameBillcode | C29: Tx zone | D29: Voltage | E29: Billcode | H29: Voltage | K29: VAT incl | M29: VAT incl | O29: VAT incl | Q29: Voltage | S29: VAT incl
A30: Nightsave Small | B30: NS | C30: 0 | D30: 1 | E30: =B30&C30&D30&IF($A$2="Non-municipal","N",IF($A$2="Municiple","Y","error")) -> NS01Y | H30: < 500V | J30: 14.36 | K30: =ROUND(J30 * (1 + VAT), 2) -> 16.37 | L30: 27.22 | M30: =ROUND(L30 * (1 + VAT), 2) -> 31.03 | N30: 0 | O30: =ROUND(N30 * (1 + VAT), 2) -> 0 | Q30: < 500V | R30: 0.33 | S30: =ROUND(R30 * (1 + VAT), 2) -> 0.38
A31: Nightsave Small | B31: NS | C31: 0 | D31: 2 | E31: =B31&C31&D31&IF($A$2="Non-municipal","N",IF($A$2="Municiple","Y","error")) -> NS02Y | H31: ≥ 500V & < 66kV | J31: 13.17 | K31: =ROUND(J31 * (1 + VAT), 2) -> 15.01 | L31: 24.97 | M31: =ROUND(L31 * (1 + VAT), 2) -> 28.47 | N31: 0 | O31: =ROUND(N31 * (1 + VAT), 2) -> 0 | Q31: ≥ 500V & < 66kV | R31: 0.32 | S31: =ROUND(R31 * (1 + VAT), 2) -> 0.36
A32: Nightsave Small | B32: NS | C32: 0 | D32: 3 | E32: NS03Y | H32: ≥ 66kV & ≤ 132kV | J32: 4.71 | K32: =ROUND(J32 * (1 + VAT), 2) -> 5.37 | L32: 8.71 | M32: =ROUND(L32 * (1 + VAT), 2) -> 9.93 | N32: 11.53 | O32: =ROUND(N32 * (1 + VAT), 2) -> 13.14 | Q32: ≥ 66kV & ≤ 132kV | R32: 0.31 | S32: =ROUND(R32 * (1 + VAT), 2) -> 0.35
A33: Nightsave Small | B33: NS | C33: 0 | D33: 4 | E33: NS04Y | H33: > 132kV / Transmission connected | J33: 0 | K33: =ROUND(J33 * (1 + VAT), 2) -> 0 | L33: 0 | M33: =ROUND(L33 * (1 + VAT), 2) -> 0 | N33: 11.53 | O33: =ROUND(N33 * (1 + VAT), 2) -> 13.14 | Q33: > 132kV* | R33: 0.29 | S33: =ROUND(R33 * (1 + VAT), 2) -> 0.33
Q34: * 132 kV or Transmission connected
H36: Customer categories | I36: Service charge [R/account/day] | K36: Administration charge [R/POD/day]
A38: Tariff | B38: Tariff nameBillcode | C38: Tx zone | D38: Voltage | E38: Billcode | J38: VAT incl | L38: VAT incl
A39: Nightsave Small | B39: NS | C39: 0 | D39: 1 | E39: =B39&C39&D39&IF($A$2="Non-municipal","N",IF($A$2="Municiple","Y","error")) -> NS01Y | H39: ≤ 100 kVA | I39: 11.66 | J39: =ROUND(I39 * (1 + VAT), 2) -> 13.29 | K39: 2.56 | L39: =ROUND(K39 * (1 + VAT), 2) -> 2.92
A40: Nightsave Small | B40: NS | C40: 0 | D40: 1 | E40: =B40&C40&D40&IF($A$2="Non-municipal","N",IF($A$2="Municiple","Y","error")) -> NS01Y | H40: > 100 kVA & ≤ 500 kVA | I40: 53.3 | J40: =ROUND(I40 * (1 + VAT), 2) -> 60.76 | K40: 14.94 | L40: =ROUND(K40 * (1 + VAT), 2) -> 17.03
A41: Nightsave Small | B41: NS | C41: 0 | D41: 1 | E41: =B41&C41&D41&IF($A$2="Non-municipal","N",IF($A$2="Municiple","Y","error")) -> NS01Y | H41: > 500 kVA & ≤ 1 MVA | I41: 164.04 | J41: =ROUND(I41 * (1 + VAT), 2) -> 187.01 | K41: 29.7 | L41: =ROUND(K41 * (1 + VAT), 2) -> 33.86
A42: Nightsave Small | B42: NS | C42: 0 | D42: 1 | E42: =B42&C42&D42&IF($A$2="Non-municipal","N",IF($A$2="Municiple","Y","error")) -> NS01Y | H42: Key customers | I42: 3214.52 | J42: =ROUND(I42 * (1 + VAT), 2) -> 3664.55 | K42: 102.66 | L42: =ROUND(K42 * (1 + VAT), 2) -> 117.03
H44: Electrification and rural network subsidy charge [c/kWh]
A47: Tariff | B47: Tariff nameBillcode | C47: Tx zone | D47: Voltage | E47: Billcode | I47: VAT incl
A48: Nightsave Small | B48: NS | C48: 0 | D48: 1 | E48: =B48&C48&D48&IF($A$2="Non-municipal","N",IF($A$2="Municiple","Y","error")) -> NS01Y | H48: 6.39 | I48: =ROUND(H48 * (1 + VAT), 2) -> 7.28

Sheet Megaflex inc
G1: Back to menu
A2: Non-municipal | G2: Megaflex tariff | R2: Non-local authority | AF2: =SUM(J8:T23,V8:V23,#REF!,#REF!,#REF!,#REF!,H26:J26,L26) ->  | AG2: check value
J4: Active energy charge [c/kWh] | V4: Transmission network charges [R/kVA/m]
H5: Transmission zone | J5: High demand season [Jun - Aug] | P5: Low demand season [Sep - May]
I6: Voltage | J6: Peak | L6: Standard | N6: Off Peak | P6: Peak | R6: Standard | T6: Off Peak
A7: Tariff | B7: Tariff nameBillcode | C7: Tx zone | D7: Voltage | E7: Billcode | K7: VAT incl | M7: VAT incl | O7: VAT incl | Q7: VAT incl | S7: VAT incl | U7: VAT incl | W7: VAT incl
A8: Megaflex | B8: Me | C8: 0 | D8: 1 | E8: =B8&C8&D8&IF($A$2="Non-municipal","N",IF($A$2="Municiple","Y","error")) -> Me01N | H8: ≤ 300km | I8: < 500V | J8: 248.94 | K8: =ROUND(J8 * (1 + VAT), 2) -> 283.79 | L8: 75.74 | M8: =ROUND(L8 * (1 + VAT), 2) -> 86.34 | N8: 41.35 | O8: =ROUND(N8 * (1 + VAT), 2) -> 47.14 | P8: 81.52 | Q8: =ROUND(P8 * (1 + VAT), 2) -> 92.93 | R8: 56.25 | S8: =ROUND(R8 * (1 + VAT), 2) -> 64.13 | T8: 35.86 | U8: =ROUND(T8 * (1 + VAT), 2) -> 40.88 | V8: 7.12 | W8: =ROUND(V8 * (1 + VAT), 2) -> 8.12
A9: Megaflex | B9: Me | C9: 0 | D9: 2 | E9: =B9&C9&D9&IF($A$2="Non-municipal","N",IF($A$2="Municiple","Y","error")) -> Me02N | I9: ≥ 500V & < 66kV | J9: 245.03 | K9: 279.33 | L9: 74.23 | M9: 84.62 | N9: 40.31 | O9: 45.95 | P9: 79.93 | Q9: 91.12 | R9: 55.02 | S9: 62.72 | T9: 34.9 | U9: 39.79 | V9: 6.51 | W9: 7.42
A10: Megaflex | B10: Me | C10: 0 | D10: 3 | E10: Me03N | I10: ≥ 66kV & ≤ 132kV | J10: 237.28 | K10: 270.5 | L10: 71.87 | M10: 81.93 | N10: 39.04 | O10: 44.51 | P10: 77.41 | Q10: 88.25 | R10: 53.27 | S10: 60.73 | T10: 33.8 | U10: 38.53 | V10: 6.34 | W10: 7.23
A11: Megaflex | B11: Me | C11: 0 | D11: 4 | E11: Me04N | I11: > 132kV* | J11: 223.63 | K11: 254.94 | L11: 67.74 | M11: 77.22 | N11: 36.79 | O11: 41.94 | P11: 72.96 | Q11: 83.17 | R11: 50.2 | S11: 57.23 | T11: 31.86 | U11: 36.32 | V11: 8.01 | W11: 9.13
A12: Megaflex | B12: Me | C12: 1 | D12: 1 | E12: Me11N | H12: > 300km and ≤ 600km | I12: < 500V | J12: 250.97 | K12: 286.11 | L12: 76.04 | M12: 86.69 | N12: 41.29 | O12: 47.07 | P12: 81.87 | Q12: 93.33 | R12: 56.36 | S12: 64.25 | T12: 35.76 | U12: 40.77 | V12: 7.18 | W12: 8.19
A13: Megaflex | B13: Me | C13: 1 | D13: 2 | E13: Me12N | I13: ≥ 500V & < 66kV | J13: 247.48 | K13: 282.13 | L13: 74.97 | M13: 85.47 | N13: 40.71 | O13: 46.41 | P13: 80.74 | Q13: 92.04 | R13: 55.56 | S13: 63.34 | T13: 35.25 | U13: 40.19 | V13: 6.57 | W13: 7.49
A14: Megaflex | B14: Me | C14: 1 | D14: 3 | E14: Me13N | I14: ≥ 66kV & ≤ 132kV | J14: 239.61 | K14: 273.16 | L14: 72.58 | M14: 82.74 | N14: 39.41 | O14: 44.93 | P14: 78.16 | Q14: 89.1 | R14: 53.79 | S14: 61.32 | T14: 34.12 | U14: 38.9 | V14: 6.39 | W14: 7.28
A15: Megaflex | B15: Me | C15: 1 | D15: 4 | E15: Me14N | I15: > 132kV* | J15: 225.86 | K15: 257.48 | L15: 68.43 | M15: 78.01 | N15: 37.14 | O15: 42.34 | P15: 73.67 | Q15: 83.98 | R15: 50.7 | S15: 57.8 | T15: 32.16 | U15: 36.66 | V15: 8.09 | W15: 9.22
A16: Megaflex | B16: Me | C16: 2 | D16: 1 | E16: Me21N | H16: > 600km and ≤ 900km | I16: < 500V | J16: 253.47 | K16: 288.96 | L16: 76.78 | M16: 87.53 | N16: 41.68 | O16: 47.52 | P16: 82.69 | Q16: 94.27 | R16: 56.91 | S16: 64.88 | T16: 36.09 | U16: 41.14 | V16: 7.27 | W16: 8.29
A17: Megaflex | B17: Me | C17: 2 | D17: 2 | E17: Me22N | I17: ≥ 500V & < 66kV | J17: 249.96 | K17: 284.95 | L17: 75.73 | M17: 86.33 | N17: 41.12 | O17: 46.88 | P17: 81.54 | Q17: 92.96 | R17: 56.12 | S17: 63.98 | T17: 35.6 | U17: 40.58 | V17: 6.63 | W17: 7.56
A18: Megaflex | B18: Me | C18: 2 | D18: 3 | E18: Me23N | I18: ≥ 66kV & ≤ 132kV | J18: 242.05 | K18: 275.94 | L18: 73.33 | M18: 83.6 | N18: 39.81 | O18: 45.38 | P18: 78.95 | Q18: 90 | R18: 54.34 | S18: 61.95 | T18: 34.47 | U18: 39.3 | V18: 6.43 | W18: 7.33
A19: Megaflex | B19: Me | C19: 2 | D19: 4 | E19: Me24N | I19: > 132kV* | J19: 228.14 | K19: 260.08 | L19: 69.1 | M19: 78.77 | N19: 37.54 | O19: 42.8 | P19: 74.42 | Q19: 84.84 | R19: 51.22 | S19: 58.39 | T19: 32.5 | U19: 37.05 | V19: 8.2 | W19: 9.35
A20: Megaflex | B20: Me | C20: 3 | D20: 1 | E20: Me31N | H20: > 900km | I20: < 500V | J20: 256.02 | K20: 291.86 | L20: 77.58 | M20: 88.44 | N20: 42.12 | O20: 48.02 | P20: 83.53 | Q20: 95.22 | R20: 57.48 | S20: 65.53 | T20: 36.48 | U20: 41.59 | V20: 7.29 | W20: 8.31
A21: Megaflex | B21: Me | C21: 3 | D21: 2 | E21: Me32N | I21: ≥ 500V & < 66kV | J21: 252.45 | K21: 287.79 | L21: 76.47 | M21: 87.18 | N21: 41.51 | O21: 47.32 | P21: 82.34 | Q21: 93.87 | R21: 56.66 | S21: 64.59 | T21: 35.95 | U21: 40.98 | V21: 6.71 | W21: 7.65
A22: Megaflex | B22: Me | C22: 3 | D22: 3 | E22: Me33N | I22: ≥ 66kV & ≤ 132kV | J22: 244.48 | K22: 278.71 | L22: 74.06 | M22: 84.43 | N22: 40.21 | O22: 45.84 | P22: 79.74 | Q22: 90.9 | R22: 54.89 | S22: 62.57 | T22: 34.82 | U22: 39.69 | V22: 6.48 | W22: 7.39
A23: Megaflex | B23: Me | C23: 3 | D23: 4 | E23: Me34N | I23: > 132kV* | J23: 230.37 | K23: 262.62 | L23: 69.82 | M23: 79.59 | N23: 37.93 | O23: 43.24 | P23: 75.19 | Q23: 85.72 | R23: 51.76 | S23: 59.01 | T23: 32.86 | U23: 37.46 | V23: 8.26 | W23: 9.42
I24: * 132 kV or Transmission connected
H26: Distribution network charges
J27: Network capacity charge [R/kVA/m] | L27: Network demand charge [R/kVA/m] | N27: Urban low voltage subsidy charge [R/kVA/m]
S28: Ancillary service charge [c/kWh]
A29: Tariff | B29: Tariff nameBillcode | C29: Tx zone | D29: Voltage | E29: Billcode | H29: Voltage | K29: VAT incl | M29: VAT incl | O29: VAT incl | Q29: Voltage | T29: VAT incl
A30: Megaflex | B30: Me | C30: 0 | D30: 1 | E30: =B30&C30&D30&IF($A$2="Non-municipal","N",IF($A$2="Municiple","Y","error")) -> Me01N | H30: < 500V | J30: 14.15 | K30: =ROUND(J30 * (1 + VAT), 2) -> 16.13 | L30: 26.83 | M30: =ROUND(L30 * (1 + VAT), 2) -> 30.59 | N30: 0 | O30: =ROUND(N30 * (1 + VAT), 2) -> 0 | Q30: < 500V | S30: 0.33 | T30: =ROUND(S30 * (1 + VAT), 2) -> 0.38
A31: Megaflex | B31: Me | C31: 0 | D31: 2 | E31: =B31&C31&D31&IF($A$2="Non-municipal","N",IF($A$2="Municiple","Y","error")) -> Me02N | H31: ≥ 500V & < 66kV | J31: 12.98 | K31: =ROUND(J31 * (1 + VAT), 2) -> 14.8 | L31: 24.62 | M31: =ROUND(L31 * (1 + VAT), 2) -> 28.07 | N31: 0 | O31: =ROUND(N31 * (1 + VAT), 2) -> 0 | Q31: ≥ 500V & < 66kV | S31: 0.32 | T31: =ROUND(S31 * (1 + VAT), 2) -> 0.36
A32: Megaflex | B32: Me | C32: 0 | D32: 3 | E32: Me03N | H32: ≥ 66kV & ≤ 132kV | J32: 4.63 | K32: =ROUND(J32 * (1 + VAT), 2) -> 5.28 | L32: 8.58 | M32: =ROUND(L32 * (1 + VAT), 2) -> 9.78 | N32: 11.43 | O32: =ROUND(N32 * (1 + VAT), 2) -> 13.03 | Q32: ≥ 66kV & ≤ 132kV | S32: 0.3 | T32: =ROUND(S32 * (1 + VAT), 2) -> 0.34
A33: Megaflex | B33: Me | C33: 0 | D33: 4 | E33: Me04N | H33: > 132kV / Transmission connected | J33: 0 | K33: =ROUND(J33 * (1 + VAT), 2) -> 0 | L33: 0 | M33: =ROUND(L33 * (1 + VAT), 2) -> 0 | N33: 11.43 | O33: =ROUND(N33 * (1 + VAT), 2) -> 13.03 | Q33: > 132kV / Transmission connected | S33: 0.28 | T33: =ROUND(S33 * (1 + VAT), 2) -> 0.32
H36: Customer categories | J36: Service charge [R/account/day] | L36: Administration charge [R/POD/day] | Q36: Reactive energy charge [c/kVArh]
Q37: High season | S37: Low season
A38: Tariff | B38: Tariff nameBillcode | C38: Tx zone | D38: Voltage | E38: Billcode | K38: VAT incl | M38: VAT incl | R38: VAT incl | T38: VAT incl
A39: Megaflex | B39: Me | C39: 0 | D39: 1 | E39: =B39&C39&D39&IF($A$2="Non-municipal","N",IF($A$2="Municiple","Y","error")) -> Me01N | H39: > 1 MVA | J39: 162.48 | K39: =ROUND(J39 * (1 + VAT), 2) -> 185.23 | L39: 73.23 | M39: =ROUND(L39 * (1 + VAT), 2) -> 83.48 | Q39: 11.44 | R39: =ROUND(Q39 * (1 + VAT), 2) -> 13.04 | S39: 0 | T39: =ROUND(S39 * (1 + VAT), 2) -> 0
A40: Megaflex | B40: Me | C40: 0 | D40: 1 | E40: =B40&C40&D40&IF($A$2="Non-municipal","N",IF($A$2="Municiple","Y","error")) -> Me01N | H40: Key customers | J40: 3183.88 | K40: =ROUND(J40 * (1 + VAT), 2) -> 3629.62 | L40: 101.68 | M40: =ROUND(L40 * (1 + VAT), 2) -> 115.92
H42: Electrification and rural network subsidy charge [c/kWh] | J42: Affordability subsidy charge [c/kWh] Only payable by non-local authority tariffs
H44: All seasons | J44: All seasons
A45: Tariff | B45: Tariff nameBillcode | C45: Tx zone | D45: Voltage | E45: Billcode | I45: VAT incl | K45: VAT incl
A46: Megaflex | B46: Me | C46: 0 | D46: 1 | E46: =B46&C46&D46&IF($A$2="Non-municipal","N",IF($A$2="Municiple","Y","error")) -> Me01N | H46: 6.33 | I46: =ROUND(H46 * (1 + VAT), 2) -> 7.22 | J46: 2.44 | K46: =ROUND(J46 * (1 + VAT), 2) -> 2.78

Sheet Megaflex Munic inc
G1: Back to menu
A2: Municiple | G2: Megaflex tariff | R2: Local authority | AF2: =SUM(J8:T23,V8:V23,#REF!,#REF!,#REF!,#REF!,H26:J26,L26) ->  | AG2: check value
J4: Active energy charge [c/kWh] | V4: Transmission network charges [R/kVA/m]
H5: Transmission zone | J5: High demand season [Jun - Aug] | P5: Low demand season [Sep - May]
I6: Voltage | J6: Peak | L6: Standard | N6: Off Peak | P6: Peak | R6: Standard | T6: Off Peak
A7: Tariff | B7: Tariff nameBillcode | C7: Tx zone | D7: Voltage | E7: Billcode | K7: VAT incl | M7: VAT incl | O7: VAT incl | Q7: VAT incl | S7: VAT incl | U7: VAT incl | W7: VAT incl
A8: Megaflex | B8: Me | C8: 0 | D8: 1 | E8: =B8&C8&D8&IF($A$2="Non-municipal","N",IF($A$2="Municiple","Y","error")) -> Me01Y | H8: ≤ 300km | I8: < 500V | J8: 258.53 | K8: =ROUND(J8 * (1 + VAT), 2) -> 294.72 | L8: 78.67 | M8: =ROUND(L8 * (1 + VAT), 2) -> 89.68 | N8: 42.93 | O8: =ROUND(N8 * (1 + VAT), 2) -> 48.94 | P8: 84.65 | Q8: =ROUND(P8 * (1 + VAT), 2) -> 96.5 | R8: 58.41 | S8: =ROUND(R8 * (1 + VAT), 2) -> 66.59 | T8: 37.23 | U8: =ROUND(T8 * (1 + VAT), 2) -> 42.44 | V8: 7.2 | W8: =ROUND(V8 * (1 + VAT), 2) -> 8.21
A9: Megaflex | B9: Me | C9: 0 | D9: 2 | E9: =B9&C9&D9&IF($A$2="Non-municipal","N",IF($A$2="Municiple","Y","error")) -> Me02Y | I9: ≥ 500V & < 66kV | J9: 254.45 | K9: 290.07 | L9: 77.09 | M9: 87.88 | N9: 41.86 | O9: 47.72 | P9: 83.01 | Q9: 94.63 | R9: 57.13 | S9: 65.13 | T9: 36.25 | U9: 41.33 | V9: 6.57 | W9: 7.49
A10: Megaflex | B10: Me | C10: 0 | D10: 3 | E10: Me03Y | I10: ≥ 66kV & ≤ 132kV | J10: 246.42 | K10: 280.92 | L10: 74.64 | M10: 85.09 | N10: 40.53 | O10: 46.2 | P10: 80.38 | Q10: 91.63 | R10: 55.33 | S10: 63.08 | T10: 35.09 | U10: 40 | V10: 6.4 | W10: 7.3
A11: Megaflex | B11: Me | C11: 0 | D11: 4 | E11: Me04Y | I11: > 132kV* | J11: 232.24 | K11: 264.75 | L11: 70.35 | M11: 80.2 | N11: 38.2 | O11: 43.55 | P11: 75.76 | Q11: 86.37 | R11: 52.14 | S11: 59.44 | T11: 33.08 | U11: 37.71 | V11: 8.09 | W11: 9.22
A12: Megaflex | B12: Me | C12: 1 | D12: 1 | E12: Me11Y | H12: > 300km and ≤ 600km | I12: < 500V | J12: 260.63 | K12: 297.12 | L12: 78.96 | M12: 90.01 | N12: 42.87 | O12: 48.87 | P12: 85.03 | Q12: 96.93 | R12: 58.53 | S12: 66.72 | T12: 37.13 | U12: 42.33 | V12: 7.24 | W12: 8.25
A13: Megaflex | B13: Me | C13: 1 | D13: 2 | E13: Me12Y | I13: ≥ 500V & < 66kV | J13: 256.99 | K13: 292.97 | L13: 77.85 | M13: 88.75 | N13: 42.28 | O13: 48.2 | P13: 83.84 | Q13: 95.58 | R13: 57.7 | S13: 65.78 | T13: 36.6 | U13: 41.72 | V13: 6.64 | W13: 7.57
A14: Megaflex | B14: Me | C14: 1 | D14: 3 | E14: Me13Y | I14: ≥ 66kV & ≤ 132kV | J14: 248.83 | K14: 283.67 | L14: 75.38 | M14: 85.93 | N14: 40.92 | O14: 46.65 | P14: 81.17 | Q14: 92.53 | R14: 55.86 | S14: 63.68 | T14: 35.43 | U14: 40.39 | V14: 6.44 | W14: 7.34
A15: Megaflex | B15: Me | C15: 1 | D15: 4 | E15: Me14Y | I15: > 132kV* | J15: 234.55 | K15: 267.39 | L15: 71.06 | M15: 81.01 | N15: 38.58 | O15: 43.98 | P15: 76.5 | Q15: 87.21 | R15: 52.66 | S15: 60.03 | T15: 33.4 | U15: 38.08 | V15: 8.17 | W15: 9.31
A16: Megaflex | B16: Me | C16: 2 | D16: 1 | E16: Me21Y | H16: > 600km and ≤ 900km | I16: < 500V | J16: 263.23 | K16: 300.08 | L16: 79.74 | M16: 90.9 | N16: 43.3 | O16: 49.36 | P16: 85.86 | Q16: 97.88 | R16: 59.1 | S16: 67.37 | T16: 37.49 | U16: 42.74 | V16: 7.33 | W16: 8.36
A17: Megaflex | B17: Me | C17: 2 | D17: 2 | E17: Me22Y | I17: ≥ 500V & < 66kV | J17: 259.58 | K17: 295.92 | L17: 78.63 | M17: 89.64 | N17: 42.7 | O17: 48.68 | P17: 84.69 | Q17: 96.55 | R17: 58.26 | S17: 66.42 | T17: 36.97 | U17: 42.15 | V17: 6.69 | W17: 7.63
A18: Megaflex | B18: Me | C18: 2 | D18: 3 | E18: Me23Y | I18: ≥ 66kV & ≤ 132kV | J18: 251.36 | K18: 286.55 | L18: 76.14 | M18: 86.8 | N18: 41.34 | O18: 47.13 | P18: 81.98 | Q18: 93.46 | R18: 56.42 | S18: 64.32 | T18: 35.79 | U18: 40.8 | V18: 6.5 | W18: 7.41
A19: Megaflex | B19: Me | C19: 2 | D19: 4 | E19: Me24Y | I19: > 132kV* | J19: 236.91 | K19: 270.08 | L19: 71.78 | M19: 81.83 | N19: 38.97 | O19: 44.43 | P19: 77.29 | Q19: 88.11 | R19: 53.19 | S19: 60.64 | T19: 33.75 | U19: 38.48 | V19: 8.28 | W19: 9.44
A20: Megaflex | B20: Me | C20: 3 | D20: 1 | E20: Me31Y | H20: > 900km | I20: < 500V | J20: 265.87 | K20: 303.09 | L20: 80.55 | M20: 91.83 | N20: 43.74 | O20: 49.86 | P20: 86.73 | Q20: 98.87 | R20: 59.69 | S20: 68.05 | T20: 37.87 | U20: 43.17 | V20: 7.37 | W20: 8.4
A21: Megaflex | B21: Me | C21: 3 | D21: 2 | E21: Me32Y | I21: ≥ 500V & < 66kV | J21: 262.17 | K21: 298.87 | L21: 79.41 | M21: 90.53 | N21: 43.13 | O21: 49.17 | P21: 85.51 | Q21: 97.48 | R21: 58.85 | S21: 67.09 | T21: 37.33 | U21: 42.56 | V21: 6.76 | W21: 7.71
A22: Megaflex | B22: Me | C22: 3 | D22: 3 | E22: Me33Y | I22: ≥ 66kV & ≤ 132kV | J22: 253.89 | K22: 289.43 | L22: 76.91 | M22: 87.68 | N22: 41.77 | O22: 47.62 | P22: 82.81 | Q22: 94.4 | R22: 56.99 | S22: 64.97 | T22: 36.16 | U22: 41.22 | V22: 6.55 | W22: 7.47
A23: Megaflex | B23: Me | C23: 3 | D23: 4 | E23: Me34Y | I23: > 132kV* | J23: 239.24 | K23: 272.73 | L23: 72.51 | M23: 82.66 | N23: 39.4 | O23: 44.92 | P23: 78.08 | Q23: 89.01 | R23: 53.75 | S23: 61.28 | T23: 34.12 | U23: 38.9 | V23: 8.34 | W23: 9.51
I24: * 132 kV or Transmission connected
H26: Distribution network charges
J27: Network capacity charge [R/kVA/m] | L27: Network demand charge [R/kVA/m] | N27: Urban low voltage subsidy charge [R/kVA/m]
S28: Ancillary service charge [c/kWh]
A29: Tariff | B29: Tariff nameBillcode | C29: Tx zone | D29: Voltage | E29: Billcode | H29: Voltage | K29: VAT incl | M29: VAT incl | O29: VAT incl | Q29: Voltage | T29: VAT incl
A30: Megaflex | B30: Me | C30: 0 | D30: 1 | E30: =B30&C30&D30&IF($A$2="Non-municipal","N",IF($A$2="Municiple","Y","error")) -> Me01Y | H30: < 500V | J30: 14.36 | K30: =ROUND(J30 * (1 + VAT), 2) -> 16.37 | L30: 27.22 | M30: =ROUND(L30 * (1 + VAT), 2) -> 31.03 | N30: 0 | O30: =ROUND(N30 * (1 + VAT), 2) -> 0 | Q30: < 500V | S30: 0.33 | T30: =ROUND(S30 * (1 + VAT), 2) -> 0.38
A31: Megaflex | B31: Me | C31: 0 | D31: 2 | E31: =B31&C31&D31&IF($A$2="Non-municipal","N",IF($A$2="Municiple","Y","error")) -> Me02Y | H31: ≥ 500V & < 66kV | J31: 13.17 | K31: =ROUND(J31 * (1 + VAT), 2) -> 15.01 | L31: 24.97 | M31: =ROUND(L31 * (1 + VAT), 2) -> 28.47 | N31: 0 | O31: =ROUND(N31 * (1 + VAT), 2) -> 0 | Q31: ≥ 500V & < 66kV | S31: 0.32 | T31: =ROUND(S31 * (1 + VAT), 2) -> 0.36
A32: Megaflex | B32: Me | C32: 0 | D32: 3 | E32: Me03Y | H32: ≥ 66kV & ≤ 132kV | J32: 4.71 | K32: =ROUND(J32 * (1 + VAT), 2) -> 5.37 | L32: 8.71 | M32: =ROUND(L32 * (1 + VAT), 2) -> 9.93 | N32: 11.53 | O32: =ROUND(N32 * (1 + VAT), 2) -> 13.14 | Q32: ≥ 66kV & ≤ 132kV | S32: 0.31 | T32: =ROUND(S32 * (1 + VAT), 2) -> 0.35
A33: Megaflex | B33: Me | C33: 0 | D33: 4 | E33: Me04Y | H33: > 132kV / Transmission connected | J33: 0 | K33: =ROUND(J33 * (1 + VAT), 2) -> 0 | L33: 0 | M33: =ROUND(L33 * (1 + VAT), 2) -> 0 | N33: 11.53 | O33: =ROUND(N33 * (1 + VAT), 2) -> 13.14 | Q33: > 132kV / Transmission connected | S33: 0.29 | T33: =ROUND(S33 * (1 + VAT), 2) -> 0.33
H36: Customer categories | J36: Service charge [R/account/day] | L36: Administration charge [R/POD/day] | Q36: Reactive energy charge [c/kVArh]
Q37: High season | S37: Low season
A38: Tariff | B38: Tariff nameBillcode | C38: Tx zone | D38: Voltage | E38: Billcode | K38: VAT incl | M38: VAT incl | R38: VAT incl | T38: VAT incl
A39: Megaflex | B39: Me | C39: 0 | D39: 1 | E39: =B39&C39&D39&IF($A$2="Non-municipal","N",IF($A$2="Municiple","Y","error")) -> Me01Y | H39: > 1 MVA | J39: 164.04 | K39: =ROUND(J39 * (1 + VAT), 2) -> 187.01 | L39: 73.94 | M39: =ROUND(L39 * (1 + VAT), 2) -> 84.29 | Q39: 11.54 | R39: =ROUND(Q39 * (1 + VAT), 2) -> 13.16 | S39: 0 | T39: =ROUND(S39 * (1 + VAT), 2) -> 0
A40: Megaflex | B40: Me | C40: 0 | D40: 1 | E40: =B40&C40&D40&IF($A$2="Non-municipal","N",IF($A$2="Municiple","Y","error")) -> Me01Y | H40: Key customers | J40: 3214.52 | K40: =ROUND(J40 * (1 + VAT), 2) -> 3664.55 | L40: 102.66 | M40: =ROUND(L40 * (1 + VAT), 2) -> 117.03
H42: Electrification and rural network subsidy charge [c/kWh]
H44: All seasons
A45: Tariff | B45: Tariff nameBillcode | C45: Tx zone | D45: Voltage | E45: Billcode | I45: VAT incl
A46: Megaflex | B46: Me | C46: 0 | D46: 1 | E46: =B46&C46&D46&IF($A$2="Non-municipal","N",IF($A$2="Municiple","Y","error")) -> Me01Y | H46: 6.39 | I46: =ROUND(H46 * (1 + VAT), 2) -> 7.28

Sheet Genflex Urban inc
G1: Back to menu
A2: Non-municipal | G2: Genflex Urban tariff | R2: =Menu!$H$7 -> Non-local authority
J4: Active energy charge [c/kWh] | V4: Transmission network charges [R/kVA/m]
H5: Transmission zone | J5: High demand season [Jun - Aug] | P5: Low demand season [Sep - May]
I6: Voltage | J6: Peak | L6: Standard | N6: Off Peak | P6: Peak | R6: Standard | T6: Off Peak
A7: Tariff | B7: Tariff nameBillcode | C7: Tx zone | D7: Voltage | E7: Billcode | K7: VAT incl | M7: VAT incl | O7: VAT incl | Q7: VAT incl | S7: VAT incl | U7: VAT incl | W7: VAT incl
A8: Genflex urban loads | B8: GU | C8: 0 | D8: 1 | E8: =B8&C8&D8&IF($A$2="Non-municipal","N",IF($A$2="Municiple","Y","error")) -> GU01N | H8: ≤ 300km | I8: < 500V | J8: 248.94 | K8: =ROUND(J8 * (1 + VAT), 2) -> 283.79 | L8: 75.74 | M8: =ROUND(L8 * (1 + VAT), 2) -> 86.34 | N8: 41.35 | O8: =ROUND(N8 * (1 + VAT), 2) -> 47.14 | P8: 81.52 | Q8: =ROUND(P8 * (1 + VAT), 2) -> 92.93 | R8: 56.25 | S8: =ROUND(R8 * (1 + VAT), 2) -> 64.13 | T8: 35.86 | U8: =ROUND(T8 * (1 + VAT), 2) -> 40.88 | V8: 7.12 | W8: =ROUND(V8 * (1 + VAT), 2) -> 8.12
A9: Genflex urban loads | B9: GU | C9: 0 | D9: 2 | E9: =B9&C9&D9&IF($A$2="Non-municipal","N",IF($A$2="Municiple","Y","error")) -> GU02N | I9: ≥ 500V & < 66kV | J9: 245.03 | K9: 279.33 | L9: 74.23 | M9: 84.62 | N9: 40.31 | O9: 45.95 | P9: 79.93 | Q9: 91.12 | R9: 55.02 | S9: 62.72 | T9: 34.9 | U9: 39.79 | V9: 6.51 | W9: 7.42
A10: Genflex urban loads | B10: GU | C10: 0 | D10: 3 | E10: GU03N | I10: ≥ 66kV & ≤ 132kV | J10: 237.28 | K10: 270.5 | L10: 71.87 | M10: 81.93 | N10: 39.04 | O10: 44.51 | P10: 77.41 | Q10: 88.25 | R10: 53.27 | S10: 60.73 | T10: 33.8 | U10: 38.53 | V10: 6.34 | W10: 7.23
A11: Genflex urban loads | B11: GU | C11: 0 | D11: 4 | E11: GU04N | I11: > 132kV* | J11: 223.63 | K11: 254.94 | L11: 67.74 | M11: 77.22 | N11: 36.79 | O11: 41.94 | P11: 72.96 | Q11: 83.17 | R11: 50.2 | S11: 57.23 | T11: 31.86 | U11: 36.32 | V11: 8.01 | W11: 9.13
A12: Genflex urban loads | B12: GU | C12: 1 | D12: 1 | E12: GU11N | H12: > 300km and ≤ 600km | I12: < 500V | J12: 250.97 | K12: 286.11 | L12: 76.04 | M12: 86.69 | N12: 41.29 | O12: 47.07 | P12: 81.87 | Q12: 93.33 | R12: 56.36 | S12: 64.25 | T12: 35.76 | U12: 40.77 | V12: 7.18 | W12: 8.19
A13: Genflex urban loads | B13: GU | C13: 1 | D13: 2 | E13: GU12N | I13: ≥ 500V & < 66kV | J13: 247.48 | K13: 282.13 | L13: 74.97 | M13: 85.47 | N13: 40.71 | O13: 46.41 | P13: 80.74 | Q13: 92.04 | R13: 55.56 | S13: 63.34 | T13: 35.25 | U13: 40.19 | V13: 6.57 | W13: 7.49
A14: Genflex urban loads | B14: GU | C14: 1 | D14: 3 | E14: GU13N | I14: ≥ 66kV & ≤ 132kV | J14: 239.61 | K14: 273.16 | L14: 72.58 | M14: 82.74 | N14: 39.41 | O14: 44.93 | P14: 78.16 | Q14: 89.1 | R14: 53.79 | S14: 61.32 | T14: 34.12 | U14: 38.9 | V14: 6.39 | W14: 7.28
A15: Genflex urban loads | B15: GU | C15: 1 | D15: 4 | E15: GU14N | I15: > 132kV* | J15: 225.86 | K15: 257.48 | L15: 68.43 | M15: 78.01 | N15: 37.14 | O15: 42.34 | P15: 73.67 | Q15: 83.98 | R15: 50.7 | S15: 57.8 | T15: 32.16 | U15: 36.66 | V15: 8.09 | W15: 9.22
A16: Genflex urban loads | B16: GU | C16: 2 | D16: 1 | E16: GU21N | H16: > 600km and ≤ 900km | I16: < 500V | J16: 253.47 | K16: 288.96 | L16: 76.78 | M16: 87.53 | N16: 41.68 | O16: 47.52 | P16: 82.69 | Q16: 94.27 | R16: 56.91 | S16: 64.88 | T16: 36.09 | U16: 41.14 | V16: 7.27 | W16: 8.29
A17: Genflex urban loads | B17: GU | C17: 2 | D17: 2 | E17: GU22N | I17: ≥ 500V & < 66kV | J17: 249.96 | K17: 284.95 | L17: 75.73 | M17: 86.33 | N17: 41.12 | O17: 46.88 | P17: 81.54 | Q17: 92.96 | R17: 56.12 | S17: 63.98 | T17: 35.6 | U17: 40.58 | V17: 6.63 | W17: 7.56
A18: Genflex urban loads | B18: GU | C18: 2 | D18: 3 | E18: GU23N | I18: ≥ 66kV & ≤ 132kV | J18: 242.05 | K18: 275.94 | L18: 73.33 | M18: 83.6 | N18: 39.81 | O18: 45.38 | P18: 78.95 | Q18: 90 | R18: 54.34 | S18: 61.95 | T18: 34.47 | U18: 39.3 | V18: 6.43 | W18: 7.33
A19: Genflex urban loads | B19: GU | C19: 2 | D19: 4 | E19: GU24N | I19: > 132kV* | J19: 228.14 | K19: 260.08 | L19: 69.1 | M19: 78.77 | N19: 37.54 | O19: 42.8 | P19: 74.42 | Q19: 84.84 | R19: 51.22 | S19: 58.39 | T19: 32.5 | U19: 37.05 | V19: 8.2 | W19: 9.35
A20: Genflex urban loads | B20: GU | C20: 3 | D20: 1 | E20: GU31N | H20: > 900km | I20: < 500V | J20: 256.02 | K20: 291.86 | L20: 77.58 | M20: 88.44 | N20: 42.12 | O20: 48.02 | P20: 83.53 | Q20: 95.22 | R20: 57.48 | S20: 65.53 | T20: 36.48 | U20: 41.59 | V20: 7.29 | W20: 8.31
A21: Genflex urban loads | B21: GU | C21: 3 | D21: 2 | E21: GU32N | I21: ≥ 500V & < 66kV | J21: 252.45 | K21: 287.79 | L21: 76.47 | M21: 87.18 | N21: 41.51 | O21: 47.32 | P21: 82.34 | Q21: 93.87 | R21: 56.66 | S21: 64.59 | T21: 35.95 | U21: 40.98 | V21: 6.71 | W21: 7.65
A22: Genflex urban loads | B22: GU | C22: 3 | D22: 3 | E22: GU33N | I22: ≥ 66kV & ≤ 132kV | J22: 244.48 | K22: 278.71 | L22: 74.06 | M22: 84.43 | N22: 40.21 | O22: 45.84 | P22: 79.74 | Q22: 90.9 | R22: 54.89 | S22: 62.57 | T22: 34.82 | U22: 39.69 | V22: 6.48 | W22: 7.39
A23: Genflex urban loads | B23: GU | C23: 3 | D23: 4 | E23: GU34N | I23: > 132kV* | J23: 230.37 | K23: 262.62 | L23: 69.82 | M23: 79.59 | N23: 37.93 | O23: 43.24 | P23: 75.19 | Q23: 85.72 | R23: 51.76 | S23: 59.01 | T23: 32.86 | U23: 37.46 | V23: 8.26 | W23: 9.42
A24: Gen-purchase | B24: NLPurchADJ | C24: 0 | D24: 4 | E24: NLPurchADJ04N | H24: WEPS energy rate excluding losses | J24: 221.2624913 | K24: 252.24 | L24: 67.02285545 | M24: =ROUND(L24 * (1 + VAT), 2) -> 76.41 | N24: 36.40051449 | O24: =ROUND(N24 * (1 + VAT), 2) -> 41.5 | P24: 72.18759276 | Q24: =ROUND(P24 * (1 + VAT), 2) -> 82.29 | R24: 49.66854655 | S24: =ROUND(R24 * (1 + VAT), 2) -> 56.62 | T24: 31.52270703 | U24: =ROUND(T24 * (1 + VAT), 2) -> 35.94
A25: TUoS network charges for Transmission connected generators | B25: GenTUOS | C25: Cape | D25: 4 | E25: GenTUOSCape4N | I25: * 132 kV or Transmission connected
A26: TUoS network charges for Transmission connected generators | B26: GenTUOS | C26: Karoo | D26: 4 | E26: GenTUOSKaroo4N
A27: TUoS network charges for Transmission connected generators | B27: GenTUOS | C27: Kwazulu-Natal | D27: 4 | E27: GenTUOSKwazulu-Natal4N | H27: Distribution network charges | Q27: Transmission network charges for Generators | U27: Distribution network charges for Generators
A28: TUoS network charges for Transmission connected generators | B28: GenTUOS | C28: Vaal | D28: 4 | E28: GenTUOSVaal4N | J28: Network capacity charge [R/kVA/m] | L28: Network demand charge [R/kVA/m] | N28: Urban low voltage subsidy charge [R/kVA/m]
A29: TUoS network charges for Transmission connected generators | B29: GenTUOS | C29: Waterburg | D29: 4 | E29: GenTUOSWaterburg4N | Q29: TUoS [ > 132kV] | S29: Network charge [R/kW] | W29: Network capacity charge [R/kW/m]
A30: TUoS network charges for Transmission connected generators | B30: GenTUOS | C30: Mpumalanga | D30: 4 | E30: GenTUOSMpumalanga4N | H30: Voltage | K30: VAT incl | M30: VAT incl | O30: VAT incl | T30: VAT incl
A31: Genflex urban loads | B31: GU | C31: 0 | D31: 1 | E31: =B31&C31&D31&IF($A$2="Non-municipal","N",IF($A$2="Municiple","Y","error")) -> GU01N | H31: < 500V | J31: 14.15 | K31: =ROUND(J31 * (1 + VAT), 2) -> 16.13 | L31: 26.83 | M31: =ROUND(L31 * (1 + VAT), 2) -> 30.59 | N31: 0 | O31: =ROUND(N31 * (1 + VAT), 2) -> 0 | R31: Cape | S31: 0 | T31: =ROUND(S31 * (1 + VAT), 2) -> 0 | U31: Voltage | X31: VAT incl
A32: Genflex urban loads | B32: GU | C32: 0 | D32: 2 | E32: =B32&C32&D32&IF($A$2="Non-municipal","N",IF($A$2="Municiple","Y","error")) -> GU02N | H32: ≥ 500V & < 66kV | J32: 12.98 | K32: =ROUND(J32 * (1 + VAT), 2) -> 14.8 | L32: 24.62 | M32: =ROUND(L32 * (1 + VAT), 2) -> 28.07 | N32: 0 | O32: =ROUND(N32 * (1 + VAT), 2) -> 0 | R32: Karoo | S32: 0 | T32: 0 | U32: < 500V
A33: Genflex urban loads | B33: GU | C33: 0 | D33: 3 | E33: GU03N | H33: ≥ 66kV & ≤ 132kV | J33: 4.63 | K33: =ROUND(J33 * (1 + VAT), 2) -> 5.28 | L33: 8.58 | M33: =ROUND(L33 * (1 + VAT), 2) -> 9.78 | N33: 11.43 | O33: =ROUND(N33 * (1 + VAT), 2) -> 13.03 | R33: Kwazulu-Natal | S33: 1.68 | T33: 1.92 | U33: ≥ 500V & < 66kV
A34: Genflex urban loads | B34: GU | C34: 0 | D34: 4 | E34: GU04N | H34: > 132kV / Transmission connected | J34: 0 | K34: =ROUND(J34 * (1 + VAT), 2) -> 0 | L34: 0 | M34: =ROUND(L34 * (1 + VAT), 2) -> 0 | N34: 11.43 | O34: =ROUND(N34 * (1 + VAT), 2) -> 13.03 | R34: Vaal | S34: 5.6 | T34: 6.38 | U34: ≥ 66kV & ≤ 132kV | W34: 11.44 | X34: =ROUND(W34 * (1 + VAT), 2) -> 13.04
A35: Gen-DUoS urban | B35: NEGenDUoSU | C35: 0 | D35: 3 | E35: NEGenDUoSU03N | R35: Waterberg | S35: 7.18 | T35: 8.19
R36: Mpumalanga | S36: 6.65 | T36: 7.58
H37: Customer categories | J37: Service charge [R/account/day] | L37: Administration charge [R/POD/day]
H38: [kVA or MVA = loads] | Q38: Ancillary service charge for Transmission and Distribution urbanp connected loads and generators
A39: Tariff | B39: Tariff nameBillcode | C39: Tx zone | D39: Voltage | E39: Billcode | H39: [kW or MW = generators] | K39: VAT incl | M39: VAT incl
A40: Genflex urban loads | B40: GU | C40: 0 | D40: 1 | E40: =B40&C40&D40&IF($A$2="Non-municipal","N",IF($A$2="Municiple","Y","error")) -> GU01N | H40: ≤ 100 KVA/ kW | J40: 11.55 | K40: =ROUND(J40 * (1 + VAT), 2) -> 13.17 | L40: 2.54 | M40: =ROUND(L40 * (1 + VAT), 2) -> 2.9 | S40: Ancillary service charge [c/kWh]
A41: Genflex urban loads | B41: GU | C41: 0 | D41: 1 | E41: =B41&C41&D41&IF($A$2="Non-municipal","N",IF($A$2="Municiple","Y","error")) -> GU01N | H41: > 100 kVA/ kW & ≤ 500 kVA/ kW | J41: 52.8 | K41: =ROUND(J41 * (1 + VAT), 2) -> 60.19 | L41: 14.8 | M41: =ROUND(L41 * (1 + VAT), 2) -> 16.87 | Q41: Voltage | T41: VAT incl
A42: Genflex urban loads | B42: GU | C42: 0 | D42: 1 | E42: GU01N | H42: > 500 kVA/ kW & ≤ 1 MVA/MW | J42: 162.48 | K42: =ROUND(J42 * (1 + VAT), 2) -> 185.23 | L42: 29.41 | M42: =ROUND(L42 * (1 + VAT), 2) -> 33.53 | Q42: < 500V | S42: 0.33 | T42: =ROUND(S42 * (1 + VAT), 2) -> 0.38
A43: Genflex urban loads | B43: GU | C43: 0 | D43: 1 | E43: GU01N | H43: > 1 MVA/MW | J43: 162.48 | K43: =ROUND(J43 * (1 + VAT), 2) -> 185.23 | L43: 73.23 | M43: =ROUND(L43 * (1 + VAT), 2) -> 83.48 | Q43: ≥ 500V & < 66kV | S43: 0.32 | T43: =ROUND(S43 * (1 + VAT), 2) -> 0.36
A44: Genflex urban loads | B44: GU | C44: 0 | D44: 1 | E44: =B44&C44&D44&IF($A$2="Non-municipal","N",IF($A$2="Municiple","Y","error")) -> GU01N | H44: Key customers or Transmission connected generators | J44: 3183.88 | K44: =ROUND(J44 * (1 + VAT), 2) -> 3629.62 | L44: 101.68 | M44: =ROUND(L44 * (1 + VAT), 2) -> 115.92 | Q44: ≥ 66kV & ≤ 132kV | S44: 0.3 | T44: =ROUND(S44 * (1 + VAT), 2) -> 0.34
Q45: > 132kV / Transmission connected | S45: 0.28 | T45: =ROUND(S45 * (1 + VAT), 2) -> 0.32
H47: Electrification and rural network subsidy charge [c/kWh] | J47: Affordability subsidy charge [c/kWh] Only payable by non-local authority tariffs | Q47: Reactive energy charge [c/kVArh]
Q48: High season | S48: Low season
H49: All seasons | J49: All seasons | R49: VAT incl | T49: VAT incl
A50: Tariff | B50: Tariff nameBillcode | C50: Tx zone | D50: Voltage | E50: Billcode | I50: VAT incl | K50: VAT incl | Q50: 11.44 | R50: =ROUND(Q50 * (1 + VAT), 2) -> 13.04 | S50: 0 | T50: =ROUND(S50 * (1 + VAT), 2) -> 0
A51: Genflex urban loads | B51: GU | C51: 0 | D51: 1 | E51: =B51&C51&D51&IF($A$2="Non-municipal","N",IF($A$2="Municiple","Y","error")) -> GU01N | H51: 6.33 | I51: =ROUND(H51 * (1 + VAT), 2) -> 7.22 | J51: 2.44 | K51: =ROUND(J51 * (1 + VAT), 2) -> 2.78

Sheet Miniflex inc
G1: Back to menu
A2: Non-municipal | G2: Miniflex tariff | T2: Non-local authority
J4: Active energy charge [c/kWh] | V4: Network capacity charge [R/kVA/m]
H5: Transmission zone | J5: High demand season [Jun - Aug] | P5: Low demand season [Sep - May]
I6: Voltage | J6: Peak | L6: Standard | N6: Off Peak | P6: Peak | R6: Standard | T6: Off Peak
A7: Tariff | B7: Tariff nameBillcode | C7: Tx zone | D7: Voltage | E7: Billcode | K7: VAT incl | M7: VAT incl | O7: VAT incl | Q7: VAT incl | S7: VAT incl | U7: VAT incl | W7: VAT incl
A8: Miniflex | B8: Mi | C8: 0 | D8: 1 | E8: =B8&C8&D8&IF($A$2="Non-municipal","N",IF($A$2="Municiple","Y","error")) -> Mi01N | H8: ≤ 300km | I8: < 500V | J8: 248.94 | K8: =ROUND(J8 * (1 + VAT), 2) -> 283.79 | L8: 75.74 | M8: =ROUND(L8 * (1 + VAT), 2) -> 86.34 | N8: 41.35 | O8: =ROUND(N8 * (1 + VAT), 2) -> 47.14 | P8: 81.52 | Q8: =ROUND(P8 * (1 + VAT), 2) -> 92.93 | R8: 56.25 | S8: =ROUND(R8 * (1 + VAT), 2) -> 64.13 | T8: 35.86 | U8: =ROUND(T8 * (1 + VAT), 2) -> 40.88 | V8: 21.25 | W8: =ROUND(V8 * (1 + VAT), 2) -> 24.23
A9: Miniflex | B9: Mi | C9: 0 | D9: 2 | E9: =B9&C9&D9&IF($A$2="Non-municipal","N",IF($A$2="Municiple","Y","error")) -> Mi02N | I9: ≥ 500V & < 66kV | J9: 245.03 | K9: 279.33 | L9: 74.23 | M9: 84.62 | N9: 40.31 | O9: 45.95 | P9: 79.93 | Q9: 91.12 | R9: 55.02 | S9: 62.72 | T9: 34.9 | U9: 39.79 | V9: 19.47 | W9: 22.2
A10: Miniflex | B10: Mi | C10: 0 | D10: 3 | E10: Mi03N | I10: ≥ 66kV & ≤ 132kV | J10: 237.28 | K10: 270.5 | L10: 71.87 | M10: 81.93 | N10: 39.04 | O10: 44.51 | P10: 77.41 | Q10: 88.25 | R10: 53.27 | S10: 60.73 | T10: 33.8 | U10: 38.53 | V10: 10.94 | W10: 12.47
A11: Miniflex | B11: Mi | C11: 0 | D11: 4 | E11: Mi04N | I11: > 132kV* | J11: 223.63 | K11: 254.94 | L11: 67.74 | M11: 77.22 | N11: 36.79 | O11: 41.94 | P11: 72.96 | Q11: 83.17 | R11: 50.2 | S11: 57.23 | T11: 31.86 | U11: 36.32 | V11: 7.97 | W11: 9.09
A12: Miniflex | B12: Mi | C12: 1 | D12: 1 | E12: Mi11N | H12: > 300km and ≤ 600km | I12: < 500V | J12: 250.97 | K12: 286.11 | L12: 76.04 | M12: 86.69 | N12: 41.29 | O12: 47.07 | P12: 81.87 | Q12: 93.33 | R12: 56.36 | S12: 64.25 | T12: 35.76 | U12: 40.77 | V12: 21.3 | W12: 24.28
A13: Miniflex | B13: Mi | C13: 1 | D13: 2 | E13: Mi12N | I13: ≥ 500V & < 66kV | J13: 247.48 | K13: 282.13 | L13: 74.97 | M13: 85.47 | N13: 40.71 | O13: 46.41 | P13: 80.74 | Q13: 92.04 | R13: 55.56 | S13: 63.34 | T13: 35.25 | U13: 40.19 | V13: 19.53 | W13: 22.26
A14: Miniflex | B14: Mi | C14: 1 | D14: 3 | E14: Mi13N | I14: ≥ 66kV & ≤ 132kV | J14: 239.61 | K14: 273.16 | L14: 72.58 | M14: 82.74 | N14: 39.41 | O14: 44.93 | P14: 78.16 | Q14: 89.1 | R14: 53.79 | S14: 61.32 | T14: 34.12 | U14: 38.9 | V14: 10.99 | W14: 12.53
A15: Miniflex | B15: Mi | C15: 1 | D15: 4 | E15: Mi14N | I15: > 132kV* | J15: 225.86 | K15: 257.48 | L15: 68.43 | M15: 78.01 | N15: 37.14 | O15: 42.34 | P15: 73.67 | Q15: 83.98 | R15: 50.7 | S15: 57.8 | T15: 32.16 | U15: 36.66 | V15: 8.06 | W15: 9.19
A16: Miniflex | B16: Mi | C16: 2 | D16: 1 | E16: Mi21N | H16: > 600km and ≤ 900km | I16: < 500V | J16: 253.47 | K16: 288.96 | L16: 76.78 | M16: 87.53 | N16: 41.68 | O16: 47.52 | P16: 82.69 | Q16: 94.27 | R16: 56.91 | S16: 64.88 | T16: 36.09 | U16: 41.14 | V16: 21.4 | W16: 24.4
A17: Miniflex | B17: Mi | C17: 2 | D17: 2 | E17: Mi22N | I17: ≥ 500V & < 66kV | J17: 249.96 | K17: 284.95 | L17: 75.73 | M17: 86.33 | N17: 41.12 | O17: 46.88 | P17: 81.54 | Q17: 92.96 | R17: 56.12 | S17: 63.98 | T17: 35.6 | U17: 40.58 | V17: 19.59 | W17: 22.33
A18: Miniflex | B18: Mi | C18: 2 | D18: 3 | E18: Mi23N | I18: ≥ 66kV & ≤ 132kV | J18: 242.05 | K18: 275.94 | L18: 73.33 | M18: 83.6 | N18: 39.81 | O18: 45.38 | P18: 78.95 | Q18: 90 | R18: 54.34 | S18: 61.95 | T18: 34.47 | U18: 39.3 | V18: 11.04 | W18: 12.59
A19: Miniflex | B19: Mi | C19: 2 | D19: 4 | E19: Mi24N | I19: > 132kV* | J19: 228.14 | K19: 260.08 | L19: 69.1 | M19: 78.77 | N19: 37.54 | O19: 42.8 | P19: 74.42 | Q19: 84.84 | R19: 51.22 | S19: 58.39 | T19: 32.5 | U19: 37.05 | V19: 8.17 | W19: 9.31
A20: Miniflex | B20: Mi | C20: 3 | D20: 1 | E20: Mi31N | H20: > 900km | I20: < 500V | J20: 256.02 | K20: 291.86 | L20: 77.58 | M20: 88.44 | N20: 42.12 | O20: 48.02 | P20: 83.53 | Q20: 95.22 | R20: 57.48 | S20: 65.53 | T20: 36.48 | U20: 41.59 | V20: 21.42 | W20: 24.42
A21: Miniflex | B21: Mi | C21: 3 | D21: 2 | E21: Mi32N | I21: ≥ 500V & < 66kV | J21: 252.45 | K21: 287.79 | L21: 76.47 | M21: 87.18 | N21: 41.51 | O21: 47.32 | P21: 82.34 | Q21: 93.87 | R21: 56.66 | S21: 64.59 | T21: 35.95 | U21: 40.98 | V21: 19.66 | W21: 22.41
A22: Miniflex | B22: Mi | C22: 3 | D22: 3 | E22: Mi33N | I22: ≥ 66kV & ≤ 132kV | J22: 244.48 | K22: 278.71 | L22: 74.06 | M22: 84.43 | N22: 40.21 | O22: 45.84 | P22: 79.74 | Q22: 90.9 | R22: 54.89 | S22: 62.57 | T22: 34.82 | U22: 39.69 | V22: 11.09 | W22: 12.64
A23: Miniflex | B23: Mi | C23: 3 | D23: 4 | E23: Mi34N | I23: > 132kV* | J23: 230.37 | K23: 262.62 | L23: 69.82 | M23: 79.59 | N23: 37.93 | O23: 43.24 | P23: 75.19 | Q23: 85.72 | R23: 51.76 | S23: 59.01 | T23: 32.86 | U23: 37.46 | V23: 8.23 | W23: 9.38
I24: * 132 kV or Transmission connected
H26: Customer categories | J26: Service charge [R/account/day] | L26: Administration charge [R/POD/day]
A28: Tariff | B28: Tariff nameBillcode | C28: Tx zone | D28: Voltage | E28: Billcode | K28: VAT incl | M28: VAT incl | P28: Ancillary service charge [c/kWh] | R28: Network demand charge [c/kWh] [Peak & Standard] | U28: Urban low voltage subsidy charge [R/kVA/m]
A29: Miniflex | B29: Mi | C29: 0 | D29: 1 | E29: =B29&C29&D29&IF($A$2="Non-municipal","N",IF($A$2="Municiple","Y","error")) -> Mi01N | H29: ≤ 100 kVA | J29: 11.55 | K29: =ROUND(J29 * (1 + VAT), 2) -> 13.17 | L29: 2.54 | M29: =ROUND(L29 * (1 + VAT), 2) -> 2.9 | O29: Voltage | Q29: VAT incl | S29: VAT incl | W29: VAT incl
A30: Miniflex | B30: Mi | C30: 0 | D30: 1 | E30: =B30&C30&D30&IF($A$2="Non-municipal","N",IF($A$2="Municiple","Y","error")) -> Mi01N | H30: > 100 kVA & ≤ 500 kVA | J30: 52.8 | K30: =ROUND(J30 * (1 + VAT), 2) -> 60.19 | L30: 14.8 | M30: =ROUND(L30 * (1 + VAT), 2) -> 16.87 | O30: < 500V | P30: 0.33 | Q30: =ROUND(P30 * (1 + VAT), 2) -> 0.38 | R30: 13.14 | S30: =ROUND(R30 * (1 + VAT), 2) -> 14.98 | U30: < 500V | V30: 0 | W30: =ROUND(V30 * (1 + VAT), 2) -> 0
A31: Miniflex | B31: Mi | C31: 0 | D31: 1 | E31: =B31&C31&D31&IF($A$2="Non-municipal","N",IF($A$2="Municiple","Y","error")) -> Mi01N | H31: > 500 kVA & ≤ 1 MVA | J31: 162.48 | K31: =ROUND(J31 * (1 + VAT), 2) -> 185.23 | L31: 29.41 | M31: =ROUND(L31 * (1 + VAT), 2) -> 33.53 | O31: ≥ 500V & < 66kV | P31: 0.32 | Q31: =ROUND(P31 * (1 + VAT), 2) -> 0.36 | R31: 5.51 | S31: =ROUND(R31 * (1 + VAT), 2) -> 6.28 | U31: ≥ 500V & < 66kV | V31: 0 | W31: =ROUND(V31 * (1 + VAT), 2) -> 0
A32: Miniflex | B32: Mi | C32: 0 | D32: 1 | E32: =B32&C32&D32&IF($A$2="Non-municipal","N",IF($A$2="Municiple","Y","error")) -> Mi01N | H32: > 1 MVA | J32: 162.48 | K32: =ROUND(J32 * (1 + VAT), 2) -> 185.23 | L32: 73.23 | M32: =ROUND(L32 * (1 + VAT), 2) -> 83.48 | O32: ≥ 66kV & ≤ 132kV | P32: 0.3 | Q32: =ROUND(P32 * (1 + VAT), 2) -> 0.34 | R32: 1.92 | S32: =ROUND(R32 * (1 + VAT), 2) -> 2.19 | U32: ≥ 66kV & ≤ 132kV | V32: 11.43 | W32: =ROUND(V32 * (1 + VAT), 2) -> 13.03
A33: Miniflex | B33: Mi | C33: 0 | D33: 1 | E33: =B33&C33&D33&IF($A$2="Non-municipal","N",IF($A$2="Municiple","Y","error")) -> Mi01N | H33: Key customers | J33: 3183.88 | K33: =ROUND(J33 * (1 + VAT), 2) -> 3629.62 | L33: 101.68 | M33: =ROUND(L33 * (1 + VAT), 2) -> 115.92 | O33: > 132kV* | P33: 0.28 | Q33: =ROUND(P33 * (1 + VAT), 2) -> 0.32 | R33: 0 | S33: =ROUND(R33 * (1 + VAT), 2) -> 0 | U33: > 132kV* | V33: 11.43 | W33: =ROUND(V33 * (1 + VAT), 2) -> 13.03
O34: * 132 kV or Transmission connected | U34: * 132 kV or Transmission connected
H36: Electrification and rural network subsidy charge [c/kWh] | J36: Affordability subsidy charge [c/kWh] Only payable by non-local authority tariffs | O36: Reactive energy charge [c/kVArh]
H38: All seasons | J38: All seasons | O38: High season | Q38: Low season
A39: Tariff | B39: Tariff nameBillcode | C39: Tx zone | D39: Voltage | E39: Billcode | I39: VAT incl | K39: VAT incl | P39: VAT incl | R39: VAT incl
A40: Miniflex | B40: Mi | C40: 0 | D40: 1 | E40: =B40&C40&D40&IF($A$2="Non-municipal","N",IF($A$2="Municiple","Y","error")) -> Mi01N | H40: 6.33 | I40: =ROUND(H40 * (1 + VAT), 2) -> 7.22 | J40: 2.44 | K40: =ROUND(J40 * (1 + VAT), 2) -> 2.78 | O40: 4.99 | P40: =ROUND(O40 * (1 + VAT), 2) -> 5.69 | Q40: 0 | R40: =ROUND(Q40 * (1 + VAT), 2) -> 0
A42: Miniflex | B42: Mi | C42: 0 | D42: 1 | E42: =B42&C42&D42&IF($A$2="Non-municipal","N",IF($A$2="Municiple","Y","error")) -> Mi01N
A43: Miniflex | B43: Mi | C43: 1 | D43: 2 | E43: =B43&C43&D43&IF($A$2="Non-municipal","N",IF($A$2="Municiple","Y","error")) -> Mi12N
A44: Miniflex | B44: Mi | C44: 2 | D44: 3 | E44: Mi23N
A45: Miniflex | B45: Mi | C45: 3 | D45: 4 | E45: Mi34N

Sheet Miniflex Munic inc
G1: Back to menu
A2: Municiple | G2: Miniflex tariff | T2: Local authority
J4: Active energy charge [c/kWh] | V4: Network capacity charge [R/kVA/m]
H5: Transmission zone | J5: High demand season [Jun - Aug] | P5: Low demand season [Sep - May]
I6: Voltage | J6: Peak | L6: Standard | N6: Off Peak | P6: Peak | R6: Standard | T6: Off Peak
A7: Tariff | B7: Tariff nameBillcode | C7: Tx zone | D7: Voltage | E7: Billcode | K7: VAT incl | M7: VAT incl | O7: VAT incl | Q7: VAT incl | S7: VAT incl | U7: VAT incl | W7: VAT incl
A8: Miniflex | B8: Mi | C8: 0 | D8: 1 | E8: =B8&C8&D8&IF($A$2="Non-municipal","N",IF($A$2="Municiple","Y","error")) -> Mi01Y | H8: ≤ 300km | I8: < 500V | J8: 258.53 | K8: =ROUND(J8 * (1 + VAT), 2) -> 294.72 | L8: 78.67 | M8: =ROUND(L8 * (1 + VAT), 2) -> 89.68 | N8: 42.93 | O8: =ROUND(N8 * (1 + VAT), 2) -> 48.94 | P8: 84.65 | Q8: =ROUND(P8 * (1 + VAT), 2) -> 96.5 | R8: 58.41 | S8: =ROUND(R8 * (1 + VAT), 2) -> 66.59 | T8: 37.23 | U8: =ROUND(T8 * (1 + VAT), 2) -> 42.44 | V8: 21.56 | W8: =ROUND(V8 * (1 + VAT), 2) -> 24.58
A9: Miniflex | B9: Mi | C9: 0 | D9: 2 | E9: =B9&C9&D9&IF($A$2="Non-municipal","N",IF($A$2="Municiple","Y","error")) -> Mi02Y | I9: ≥ 500V & < 66kV | J9: 254.45 | K9: 290.07 | L9: 77.09 | M9: 87.88 | N9: 41.86 | O9: 47.72 | P9: 83.01 | Q9: 94.63 | R9: 57.13 | S9: 65.13 | T9: 36.25 | U9: 41.33 | V9: 19.75 | W9: 22.52
A10: Miniflex | B10: Mi | C10: 0 | D10: 3 | E10: Mi03Y | I10: ≥ 66kV & ≤ 132kV | J10: 246.42 | K10: 280.92 | L10: 74.64 | M10: 85.09 | N10: 40.53 | O10: 46.2 | P10: 80.38 | Q10: 91.63 | R10: 55.33 | S10: 63.08 | T10: 35.09 | U10: 40 | V10: 11.09 | W10: 12.64
A11: Miniflex | B11: Mi | C11: 0 | D11: 4 | E11: Mi04Y | I11: > 132kV* | J11: 232.24 | K11: 264.75 | L11: 70.35 | M11: 80.2 | N11: 38.2 | O11: 43.55 | P11: 75.76 | Q11: 86.37 | R11: 52.14 | S11: 59.44 | T11: 33.08 | U11: 37.71 | V11: 8.09 | W11: 9.22
A12: Miniflex | B12: Mi | C12: 1 | D12: 1 | E12: Mi11Y | H12: > 300km and ≤ 600km | I12: < 500V | J12: 260.63 | K12: 297.12 | L12: 78.96 | M12: 90.01 | N12: 42.87 | O12: 48.87 | P12: 85.03 | Q12: 96.93 | R12: 58.53 | S12: 66.72 | T12: 37.13 | U12: 42.33 | V12: 21.6 | W12: 24.62
A13: Miniflex | B13: Mi | C13: 1 | D13: 2 | E13: Mi12Y | I13: ≥ 500V & < 66kV | J13: 256.99 | K13: 292.97 | L13: 77.85 | M13: 88.75 | N13: 42.28 | O13: 48.2 | P13: 83.84 | Q13: 95.58 | R13: 57.7 | S13: 65.78 | T13: 36.6 | U13: 41.72 | V13: 19.81 | W13: 22.58
A14: Miniflex | B14: Mi | C14: 1 | D14: 3 | E14: Mi13Y | I14: ≥ 66kV & ≤ 132kV | J14: 248.83 | K14: 283.67 | L14: 75.38 | M14: 85.93 | N14: 40.92 | O14: 46.65 | P14: 81.17 | Q14: 92.53 | R14: 55.86 | S14: 63.68 | T14: 35.43 | U14: 40.39 | V14: 11.15 | W14: 12.71
A15: Miniflex | B15: Mi | C15: 1 | D15: 4 | E15: Mi14Y | I15: > 132kV* | J15: 234.55 | K15: 267.39 | L15: 71.06 | M15: 81.01 | N15: 38.58 | O15: 43.98 | P15: 76.5 | Q15: 87.21 | R15: 52.66 | S15: 60.03 | T15: 33.4 | U15: 38.08 | V15: 8.17 | W15: 9.31
A16: Miniflex | B16: Mi | C16: 2 | D16: 1 | E16: Mi21Y | H16: > 600km and ≤ 900km | I16: < 500V | J16: 263.23 | K16: 300.08 | L16: 79.74 | M16: 90.9 | N16: 43.3 | O16: 49.36 | P16: 85.86 | Q16: 97.88 | R16: 59.1 | S16: 67.37 | T16: 37.49 | U16: 42.74 | V16: 21.71 | W16: 24.75
A17: Miniflex | B17: Mi | C17: 2 | D17: 2 | E17: Mi22Y | I17: ≥ 500V & < 66kV | J17: 259.58 | K17: 295.92 | L17: 78.63 | M17: 89.64 | N17: 42.7 | O17: 48.68 | P17: 84.69 | Q17: 96.55 | R17: 58.26 | S17: 66.42 | T17: 36.97 | U17: 42.15 | V17: 19.87 | W17: 22.65
A18: Miniflex | B18: Mi | C18: 2 | D18: 3 | E18: Mi23Y | I18: ≥ 66kV & ≤ 132kV | J18: 251.36 | K18: 286.55 | L18: 76.14 | M18: 86.8 | N18: 41.34 | O18: 47.13 | P18: 81.98 | Q18: 93.46 | R18: 56.42 | S18: 64.32 | T18: 35.79 | U18: 40.8 | V18: 11.2 | W18: 12.77
A19: Miniflex | B19: Mi | C19: 2 | D19: 4 | E19: Mi24Y | I19: > 132kV* | J19: 236.91 | K19: 270.08 | L19: 71.78 | M19: 81.83 | N19: 38.97 | O19: 44.43 | P19: 77.29 | Q19: 88.11 | R19: 53.19 | S19: 60.64 | T19: 33.75 | U19: 38.48 | V19: 8.28 | W19: 9.44
A20: Miniflex | B20: Mi | C20: 3 | D20: 1 | E20: Mi31Y | H20: > 900km | I20: < 500V | J20: 265.87 | K20: 303.09 | L20: 80.55 | M20: 91.83 | N20: 43.74 | O20: 49.86 | P20: 86.73 | Q20: 98.87 | R20: 59.69 | S20: 68.05 | T20: 37.87 | U20: 43.17 | V20: 21.73 | W20: 24.77
A21: Miniflex | B21: Mi | C21: 3 | D21: 2 | E21: Mi32Y | I21: ≥ 500V & < 66kV | J21: 262.17 | K21: 298.87 | L21: 79.41 | M21: 90.53 | N21: 43.13 | O21: 49.17 | P21: 85.51 | Q21: 97.48 | R21: 58.85 | S21: 67.09 | T21: 37.33 | U21: 42.56 | V21: 19.95 | W21: 22.74
A22: Miniflex | B22: Mi | C22: 3 | D22: 3 | E22: Mi33Y | I22: ≥ 66kV & ≤ 132kV | J22: 253.89 | K22: 289.43 | L22: 76.91 | M22: 87.68 | N22: 41.77 | O22: 47.62 | P22: 82.81 | Q22: 94.4 | R22: 56.99 | S22: 64.97 | T22: 36.16 | U22: 41.22 | V22: 11.24 | W22: 12.81
A23: Miniflex | B23: Mi | C23: 3 | D23: 4 | E23: Mi34Y | I23: > 132kV* | J23: 239.24 | K23: 272.73 | L23: 72.51 | M23: 82.66 | N23: 39.4 | O23: 44.92 | P23: 78.08 | Q23: 89.01 | R23: 53.75 | S23: 61.28 | T23: 34.12 | U23: 38.9 | V23: 8.34 | W23: 9.51
I24: * 132 kV or Transmission connected
H26: Customer categories | J26: Service charge [R/account/day] | L26: Administration charge [R/POD/day]
A28: Tariff | B28: Tariff nameBillcode | C28: Tx zone | D28: Voltage | E28: Billcode | K28: VAT incl | M28: VAT incl | P28: Ancillary service charge [c/kWh] | R28: Network demand charge [c/kWh] [Peak & Standard] | U28: Urban low voltage subsidy charge [R/kVA/m]
A29: Miniflex | B29: Mi | C29: 0 | D29: 1 | E29: =B29&C29&D29&IF($A$2="Non-municipal","N",IF($A$2="Municiple","Y","error")) -> Mi01Y | H29: ≤ 100 kVA | J29: 11.66 | K29: =ROUND(J29 * (1 + VAT), 2) -> 13.29 | L29: 2.56 | M29: =ROUND(L29 * (1 + VAT), 2) -> 2.92 | O29: Voltage | Q29: VAT incl | S29: VAT incl | W29: VAT incl
A30: Miniflex | B30: Mi | C30: 0 | D30: 1 | E30: =B30&C30&D30&IF($A$2="Non-municipal","N",IF($A$2="Municiple","Y","error")) -> Mi01Y | H30: > 100 kVA & ≤ 500 kVA | J30: 53.3 | K30: =ROUND(J30 * (1 + VAT), 2) -> 60.76 | L30: 14.94 | M30: =ROUND(L30 * (1 + VAT), 2) -> 17.03 | O30: < 500V | P30: 0.33 | Q30: =ROUND(P30 * (1 + VAT), 2) -> 0.38 | R30: 13.33 | S30: =ROUND(R30 * (1 + VAT), 2) -> 15.2 | U30: < 500V | V30: 0 | W30: =ROUND(V30 * (1 + VAT), 2) -> 0
A31: Miniflex | B31: Mi | C31: 0 | D31: 1 | E31: =B31&C31&D31&IF($A$2="Non-municipal","N",IF($A$2="Municiple","Y","error")) -> Mi01Y | H31: > 500 kVA & ≤ 1 MVA | J31: 164.04 | K31: =ROUND(J31 * (1 + VAT), 2) -> 187.01 | L31: 29.7 | M31: =ROUND(L31 * (1 + VAT), 2) -> 33.86 | O31: ≥ 500V & < 66kV | P31: 0.32 | Q31: =ROUND(P31 * (1 + VAT), 2) -> 0.36 | R31: 5.6 | S31: =ROUND(R31 * (1 + VAT), 2) -> 6.38 | U31: ≥ 500V & < 66kV | V31: 0 | W31: =ROUND(V31 * (1 + VAT), 2) -> 0
A32: Miniflex | B32: Mi | C32: 0 | D32: 1 | E32: =B32&C32&D32&IF($A$2="Non-municipal","N",IF($A$2="Municiple","Y","error")) -> Mi01Y | H32: > 1 MVA | J32: 164.04 | K32: =ROUND(J32 * (1 + VAT), 2) -> 187.01 | L32: 73.94 | M32: =ROUND(L32 * (1 + VAT), 2) -> 84.29 | O32: ≥ 66kV & ≤ 132kV | P32: 0.31 | Q32: =ROUND(P32 * (1 + VAT), 2) -> 0.35 | R32: 1.94 | S32: =ROUND(R32 * (1 + VAT), 2) -> 2.21 | U32: ≥ 66kV & ≤ 132kV | V32: 11.53 | W32: =ROUND(V32 * (1 + VAT), 2) -> 13.14
A33: Miniflex | B33: Mi | C33: 0 | D33: 1 | E33: =B33&C33&D33&IF($A$2="Non-municipal","N",IF($A$2="Municiple","Y","error")) -> Mi01Y | H33: Key customers | J33: 3214.52 | K33: =ROUND(J33 * (1 + VAT), 2) -> 3664.55 | L33: 102.66 | M33: =ROUND(L33 * (1 + VAT), 2) -> 117.03 | O33: > 132kV* | P33: 0.29 | Q33: =ROUND(P33 * (1 + VAT), 2) -> 0.33 | R33: 0 | S33: =ROUND(R33 * (1 + VAT), 2) -> 0 | U33: > 132kV* | V33: 11.53 | W33: =ROUND(V33 * (1 + VAT), 2) -> 13.14
O34: * 132 kV or Transmission connected | U34: * 132 kV or Transmission connected
H36: Electrification and rural network subsidy charge [c/kWh] | L36: Reactive energy charge [c/kVArh]
H38: All seasons | L38: High season | N38: Low season
A39: Tariff | B39: Tariff nameBillcode | C39: Tx zone | D39: Voltage | E39: Billcode | I39: VAT incl | M39: VAT incl | O39: VAT incl
A40: Miniflex | B40: Mi | C40: 0 | D40: 1 | E40: =B40&C40&D40&IF($A$2="Non-municipal","N",IF($A$2="Municiple","Y","error")) -> Mi01Y | H40: 6.39 | I40: =ROUND(H40 * (1 + VAT), 2) -> 7.28 | L40: 5.05 | M40: =ROUND(L40 * (1 + VAT), 2) -> 5.76 | N40: 0 | O40: =ROUND(N40 * (1 + VAT), 2) -> 0
A42: Miniflex | B42: Mi | C42: 0 | D42: 1 | E42: =B42&C42&D42&IF($A$2="Non-municipal","N",IF($A$2="Municiple","Y","error")) -> Mi01Y
A43: Miniflex | B43: Mi | C43: 1 | D43: 2 | E43: =B43&C43&D43&IF($A$2="Non-municipal","N",IF($A$2="Municiple","Y","error")) -> Mi12Y
A44: Miniflex | B44: Mi | C44: 2 | D44: 3 | E44: Mi23Y
A45: Miniflex | B45: Mi | C45: 3 | D45: 4 | E45: Mi34Y

Sheet Businessrate inc
H1: Back to menu
A2: Non-municipal | H2: Businessrate tariffs | P2: Non-local authority
J4: Energy charge [c/kWh] | L4: Ancillary service charge [c/kWh] | N4: Network demand charge [c/kWh] | P4: Network capacity charge [R/POD/day] | R4: Service and administration charge [R/POD/day] | Z4: Electrification and rural network subsidy charge [c/kWh] | AB4: Affordability subsidy charge [c/kWh] payable by non-local authority tariffs
Z6: All seasons | AB6: All seasons
A7: Tariff | B7: Tariff nameBillcode | C7: Tx zone | D7: Voltage | E7: Billcode | K7: VAT incl | M7: VAT incl | O7: VAT incl | Q7: VAT incl | S7: VAT incl | AA7: VAT incl | AC7: VAT incl
A8: Businessrate 1 | B8: B1 | C8: 0 | D8: 1 | E8: =B8&C8&D8&IF($A$2="Non-municipal","N",IF($A$2="Municiple","Y","error")) -> B101N | H8: Businessrate 1 | J8: 85.24 | K8: =ROUND(J8 * (1 + VAT), 2) -> 97.17 | L8: 0.33 | M8: =ROUND(L8 * (1 + VAT), 2) -> 0.38 | N8: 12.04 | O8: =ROUND(N8 * (1 + VAT), 2) -> 13.73 | P8: 17.28 | Q8: =ROUND(P8 * (1 + VAT), 2) -> 19.7 | R8: 14.93 | S8: =ROUND(R8 * (1 + VAT), 2) -> 17.02 | Z8: 0 | AA8: =ROUND(Z8 * (1 + VAT), 2) -> 0 | AB8: 0 | AC8: =ROUND(AB8 * (1 + VAT), 2) -> 0
A9: Businessrate 2 | B9: B2 | C9: 0 | D9: 1 | E9: =B9&C9&D9&IF($A$2="Non-municipal","N",IF($A$2="Municiple","Y","error")) -> B201N | H9: Businessrate 2 | J9: 85.24 | K9: =ROUND(J9 * (1 + VAT), 2) -> 97.17 | L9: 0.33 | M9: =ROUND(L9 * (1 + VAT), 2) -> 0.38 | N9: 12.04 | O9: =ROUND(N9 * (1 + VAT), 2) -> 13.73 | P9: 29.11 | Q9: =ROUND(P9 * (1 + VAT), 2) -> 33.19 | R9: 14.93 | S9: =ROUND(R9 * (1 + VAT), 2) -> 17.02 | Z9: =Z8 -> 0 | AA9: =ROUND(Z9 * (1 + VAT), 2) -> 0 | AB9: =AB8 -> 0 | AC9: =ROUND(AB9 * (1 + VAT), 2) -> 0
A10: Businessrate 3 | B10: B3 | C10: 0 | D10: 1 | E10: B301N | H10: Businessrate 3 | J10: 85.24 | K10: =ROUND(J10 * (1 + VAT), 2) -> 97.17 | L10: 0.33 | M10: =ROUND(L10 * (1 + VAT), 2) -> 0.38 | N10: 12.04 | O10: =ROUND(N10 * (1 + VAT), 2) -> 13.73 | P10: 50.3 | Q10: =ROUND(P10 * (1 + VAT), 2) -> 57.34 | R10: 14.93 | S10: =ROUND(R10 * (1 + VAT), 2) -> 17.02 | Z10: =Z8 -> 0 | AA10: =ROUND(Z10 * (1 + VAT), 2) -> 0 | AB10: =AB8 -> 0 | AC10: =ROUND(AB10 * (1 + VAT), 2) -> 0
A11: Businessrate 4 | B11: B4 | C11: 0 | D11: 1 | E11: B401N | H11: Businessrate 4 | J11: 229.37 | K11: =ROUND(J11 * (1 + VAT), 2) -> 261.48 | L11: 0.33 | M11: =ROUND(L11 * (1 + VAT), 2) -> 0.38 | N11: 12.04 | O11: =ROUND(N11 * (1 + VAT), 2) -> 13.73 | Z11: =Z9 -> 0 | AA11: =ROUND(Z11 * (1 + VAT), 2) -> 0 | AB11: =AB9 -> 0 | AC11: =ROUND(AB11 * (1 + VAT), 2) -> 0

Sheet Businessrate Munic inc
H1: Back to menu
A2: Municiple | H2: Businessrate tariffs | P2: Local authority
J4: Energy charge [c/kWh] | L4: Ancillary service charge [c/kWh] | N4: Network demand charge [c/kWh] | P4: Network capacity charge [R/POD/day] | R4: Service and administration charge [R/POD/day] | Z4: Electrification and rural network subsidy charge [c/kWh] | AB4: Affordability subsidy charge [c/kWh] payable by non-local authority tariffs
Z6: All seasons | AB6: All seasons
A7: Tariff | B7: Tariff nameBillcode | C7: Tx zone | D7: Voltage | E7: Billcode | K7: VAT incl | M7: VAT incl | O7: VAT incl | Q7: VAT incl | S7: VAT incl | AA7: VAT incl | AC7: VAT incl
A8: Businessrate 1 | B8: B1 | C8: 0 | D8: 1 | E8: =B8&C8&D8&IF($A$2="Non-municipal","N",IF($A$2="Municiple","Y","error")) -> B101Y | H8: Businessrate 1 | J8: 88.51 | K8: =ROUND(J8 * (1 + VAT), 2) -> 100.9 | L8: 0.33 | M8: =ROUND(L8 * (1 + VAT), 2) -> 0.38 | N8: 12.27 | O8: =ROUND(N8 * (1 + VAT), 2) -> 13.99 | P8: 17.6 | Q8: =ROUND(P8 * (1 + VAT), 2) -> 20.06 | R8: 15.07 | S8: =ROUND(R8 * (1 + VAT), 2) -> 17.18 | Z8: 0 | AA8: =ROUND(Z8 * (1 + VAT), 2) -> 0 | AB8: 0 | AC8: =ROUND(AB8 * (1 + VAT), 2) -> 0
A9: Businessrate 2 | B9: B2 | C9: 0 | D9: 1 | E9: =B9&C9&D9&IF($A$2="Non-municipal","N",IF($A$2="Municiple","Y","error")) -> B201Y | H9: Businessrate 2 | J9: 88.51 | K9: =ROUND(J9 * (1 + VAT), 2) -> 100.9 | L9: 0.33 | M9: =ROUND(L9 * (1 + VAT), 2) -> 0.38 | N9: 12.27 | O9: =ROUND(N9 * (1 + VAT), 2) -> 13.99 | P9: 29.67 | Q9: =ROUND(P9 * (1 + VAT), 2) -> 33.82 | R9: 15.07 | S9: =ROUND(R9 * (1 + VAT), 2) -> 17.18 | Z9: =Z8 -> 0 | AA9: =ROUND(Z9 * (1 + VAT), 2) -> 0 | AB9: =AB8 -> 0 | AC9: =ROUND(AB9 * (1 + VAT), 2) -> 0
A10: Businessrate 3 | B10: B3 | C10: 0 | D10: 1 | E10: B301Y | H10: Businessrate 3 | J10: 88.51 | K10: =ROUND(J10 * (1 + VAT), 2) -> 100.9 | L10: 0.33 | M10: =ROUND(L10 * (1 + VAT), 2) -> 0.38 | N10: 12.27 | O10: =ROUND(N10 * (1 + VAT), 2) -> 13.99 | P10: 51.27 | Q10: =ROUND(P10 * (1 + VAT), 2) -> 58.45 | R10: 15.07 | S10: =ROUND(R10 * (1 + VAT), 2) -> 17.18 | Z10: =Z8 -> 0 | AA10: =ROUND(Z10 * (1 + VAT), 2) -> 0 | AB10: =AB8 -> 0 | AC10: =ROUND(AB10 * (1 + VAT), 2) -> 0
A11: Businessrate 4 | B11: B4 | C11: 0 | D11: 1 | E11: B401Y | H11: Businessrate 4 | J11: 238.19 | K11: =ROUND(J11 * (1 + VAT), 2) -> 271.54 | L11: 0.33 | M11: =ROUND(L11 * (1 + VAT), 2) -> 0.38 | N11: 12.27 | O11: =ROUND(N11 * (1 + VAT), 2) -> 13.99 | Z11: =Z9 -> 0 | AA11: =ROUND(Z11 * (1 + VAT), 2) -> 0 | AB11: =AB9 -> 0 | AC11: =ROUND(AB11 * (1 + VAT), 2) -> 0

Sheet Public Lighting inc
H1: Back to menu
A2: Non-municipal | H2: Public Lighting tariffs Non-local authority
K4: All Night | M4: 24 Hours
A5: Tariff | B5: Tariff nameBillcode | C5: Tx zone | D5: Voltage | E5: Billcode | L5: VAT incl | N5: VAT incl
A6: Public lighting 24 hours | B6: Pu | C6: 0 | D6: 1 | E6: =B6&C6&D6&IF($A$2="Non-municipal","N",IF($A$2="Municiple","Y","error")) -> Pu01N | H6: Public Lighting | I6: Energy charge [c/kWh] | K6: 70.13 | L6: =ROUND(K6 * (1 + VAT), 2) -> 79.95 | M6: 93.9 | N6: =ROUND(M6 * (1 + VAT), 2) -> 107.05
A7: Public lighting All Night | B7: Pa | C7: 0 | D7: 1 | E7: =B7&C7&D7&IF($A$2="Non-municipal","N",IF($A$2="Municiple","Y","error")) -> Pa01N | I7: Energy charge [R/100W/month] | K7: 21.95 | L7: =ROUND(K7 * (1 + VAT), 2) -> 25.02 | M7: 63.25 | N7: =ROUND(M7 * (1 + VAT), 2) -> 72.11
A9: Public lighting Urban fixed | B9: Pt | C9: 0 | D9: 1 | E9: =B9&C9&D9&IF($A$2="Non-municipal","N",IF($A$2="Municiple","Y","error")) -> Pt01N | H9: Public Lighting - Urban Fixed * | I9: Fixed charge [R/POD/day] | K9: 4.61 | L9: =ROUND(K9 * (1 + VAT), 2) -> 5.26
H11: Maintenance charges | K11: R/month
L12: VAT incl
A13: Public Lighting - Maintenance charge - per lumanaire | B13: Plu | C13: 0 | D13: 1 | E13: =B13&C13&D13&IF($A$2="Non-municipal","N",IF($A$2="Municiple","Y","error")) -> Plu01N | J13: Per lumanaire | K13: 37.19 | L13: =ROUND(K13 * (1 + VAT), 2) -> 42.4
A14: Public Lighting - Maintenance charge - per high-mast lumanaire | B14: Plhm | C14: 0 | D14: 1 | E14: =B14&C14&D14&IF($A$2="Non-municipal","N",IF($A$2="Municiple","Y","error")) -> Plhm01N | J14: Per high-mast lumanaire | K14: 865.75 | L14: =ROUND(K14 * (1 + VAT), 2) -> 986.96

Sheet Public Lighting Munic inc
H1: Back to menu
A2: Municipal | H2: Public Lighting tariffs Local authority | AB2: =SUM(#REF!) ->  | AC2: check value
K4: All Night | M4: 24 Hours
A5: Tariff | B5: Tariff nameBillcode | C5: Tx zone | D5: Voltage | E5: Billcode | L5: VAT incl | N5: VAT incl
A6: Public lighting 24 hours | B6: Pu | C6: 0 | D6: 1 | E6: =B6&C6&D6&IF($A$2="Non-municipal","N",IF($A$2="Municipal","Y","error")) -> Pu01Y | H6: Public Lighting | I6: Energy charge [c/kWh] | K6: 72.84 | L6: =ROUND(K6 * (1 + VAT), 2) -> 83.04 | M6: 97.53 | N6: =ROUND(M6 * (1 + VAT), 2) -> 111.18
A7: Public lighting All Night | B7: Pa | C7: 0 | D7: 1 | E7: =B7&C7&D7&IF($A$2="Non-municipal","N",IF($A$2="Municipal","Y","error")) -> Pa01Y | I7: Energy charge [R/100W/month] | K7: 22.25 | L7: =ROUND(K7 * (1 + VAT), 2) -> 25.37 | M7: 64.12 | N7: =ROUND(M7 * (1 + VAT), 2) -> 73.1
A9: Public lighting Urban fixed | B9: Pt | C9: 0 | D9: 1 | E9: =B9&C9&D9&IF($A$2="Non-municipal","N",IF($A$2="Municipal","Y","error")) -> Pt01Y | H9: Public Lighting - Urban Fixed * | I9: Fixed charge [R/POD/day] | K9: 4.789474203 | L9: =ROUND(K9 * (1 + VAT), 2) -> 5.46
H11: Maintenance charges | K11: R/month
L12: VAT incl
A13: Public Lighting - Maintenance charge - per lumanaire | B13: Plu | C13: 0 | D13: 1 | E13: =B13&C13&D13&IF($A$2="Non-municipal","N",IF($A$2="Municipal","Y","error")) -> Plu01Y | J13: Per lumanaire | K13: 38.43 | L13: =ROUND(K13 * (1 + VAT), 2) -> 43.81
A14: Public Lighting - Maintenance charge - per high-mast lumanaire | B14: Plhm | C14: 0 | D14: 1 | E14: =B14&C14&D14&IF($A$2="Non-municipal","N",IF($A$2="Municipal","Y","error")) -> Plhm01Y | J14: Per high-mast lumanaire | K14: 897.62 | L14: =ROUND(K14 * (1 + VAT), 2) -> 1023.29

Sheet Homepower inc
H1: Back to menu
A2: Non-municipal | H2: Homepower | O2: Non-local authority
J5: Energy charge [c/kWh] | N5: Network capacity charge [R/POD/day]
A6: Tariff | B6: Tariff nameBillcode | C6: Tx zone | D6: Voltage | E6: Billcode | J6: Block 1 [>0 - 600 kWh] | K6: VAT incl | L6: Block 2 [>600 kWh] | M6: VAT incl | O6: VAT incl
A7: Homepower 1 | B7: H1 | C7: 0 | D7: 1 | E7: =B7&C7&D7&IF($A$2="Non-municipal","N",IF($A$2="Municiple","Y","error")) -> H101N | H7: Homepower 1 | J7: 99.9 | K7: =ROUND(J7 * (1 + VAT), 2) -> 113.89 | L7: 157.73 | M7: =ROUND(L7 * (1 + VAT), 2) -> 179.81 | N7: 4.28 | O7: =ROUND(N7 * (1 + VAT), 2) -> 4.88
A8: Homepower 2 | B8: H2 | C8: 0 | D8: 1 | E8: =B8&C8&D8&IF($A$2="Non-municipal","N",IF($A$2="Municiple","Y","error")) -> H201N | H8: Homepower 2 | J8: 99.9 | K8: =ROUND(J8 * (1 + VAT), 2) -> 113.89 | L8: 153.79 | M8: =ROUND(L8 * (1 + VAT), 2) -> 175.32 | N8: 8.02 | O8: =ROUND(N8 * (1 + VAT), 2) -> 9.14
A9: Homepower 3 | B9: H3 | C9: 0 | D9: 1 | E9: H301N | H9: Homepower 3 | J9: 99.9 | K9: =ROUND(J9 * (1 + VAT), 2) -> 113.89 | L9: 153.79 | M9: =ROUND(L9 * (1 + VAT), 2) -> 175.32 | N9: 16.55 | O9: =ROUND(N9 * (1 + VAT), 2) -> 18.87
A10: Homepower 4 | B10: H4 | C10: 0 | D10: 1 | E10: H401N | H10: Homepower 4 | J10: 99.9 | K10: =ROUND(J10 * (1 + VAT), 2) -> 113.89 | L10: 160.64 | M10: =ROUND(L10 * (1 + VAT), 2) -> 183.13 | N10: 2.61 | O10: =ROUND(N10 * (1 + VAT), 2) -> 2.98
J12: Energy charge [c/kWh] | L12: Network capacity charge [R/kVA]
K13: VAT incl | M13: VAT incl
A14: Homepower Bulk < 500V | B14: HB | C14: 0 | D14: 1 | E14: =B14&C14&D14&IF($A$2="Non-municipal","N",IF($A$2="Municiple","Y","error")) -> HB01N | H14: Homepower Bulk < 500V* | J14: 131.15 | K14: =ROUND(J14 * (1 + VAT), 2) -> 149.51 | L14: 27.14 | M14: =ROUND(L14 * (1 + VAT), 2) -> 30.94
H15: * The Network capacity charge is based on the NMD or on the maximum demand if measured.

Sheet Homepower Munic inc
H1: Back to menu
A2: Municiple | H2: Homepower tariffs | N2: Local authority
J4: Energy charge [c/kWh] | L4: Energy charge [c/kWh] | N4: Network capacity charge [R/POD/day]
A5: Tariff | B5: Tariff nameBillcode | C5: Tx zone | D5: Voltage | E5: Billcode | J5: Block 1 [>0 - 600 kWh] | K5: VAT incl | L5: Block 2 [>600 kWh] | M5: VAT incl | O5: VAT incl
A6: Homepower 1 | B6: H1 | C6: 0 | D6: 1 | E6: =B6&C6&D6&IF($A$2="Non-municipal","N",IF($A$2="Municiple","Y","error")) -> H101Y | H6: Homepower 1 | J6: 101.33 | K6: =ROUND(J6 * (1 + VAT), 2) -> 115.52 | L6: 159.99 | M6: =ROUND(L6 * (1 + VAT), 2) -> 182.39 | N6: 4.34 | O6: =ROUND(N6 * (1 + VAT), 2) -> 4.95
A7: Homepower 2 | B7: H2 | C7: 0 | D7: 1 | E7: =B7&C7&D7&IF($A$2="Non-municipal","N",IF($A$2="Municiple","Y","error")) -> H201Y | H7: Homepower 2 | J7: 101.33 | K7: =ROUND(J7 * (1 + VAT), 2) -> 115.52 | L7: 155.98 | M7: =ROUND(L7 * (1 + VAT), 2) -> 177.82 | N7: 8.13 | O7: =ROUND(N7 * (1 + VAT), 2) -> 9.27
A8: Homepower 3 | B8: H3 | C8: 0 | D8: 1 | E8: H301Y | H8: Homepower 3 | J8: 101.33 | K8: =ROUND(J8 * (1 + VAT), 2) -> 115.52 | L8: 155.98 | M8: =ROUND(L8 * (1 + VAT), 2) -> 177.82 | N8: 16.79 | O8: =ROUND(N8 * (1 + VAT), 2) -> 19.14
A9: Homepower 4 | B9: H4 | C9: 0 | D9: 1 | E9: H401Y | H9: Homepower 4 | J9: 101.33 | K9: =ROUND(J9 * (1 + VAT), 2) -> 115.52 | L9: 162.94 | M9: =ROUND(L9 * (1 + VAT), 2) -> 185.75 | N9: 2.65 | O9: =ROUND(N9 * (1 + VAT), 2) -> 3.02

Sheet Homelight inc
H1: Back to menu
A2: Non-municipal | H2: Homelight tariffs Non-local authority
H4: Homelight 60A | J4: Energy charge [c/kWh]
A5: Tariff | B5: Tariff nameBillcode | C5: Tx zone | D5: Voltage | E5: Billcode | K5: VAT incl
A6: Homelight 1 60A | B6: HL16 | C6: 0 | D6: 1 | E6: =B6&C6&D6&IF($A$2="Non-municipal","N",IF($A$2="Municiple","Y","error")) -> HL1601N | H6: Block 1 [> 0 - 600 kWh] | J6: 94.51 | K6: =ROUND(J6 * (1 + VAT), 2) -> 107.74
A7: Homelight 2 60A | B7: HL26 | C7: 0 | D7: 1 | E7: =B7&C7&D7&IF($A$2="Non-municipal","N",IF($A$2="Municiple","Y","error")) -> HL2601N | H7: Block 2 [>600 kWh] | J7: 160.64 | K7: =ROUND(J7 * (1 + VAT), 2) -> 183.13
H10: Homelight 20A | J10: Energy charge [c/kWh]
K11: VAT incl
A12: Homelight 1 20A | B12: HL12 | C12: 0 | D12: 1 | E12: =B12&C12&D12&IF($A$2="Non-municipal","N",IF($A$2="Municiple","Y","error")) -> HL1201N | H12: Block 1 [> 0 - 350 kWh] | J12: 85.28 | K12: =ROUND(J12 * (1 + VAT), 2) -> 97.22
A13: Homelight 2 20A | B13: HL22 | C13: 0 | D13: 1 | E13: =B13&C13&D13&IF($A$2="Non-municipal","N",IF($A$2="Municiple","Y","error")) -> HL2201N | H13: Block 2 [>350 kWh] | J13: 94.96 | K13: =ROUND(J13 * (1 + VAT), 2) -> 108.25

Sheet Nightsave Rural inc
G1: Back to menu
A2: Non-municipal | G2: Nightsave Rural tariff | R2: Non-local authority | AF2: =SUM(#REF!,#REF!,#REF!,#REF!,#REF!,#REF!,#REF!,#REF!,#REF!,#REF!,#REF!,#REF!,#REF!,#REF!,#REF!) ->  | AG2: check value
J4: Active energy charge [c/kWh] | N4: Energy demand charges [R/kVA/m] | R4: Network capacity charges [R/kVA/m]
H5: Transmission zone | J5: High demand season [Jun - Aug] | L5: Low demand season [Sep - May] | N5: High demand season [Jun - Aug] | P5: Low demand season [Sep - May]
I6: Voltage
A7: Tariff | B7: Tariff nameBillcode | C7: Tx zone | D7: Voltage | E7: Billcode | K7: VAT incl | M7: VAT incl | O7: VAT incl | Q7: VAT incl | S7: VAT incl
A8: Nightsave Rural | B8: NR | C8: 0 | D8: 1 | E8: =B8&C8&D8&IF($A$2="Non-municipal","N",IF($A$2="Municiple","Y","error")) -> NR01N | H8: ≤ 300km | I8: < 500V | J8: 62.87 | K8: =ROUND(J8 * (1 + VAT), 2) -> 71.67 | L8: 48.85 | M8: =ROUND(L8 * (1 + VAT), 2) -> 55.69 | N8: 210.66 | O8: =ROUND(N8 * (1 + VAT), 2) -> 240.15 | P8: 111.5 | Q8: =ROUND(P8 * (1 + VAT), 2) -> 127.11 | R8: 10.65 | S8: =ROUND(R8 * (1 + VAT), 2) -> 12.14
A9: Nightsave Rural | B9: NR | C9: 0 | D9: 2 | E9: =B9&C9&D9&IF($A$2="Non-municipal","N",IF($A$2="Municiple","Y","error")) -> NR02N | I9: ≥ 500V & ≤ 22kV | J9: 62.13 | K9: 70.83 | L9: 48.31 | M9: 55.07 | N9: 204.13 | O9: 232.71 | P9: 107.53 | Q9: 122.58 | R9: 9.78 | S9: 11.15
A10: Nightsave Rural | B10: NR | E10: NRN | J10: 0 | L10: 0 | N10: 0 | O10: 0 | P10: 0 | Q10: 0 | R10: 0
A11: Nightsave Rural | B11: NR | E11: NRN | J11: 0 | L11: 0 | N11: 0 | O11: 0 | P11: 0 | Q11: 0 | R11: 0
A12: Nightsave Rural | B12: NR | C12: 1 | D12: 1 | E12: NR11N | H12: > 300km and ≤ 600km | I12: < 500V | J12: 63.49 | K12: 72.38 | L12: 49.34 | M12: 56.25 | N12: 213.2 | O12: 243.05 | P12: 113.04 | Q12: 128.87 | R12: 10.68 | S12: 12.18
A13: Nightsave Rural | B13: NR | C13: 1 | D13: 2 | E13: NR12N | I13: ≥ 500V & ≤ 22kV | J13: 62.77 | K13: 71.56 | L13: 48.79 | M13: 55.62 | N13: 206.63 | O13: 235.56 | P13: 109.03 | Q13: 124.29 | R13: 9.83 | S13: 11.21
A14: Nightsave Rural | B14: NR | E14: NRN | J14: 0 | L14: 0 | N14: 0 | O14: 0 | P14: 0 | Q14: 0 | R14: 0
A15: Nightsave Rural | B15: NR | E15: NRN | J15: 0 | L15: 0 | N15: 0 | O15: 0 | P15: 0 | Q15: 0 | R15: 0
A16: Nightsave Rural | B16: NR | C16: 2 | D16: 1 | E16: NR21N | H16: > 600km and ≤ 900km | I16: < 500V | J16: 64.13 | K16: 73.11 | L16: 49.83 | M16: 56.81 | N16: 215.76 | O16: 245.97 | P16: 114.56 | Q16: 130.6 | R16: 10.78 | S16: 12.29
A17: Nightsave Rural | B17: NR | C17: 2 | D17: 2 | E17: NR22N | I17: ≥ 500V & ≤ 22kV | J17: 63.38 | K17: 72.25 | L17: 49.28 | M17: 56.18 | N17: 209.1 | O17: 238.37 | P17: 110.54 | Q17: 126.02 | R17: 9.89 | S17: 11.27
A18: Nightsave Rural | B18: NR | E18: NRN | J18: 0 | L18: 0 | N18: 0 | O18: 0 | P18: 0 | Q18: 0 | R18: 0
A19: Nightsave Rural | B19: NR | E19: NRN | J19: 0 | L19: 0 | N19: 0 | O19: 0 | P19: 0 | Q19: 0 | R19: 0
A20: Nightsave Rural | B20: NR | C20: 3 | D20: 1 | E20: NR31N | H20: > 900km | I20: < 500V | J20: 64.76 | K20: 73.83 | L20: 50.33 | M20: 57.38 | N20: 218.37 | O20: =ROUND(N20 * (1 + VAT), 2) -> 248.94 | P20: 116.14 | Q20: =ROUND(P20 * (1 + VAT), 2) -> 132.4 | R20: 10.8 | S20: 12.31
A21: Nightsave Rural | B21: NR | C21: 3 | D21: 2 | E21: NR32N | I21: ≥ 500V & ≤ 22kV | J21: 64 | K21: 72.96 | L21: 49.75 | M21: 56.72 | N21: 211.65 | O21: 241.28 | P21: 112.08 | Q21: 127.77 | R21: 9.91 | S21: 11.3
H26: Customer categories | J26: Service charge [R/account/day] | L26: Administration charge [R/POD/day]
A28: Tariff | B28: Tariff nameBillcode | C28: Tx zone | D28: Voltage | E28: Billcode | K28: VAT incl | M28: VAT incl
A29: Nightsave Rural | B29: NR | C29: 0 | D29: 1 | E29: =B29&C29&D29&IF($A$2="Non-municipal","N",IF($A$2="Municiple","Y","error")) -> NR01N | H29: ≤ 100 kVA | J29: 14.64 | K29: =ROUND(J29 * (1 + VAT), 2) -> 16.69 | L29: 4.16 | M29: =ROUND(L29 * (1 + VAT), 2) -> 4.74
A30: Nightsave Rural | B30: NR | C30: 0 | D30: 1 | E30: NR01N | H30: > 100 kVA & ≤ 500 kVA | J30: 49.94 | K30: =ROUND(J30 * (1 + VAT), 2) -> 56.93 | L30: 23.15 | M30: =ROUND(L30 * (1 + VAT), 2) -> 26.39 | P30: Ancillary service charge [c/kWh] | R30: Network demand charge [c/kWh] [All time of use periods]
A31: Nightsave Rural | B31: NR | C31: 0 | D31: 1 | E31: NR01N | H31: > 500 kVA & ≤ 1 MVA | J31: 153.63 | K31: =ROUND(J31 * (1 + VAT), 2) -> 175.14 | L31: 35.53 | M31: =ROUND(L31 * (1 + VAT), 2) -> 40.5 | O31: Voltage | Q31: VAT incl | S31: VAT incl
A32: Nightsave Rural | B32: NR | C32: 0 | D32: 1 | E32: NR01N | H32: > 1 MVA | J32: 153.63 | K32: =ROUND(J32 * (1 + VAT), 2) -> 175.14 | L32: 65.93 | M32: =ROUND(L32 * (1 + VAT), 2) -> 75.16 | O32: < 500V | P32: 0.33 | Q32: =ROUND(P32 * (1 + VAT), 2) -> 0.38 | R32: 21.19 | S32: =ROUND(R32 * (1 + VAT), 2) -> 24.16
A33: Nightsave Rural | B33: NR | C33: 0 | D33: 1 | E33: NR01N | H33: Key customers | J33: 3010.96 | K33: =ROUND(J33 * (1 + VAT), 2) -> 3432.49 | L33: 65.93 | M33: =ROUND(L33 * (1 + VAT), 2) -> 75.16 | O33: ≥ 500V & ≤ 22kV | P33: 0.33 | Q33: =ROUND(P33 * (1 + VAT), 2) -> 0.38 | R33: 18.57 | S33: =ROUND(R33 * (1 + VAT), 2) -> 21.17
A34: Nightsave Rural | B34: NR | C34: 0 | D34: 2 | E34: NR02N

Sheet Nightsave Rural Munic inc
G1: Back to menu
A2: Municiple | G2: Nightsave Rural tariff | R2: Local authority | AF2: =SUM(#REF!,#REF!,#REF!,#REF!,#REF!,#REF!,#REF!,#REF!,#REF!,#REF!,#REF!,#REF!,#REF!,#REF!,#REF!) ->  | AG2: check value
J4: Active energy charge [c/kWh] | N4: Energy demand charges [R/kVA/m] | R4: Network capacity charges [R/kVA/m]
H5: Transmission zone | J5: High demand season [Jun - Aug] | L5: Low demand season [Sep - May] | N5: High demand season [Jun - Aug] | P5: Low demand season [Sep - May]
I6: Voltage
A7: Tariff | B7: Tariff nameBillcode | C7: Tx zone | D7: Voltage | E7: Billcode | K7: VAT incl | M7: VAT incl | O7: VAT incl | Q7: VAT incl | S7: VAT incl
A8: Nightsave Rural | B8: NR | C8: 0 | D8: 1 | E8: =B8&C8&D8&IF($A$2="Non-municipal","N",IF($A$2="Municiple","Y","error")) -> NR01Y | H8: ≤ 300km | I8: < 500V | J8: 65.29 | K8: =ROUND(J8 * (1 + VAT), 2) -> 74.43 | L8: 50.73 | M8: =ROUND(L8 * (1 + VAT), 2) -> 57.83 | N8: 213.67 | O8: =ROUND(N8 * (1 + VAT), 2) -> 243.58 | P8: 113.09 | Q8: =ROUND(P8 * (1 + VAT), 2) -> 128.92 | R8: 10.91 | S8: =ROUND(R8 * (1 + VAT), 2) -> 12.44
A9: Nightsave Rural | B9: NR | C9: 0 | D9: 2 | E9: =B9&C9&D9&IF($A$2="Non-municipal","N",IF($A$2="Municiple","Y","error")) -> NR02Y | I9: ≥ 500V & ≤ 22kV | J9: 64.52 | K9: 73.55 | L9: 50.17 | M9: 57.19 | N9: 207.05 | O9: 236.04 | P9: 109.06 | Q9: 124.33 | R9: 10.02 | S9: 11.42
A10: Nightsave Rural | B10: NR | E10: NRY | J10: 0 | L10: 0 | N10: 0 | O10: 0 | P10: 0 | Q10: 0 | R10: 0
A11: Nightsave Rural | B11: NR | E11: NRY | J11: 0 | L11: 0 | N11: 0 | O11: 0 | P11: 0 | Q11: 0 | R11: 0
A12: Nightsave Rural | B12: NR | C12: 1 | D12: 1 | E12: NR11Y | H12: > 300km and ≤ 600km | I12: < 500V | J12: 65.95 | K12: 75.18 | L12: 51.25 | M12: 58.43 | N12: 216.26 | O12: 246.54 | P12: 114.66 | Q12: 130.71 | R12: 10.93 | S12: 12.46
A13: Nightsave Rural | B13: NR | C13: 1 | D13: 2 | E13: NR12Y | I13: ≥ 500V & ≤ 22kV | J13: 65.16 | K13: 74.28 | L13: 50.67 | M13: 57.76 | N13: 209.58 | O13: 238.92 | P13: 110.58 | Q13: 126.06 | R13: 10.06 | S13: 11.47
A14: Nightsave Rural | B14: NR | E14: NRY | J14: 0 | L14: 0 | N14: 0 | O14: 0 | P14: 0 | Q14: 0 | R14: 0
A15: Nightsave Rural | B15: NR | E15: NRY | J15: 0 | L15: 0 | N15: 0 | O15: 0 | P15: 0 | Q15: 0 | R15: 0
A16: Nightsave Rural | B16: NR | C16: 2 | D16: 1 | E16: NR21Y | H16: > 600km and ≤ 900km | I16: < 500V | J16: 66.59 | K16: 75.91 | L16: 51.74 | M16: 58.98 | N16: 218.85 | O16: 249.49 | P16: 116.2 | Q16: 132.47 | R16: 11.04 | S16: 12.59
A17: Nightsave Rural | B17: NR | C17: 2 | D17: 2 | E17: NR22Y | I17: ≥ 500V & ≤ 22kV | J17: 65.81 | K17: 75.02 | L17: 51.17 | M17: 58.33 | N17: 212.1 | O17: 241.79 | P17: 112.12 | Q17: 127.82 | R17: 10.12 | S17: 11.54
A18: Nightsave Rural | B18: NR | E18: NRY | J18: 0 | L18: 0 | N18: 0 | O18: 0 | P18: 0 | Q18: 0 | R18: 0
A19: Nightsave Rural | B19: NR | E19: NRY | J19: 0 | L19: 0 | N19: 0 | O19: 0 | P19: 0 | Q19: 0 | R19: 0
A20: Nightsave Rural | B20: NR | C20: 3 | D20: 1 | E20: NR31Y | H20: > 900km | I20: < 500V | J20: 67.25 | K20: 76.67 | L20: 52.25 | M20: 59.57 | N20: 221.5 | O20: 252.51 | P20: 117.8 | Q20: 134.29 | R20: 11.05 | S20: 12.6
A21: Nightsave Rural | B21: NR | C21: 3 | D21: 2 | E21: NR32Y | I21: ≥ 500V & ≤ 22kV | J21: 66.46 | K21: 75.76 | L21: 51.66 | M21: 58.89 | N21: 214.69 | O21: 244.75 | P21: 113.68 | Q21: 129.6 | R21: 10.13 | S21: 11.55
H26: Customer categories | J26: Service charge [R/account/day] | L26: Administration charge [R/POD/day]
A28: Tariff | B28: Tariff nameBillcode | C28: Tx zone | D28: Voltage | E28: Billcode | K28: VAT incl | M28: VAT incl
A29: Nightsave Rural | B29: NR | C29: 0 | D29: 1 | E29: =B29&C29&D29&IF($A$2="Non-municipal","N",IF($A$2="Municiple","Y","error")) -> NR01Y | H29: ≤ 100 kVA | J29: 14.79 | K29: =ROUND(J29 * (1 + VAT), 2) -> 16.86 | L29: 4.2 | M29: =ROUND(L29 * (1 + VAT), 2) -> 4.79
A30: Nightsave Rural | B30: NR | C30: 0 | D30: 1 | E30: =B30&C30&D30&IF($A$2="Non-municipal","N",IF($A$2="Municiple","Y","error")) -> NR01Y | H30: > 100 kVA & ≤ 500 kVA | J30: 50.43 | K30: =ROUND(J30 * (1 + VAT), 2) -> 57.49 | L30: 23.37 | M30: =ROUND(L30 * (1 + VAT), 2) -> 26.64 | P30: Ancillary service charge [c/kWh] | R30: Network demand charge [c/kWh] [All time of use periods]
A31: Nightsave Rural | B31: NR | C31: 0 | D31: 1 | E31: =B31&C31&D31&IF($A$2="Non-municipal","N",IF($A$2="Municiple","Y","error")) -> NR01Y | H31: > 500 kVA & ≤ 1 MVA | J31: 155.12 | K31: =ROUND(J31 * (1 + VAT), 2) -> 176.84 | L31: 35.87 | M31: =ROUND(L31 * (1 + VAT), 2) -> 40.89 | O31: Voltage | Q31: VAT incl | S31: VAT incl
A32: Nightsave Rural | B32: NR | C32: 0 | D32: 1 | E32: =B32&C32&D32&IF($A$2="Non-municipal","N",IF($A$2="Municiple","Y","error")) -> NR01Y | H32: > 1 MVA | J32: 155.12 | K32: =ROUND(J32 * (1 + VAT), 2) -> 176.84 | L32: 66.58 | M32: =ROUND(L32 * (1 + VAT), 2) -> 75.9 | O32: < 500V | P32: 0.33 | Q32: =ROUND(P32 * (1 + VAT), 2) -> 0.38 | R32: 21.71 | S32: =ROUND(R32 * (1 + VAT), 2) -> 24.75
A33: Nightsave Rural | B33: NR | C33: 0 | D33: 1 | E33: =B33&C33&D33&IF($A$2="Non-municipal","N",IF($A$2="Municiple","Y","error")) -> NR01Y | H33: Key customers | J33: 3039.93 | K33: =ROUND(J33 * (1 + VAT), 2) -> 3465.52 | L33: 66.58 | M33: =ROUND(L33 * (1 + VAT), 2) -> 75.9 | O33: ≥ 500V & ≤ 22kV | P33: 0.33 | Q33: =ROUND(P33 * (1 + VAT), 2) -> 0.38 | R33: 19.01 | S33: =ROUND(R33 * (1 + VAT), 2) -> 21.67

Sheet Ruraflex inc
G1: Back to menu
A2: Non-municipal | G2: Ruraflex tariff | T2: Non-local authority | AF2: =SUM(#REF!,#REF!,#REF!,#REF!,#REF!,#REF!,#REF!,#REF!,#REF!,#REF!,#REF!,#REF!) ->  | AG2: check value
J4: Active energy charge [c/kWh] | V4: Network capacity charges [R/kVA/m]
H5: Transmission zone | J5: High demand season [Jun - Aug] | P5: Low demand season [Sep - May]
I6: Voltage | J6: Peak | L6: Standard | N6: Off Peak | P6: Peak | R6: Standard | T6: Off Peak
A7: Tariff | B7: Tariff nameBillcode | C7: Tx zone | D7: Voltage | E7: Billcode | K7: VAT incl | M7: VAT incl | O7: VAT incl | Q7: VAT incl | S7: VAT incl | U7: VAT incl | W7: VAT incl
A8: Ruraflex | B8: Ru | C8: 0 | D8: 1 | E8: =B8&C8&D8&IF($A$2="Non-municipal","N",IF($A$2="Municiple","Y","error")) -> Ru01N | H8: ≤ 300km | I8: < 500V | J8: 257.77 | K8: =ROUND(J8 * (1 + VAT), 2) -> 293.86 | L8: 78.09 | M8: =ROUND(L8 * (1 + VAT), 2) -> 89.02 | N8: 42.41 | O8: =ROUND(N8 * (1 + VAT), 2) -> 48.35 | P8: 84.09 | Q8: =ROUND(P8 * (1 + VAT), 2) -> 95.86 | R8: 57.87 | S8: =ROUND(R8 * (1 + VAT), 2) -> 65.97 | T8: 36.71 | U8: =ROUND(T8 * (1 + VAT), 2) -> 41.85 | V8: 14.88 | W8: =ROUND(V8 * (1 + VAT), 2) -> 16.96
A9: Ruraflex | B9: Ru | C9: 0 | D9: 2 | E9: =B9&C9&D9&IF($A$2="Non-municipal","N",IF($A$2="Municiple","Y","error")) -> Ru02N | I9: ≥ 500V & ≤ 22kV | J9: 255.22 | K9: 290.95 | L9: 77.32 | M9: 88.14 | N9: 41.98 | O9: 47.86 | P9: 83.26 | Q9: 94.92 | R9: 57.29 | S9: 65.31 | T9: 36.34 | U9: 41.43 | V9: 13.64 | W9: 15.55
A10: Ruraflex | B10: Ru | E10: RuN | J10: 0 | L10: 0 | N10: 0 | P10: 0 | R10: 0 | T10: 0 | V10: 0
A11: Ruraflex | B11: Ru | E11: RuN | J11: 0 | L11: 0 | N11: 0 | P11: 0 | R11: 0 | T11: 0 | V11: 0
A12: Ruraflex | B12: Ru | C12: 1 | D12: 1 | E12: Ru11N | H12: > 300km and ≤ 600km | I12: < 500V | J12: 260.35 | K12: 296.8 | L12: 78.87 | M12: 89.91 | N12: 42.83 | O12: 48.83 | P12: 84.92 | Q12: 96.81 | R12: 58.45 | S12: 66.63 | T12: 37.09 | U12: 42.28 | V12: 14.93 | W12: 17.02
A13: Ruraflex | B13: Ru | C13: 1 | D13: 2 | E13: Ru12N | I13: ≥ 500V & ≤ 22kV | J13: 257.76 | K13: 293.85 | L13: 78.08 | M13: 89.01 | N13: 42.41 | O13: 48.35 | P13: 84.09 | Q13: 95.86 | R13: 57.86 | S13: 65.96 | T13: 36.71 | U13: 41.85 | V13: 13.73 | W13: 15.65
A14: Ruraflex | B14: Ru | E14: RuN | J14: 0 | L14: 0 | N14: 0 | P14: 0 | R14: 0 | T14: 0 | V14: 0
A15: Ruraflex | B15: Ru | E15: RuN | J15: 0 | L15: 0 | N15: 0 | P15: 0 | R15: 0 | T15: 0 | V15: 0
A16: Ruraflex | B16: Ru | C16: 2 | D16: 1 | E16: Ru21N | H16: > 600km and ≤ 900km | I16: < 500V | J16: 262.95 | K16: 299.76 | L16: 79.66 | M16: 90.81 | N16: 43.25 | O16: 49.31 | P16: 85.78 | Q16: 97.79 | R16: 59.03 | S16: 67.29 | T16: 37.46 | U16: 42.7 | V16: 15.01 | W16: 17.11
A17: Ruraflex | B17: Ru | C17: 2 | D17: 2 | E17: Ru22N | I17: ≥ 500V & ≤ 22kV | J17: 260.34 | K17: 296.79 | L17: 78.86 | M17: 89.9 | N17: 42.83 | O17: 48.83 | P17: 84.92 | Q17: 96.81 | R17: 58.45 | S17: 66.63 | T17: 37.09 | U17: 42.28 | V17: 13.78 | W17: 15.71
A18: Ruraflex | B18: Ru | E18: RuN | J18: 0 | L18: 0 | N18: 0 | P18: 0 | R18: 0 | T18: 0 | V18: 0
A19: Ruraflex | B19: Ru | E19: RuN | J19: 0 | L19: 0 | N19: 0 | P19: 0 | R19: 0 | T19: 0 | V19: 0
A20: Ruraflex | B20: Ru | C20: 3 | D20: 1 | E20: Ru31N | H20: > 900km | I20: < 500V | J20: 265.58 | K20: 302.76 | L20: 80.46 | M20: 91.72 | N20: 43.68 | O20: 49.8 | P20: 86.62 | Q20: 98.75 | R20: 59.62 | S20: 67.97 | T20: 37.83 | U20: 43.13 | V20: 15.07 | W20: 17.18
A21: Ruraflex | B21: Ru | C21: 3 | D21: 2 | E21: Ru32N | I21: ≥ 500V & ≤ 22kV | J21: 262.94 | K21: 299.75 | L21: 79.66 | M21: 90.81 | N21: 43.25 | O21: 49.31 | P21: 85.78 | Q21: 97.79 | R21: 59.03 | S21: 67.29 | T21: 37.46 | U21: 42.7 | V21: 13.79 | W21: 15.72
N22: 0
N23: 0
H26: Customer categories | J26: Service charge [R/account/day] | L26: Administration charge [R/POD/day] | Q26: Ancillary service charge [c/kWh] | S26: Network demand charge [c/kWh] [All time of use periods]
O27: Voltage | R27: VAT incl | T27: VAT incl
A28: Tariff | B28: Tariff nameBillcode | C28: Tx zone | D28: Voltage | E28: Billcode | K28: VAT incl | M28: VAT incl | O28: < 500V | Q28: 0.33 | R28: =ROUND(Q28 * (1 + VAT), 2) -> 0.38 | S28: 21.19 | T28: =ROUND(S28 * (1 + VAT), 2) -> 24.16
A29: Ruraflex | B29: Ru | C29: 0 | D29: 1 | E29: =B29&C29&D29&IF($A$2="Non-municipal","N",IF($A$2="Municiple","Y","error")) -> Ru01N | H29: ≤ 100 kVA | J29: 14.64 | K29: =ROUND(J29 * (1 + VAT), 2) -> 16.69 | L29: 4.16 | M29: =ROUND(L29 * (1 + VAT), 2) -> 4.74 | O29: ≥ 500V & < 22kV | Q29: 0.33 | R29: =ROUND(Q29 * (1 + VAT), 2) -> 0.38 | S29: 18.57 | T29: =ROUND(S29 * (1 + VAT), 2) -> 21.17
A30: Ruraflex | B30: Ru | C30: 0 | D30: 1 | E30: =B30&C30&D30&IF($A$2="Non-municipal","N",IF($A$2="Municiple","Y","error")) -> Ru01N | H30: > 100 kVA & ≤ 500 kVA | J30: 49.94 | K30: =ROUND(J30 * (1 + VAT), 2) -> 56.93 | L30: 23.15 | M30: =ROUND(L30 * (1 + VAT), 2) -> 26.39
A31: Ruraflex | B31: Ru | C31: 0 | D31: 1 | E31: =B31&C31&D31&IF($A$2="Non-municipal","N",IF($A$2="Municiple","Y","error")) -> Ru01N | H31: > 500 kVA & ≤ 1 MVA | J31: 153.63 | K31: =ROUND(J31 * (1 + VAT), 2) -> 175.14 | L31: 35.53 | M31: =ROUND(L31 * (1 + VAT), 2) -> 40.5 | O31: Reactive energy charge [c/kVArh]
A32: Ruraflex | B32: Ru | C32: 0 | D32: 1 | E32: =B32&C32&D32&IF($A$2="Non-municipal","N",IF($A$2="Municiple","Y","error")) -> Ru01N | H32: > 1 MVA | J32: 153.63 | K32: =ROUND(J32 * (1 + VAT), 2) -> 175.14 | L32: 65.93 | M32: =ROUND(L32 * (1 + VAT), 2) -> 75.16 | O32: High season | Q32: Low season
A33: Ruraflex | B33: Ru | C33: 0 | D33: 1 | E33: =B33&C33&D33&IF($A$2="Non-municipal","N",IF($A$2="Municiple","Y","error")) -> Ru01N | H33: Key customers | J33: 3010.96 | K33: =ROUND(J33 * (1 + VAT), 2) -> 3432.49 | L33: 65.93 | M33: =ROUND(L33 * (1 + VAT), 2) -> 75.16 | P33: VAT incl | R33: VAT incl
O34: 7.16 | P34: =ROUND(O34 * (1 + VAT), 2) -> 8.16 | Q34: 0 | R34: =ROUND(Q34 * (1 + VAT), 2) -> 0

Sheet Ruraflex Munic inc
G1: Back to menu
A2: Municiple | G2: Ruraflex tariff | T2: Local authority | AF2: =SUM(#REF!,#REF!,#REF!,#REF!,#REF!,#REF!,#REF!,#REF!,#REF!,#REF!,#REF!,#REF!) ->  | AG2: check value
J4: Active energy charge [c/kWh] | V4: Network capacity charges [R/kVA/m]
H5: Transmission zone | J5: High demand season [Jun - Aug] | P5: Low demand season [Sep - May]
I6: Voltage | J6: Peak | L6: Standard | N6: Off Peak | P6: Peak | R6: Standard | T6: Off Peak
A7: Tariff | B7: Tariff nameBillcode | C7: Tx zone | D7: Voltage | E7: Billcode | K7: VAT incl | M7: VAT incl | O7: VAT incl | Q7: VAT incl | S7: VAT incl | U7: VAT incl | W7: VAT incl
A8: Ruraflex | B8: Ru | C8: 0 | D8: 1 | E8: =B8&C8&D8&IF($A$2="Non-municipal","N",IF($A$2="Municiple","Y","error")) -> Ru01Y | H8: ≤ 300km | I8: < 500V | J8: 267.69 | K8: =ROUND(J8 * (1 + VAT), 2) -> 305.17 | L8: 81.09 | M8: =ROUND(L8 * (1 + VAT), 2) -> 92.44 | N8: 44.04 | O8: =ROUND(N8 * (1 + VAT), 2) -> 50.21 | P8: 87.33 | Q8: =ROUND(P8 * (1 + VAT), 2) -> 99.56 | R8: 60.1 | S8: =ROUND(R8 * (1 + VAT), 2) -> 68.51 | T8: 38.12 | U8: =ROUND(T8 * (1 + VAT), 2) -> 43.46 | V8: 15.22 | W8: =ROUND(V8 * (1 + VAT), 2) -> 17.35
A9: Ruraflex | B9: Ru | C9: 0 | D9: 2 | E9: =B9&C9&D9&IF($A$2="Non-municipal","N",IF($A$2="Municiple","Y","error")) -> Ru02Y | I9: ≥ 500V & ≤ 22kV | J9: 265.03 | K9: 302.13 | L9: 80.29 | M9: 91.53 | N9: 43.59 | O9: 49.69 | P9: 86.47 | Q9: 98.58 | R9: 59.48 | S9: 67.81 | T9: 37.73 | U9: 43.01 | V9: 13.96 | W9: 15.91
A10: Ruraflex | B10: Ru | E10: RuY | J10: 0 | L10: 0 | N10: 0 | P10: 0 | R10: 0 | T10: 0 | V10: 0
A11: Ruraflex | B11: Ru | E11: RuY | J11: 0 | L11: 0 | N11: 0 | P11: 0 | R11: 0 | T11: 0 | V11: 0
A12: Ruraflex | B12: Ru | C12: 1 | D12: 1 | E12: Ru11Y | H12: > 300km and ≤ 600km | I12: < 500V | J12: 270.36 | K12: 308.21 | L12: 81.91 | M12: 93.38 | N12: 44.46 | O12: 50.68 | P12: 88.19 | Q12: 100.54 | R12: 60.7 | S12: 69.2 | T12: 38.51 | U12: 43.9 | V12: 15.29 | W12: 17.43
A13: Ruraflex | B13: Ru | C13: 1 | D13: 2 | E13: Ru12Y | I13: ≥ 500V & ≤ 22kV | J13: 267.68 | K13: 305.16 | L13: 81.08 | M13: 92.43 | N13: 44.04 | O13: 50.21 | P13: 87.33 | Q13: 99.56 | R13: 60.09 | S13: 68.5 | T13: 38.12 | U13: 43.46 | V13: 14.05 | W13: 16.02
A14: Ruraflex | B14: Ru | E14: RuY | J14: 0 | L14: 0 | N14: 0 | P14: 0 | R14: 0 | T14: 0 | V14: 0
A15: Ruraflex | B15: Ru | E15: RuY | J15: 0 | L15: 0 | N15: 0 | P15: 0 | R15: 0 | T15: 0 | V15: 0
A16: Ruraflex | B16: Ru | C16: 2 | D16: 1 | E16: Ru21Y | H16: > 600km and ≤ 900km | I16: < 500V | J16: 273.07 | K16: 311.3 | L16: 82.71 | M16: 94.29 | N16: 44.92 | O16: 51.21 | P16: 89.07 | Q16: 101.54 | R16: 61.29 | S16: 69.87 | T16: 38.9 | U16: 44.35 | V16: 15.37 | W16: 17.52
A17: Ruraflex | B17: Ru | C17: 2 | D17: 2 | E17: Ru22Y | I17: ≥ 500V & ≤ 22kV | J17: 270.35 | K17: 308.2 | L17: 81.9 | M17: 93.37 | N17: 44.46 | O17: 50.68 | P17: 88.19 | Q17: 100.54 | R17: 60.7 | S17: 69.2 | T17: 38.51 | U17: 43.9 | V17: 14.11 | W17: 16.09
A18: Ruraflex | B18: Ru | E18: RuY | J18: 0 | L18: 0 | N18: 0 | P18: 0 | R18: 0 | T18: 0 | V18: 0
A19: Ruraflex | B19: Ru | E19: RuY | J19: 0 | L19: 0 | N19: 0 | P19: 0 | R19: 0 | T19: 0 | V19: 0
A20: Ruraflex | B20: Ru | C20: 3 | D20: 1 | E20: Ru31Y | H20: > 900km | I20: < 500V | J20: 275.8 | K20: 314.41 | L20: 83.56 | M20: 95.26 | N20: 45.35 | O20: 51.7 | P20: 89.95 | Q20: 102.54 | R20: 61.92 | S20: 70.59 | T20: 39.28 | U20: 44.78 | V20: 15.42 | W20: 17.58
A21: Ruraflex | B21: Ru | C21: 3 | D21: 2 | E21: Ru32Y | I21: ≥ 500V & ≤ 22kV | J21: 273.06 | K21: 311.29 | L21: 82.71 | M21: 94.29 | N21: 44.92 | O21: 51.21 | P21: 89.07 | Q21: 101.54 | R21: 61.29 | S21: 69.87 | T21: 38.9 | U21: 44.35 | V21: 14.12 | W21: 16.1
N22: 0
N23: 0
H26: Customer categories | J26: Service charge [R/account/day] | L26: Administration charge [R/POD/day] | Q26: Ancillary service charge [c/kWh] | S26: Network demand charge [c/kWh] [All time of use periods]
O27: Voltage | R27: VAT incl | T27: VAT incl
A28: Tariff | B28: Tariff nameBillcode | C28: Tx zone | D28: Voltage | E28: Billcode | K28: VAT incl | M28: VAT incl | O28: < 500V | Q28: 0.33 | R28: =ROUND(Q28 * (1 + VAT), 2) -> 0.38 | S28: 21.71 | T28: =ROUND(S28 * (1 + VAT), 2) -> 24.75
A29: Ruraflex | B29: Ru | C29: 0 | D29: 1 | E29: =B29&C29&D29&IF($A$2="Non-municipal","N",IF($A$2="Municiple","Y","error")) -> Ru01Y | H29: ≤ 100 kVA | J29: 14.79 | K29: =ROUND(J29 * (1 + VAT), 2) -> 16.86 | L29: 4.2 | M29: =ROUND(L29 * (1 + VAT), 2) -> 4.79 | O29: ≥ 500V & < 22kV | Q29: 0.33 | R29: =ROUND(Q29 * (1 + VAT), 2) -> 0.38 | S29: 19.01 | T29: =ROUND(S29 * (1 + VAT), 2) -> 21.67
A30: Ruraflex | B30: Ru | C30: 0 | D30: 1 | E30: =B30&C30&D30&IF($A$2="Non-municipal","N",IF($A$2="Municiple","Y","error")) -> Ru01Y | H30: > 100 kVA & ≤ 500 kVA | J30: 50.43 | K30: =ROUND(J30 * (1 + VAT), 2) -> 57.49 | L30: 23.37 | M30: =ROUND(L30 * (1 + VAT), 2) -> 26.64
A31: Ruraflex | B31: Ru | C31: 0 | D31: 1 | E31: =B31&C31&D31&IF($A$2="Non-municipal","N",IF($A$2="Municiple","Y","error")) -> Ru01Y | H31: > 500 kVA & ≤ 1 MVA | J31: 155.12 | K31: =ROUND(J31 * (1 + VAT), 2) -> 176.84 | L31: 35.87 | M31: =ROUND(L31 * (1 + VAT), 2) -> 40.89 | O31: Reactive energy charge [c/kVArh]
A32: Ruraflex | B32: Ru | C32: 0 | D32: 1 | E32: =B32&C32&D32&IF($A$2="Non-municipal","N",IF($A$2="Municiple","Y","error")) -> Ru01Y | H32: > 1 MVA | J32: 155.12 | K32: =ROUND(J32 * (1 + VAT), 2) -> 176.84 | L32: 66.58 | M32: =ROUND(L32 * (1 + VAT), 2) -> 75.9 | O32: High season | Q32: Low season
A33: Ruraflex | B33: Ru | C33: 0 | D33: 1 | E33: =B33&C33&D33&IF($A$2="Non-municipal","N",IF($A$2="Municiple","Y","error")) -> Ru01Y | H33: Key customers | J33: 3039.93 | K33: =ROUND(J33 * (1 + VAT), 2) -> 3465.52 | L33: 66.58 | M33: =ROUND(L33 * (1 + VAT), 2) -> 75.9 | P33: VAT incl | R33: VAT incl
O34: 7.22 | P34: =ROUND(O34 * (1 + VAT), 2) -> 8.23 | Q34: 0 | R34: =ROUND(Q34 * (1 + VAT), 2) -> 0

Sheet Genflex Rural inc
G1: Back to menu
A2: Non-municipal | G2: Genflex Rural tariff | T2: Non-local authority | AF2: =SUM(#REF!,#REF!,#REF!,#REF!,#REF!,#REF!,#REF!,#REF!,#REF!,#REF!,#REF!,#REF!) ->  | AG2: check value
J4: Active energy charge [c/kWh] | V4: Network capacity charges [R/kVA/m]
H5: Transmission zone | J5: High demand season [Jun - Aug] | P5: Low demand season [Sep - May]
I6: Voltage | J6: Peak | L6: Standard | N6: Off Peak | P6: Peak | R6: Standard | T6: Off Peak
A7: Tariff | B7: Tariff nameBillcode | C7: Tx zone | D7: Voltage | E7: Billcode | K7: VAT incl | M7: VAT incl | O7: VAT incl | Q7: VAT incl | S7: VAT incl | U7: VAT incl | W7: VAT incl
A8: Genflex rural | B8: GR | C8: 0 | D8: 1 | E8: =B8&C8&D8&IF($A$2="Non-municipal","N",IF($A$2="Municiple","Y","error")) -> GR01N | H8: ≤ 300km | I8: < 500V | J8: 257.77 | K8: =ROUND(J8 * (1 + VAT), 2) -> 293.86 | L8: 78.09 | M8: =ROUND(L8 * (1 + VAT), 2) -> 89.02 | N8: 42.41 | O8: =ROUND(N8 * (1 + VAT), 2) -> 48.35 | P8: 84.09 | Q8: =ROUND(P8 * (1 + VAT), 2) -> 95.86 | R8: 57.87 | S8: =ROUND(R8 * (1 + VAT), 2) -> 65.97 | T8: 36.71 | U8: =ROUND(T8 * (1 + VAT), 2) -> 41.85 | V8: 14.88 | W8: =ROUND(V8 * (1 + VAT), 2) -> 16.96
A9: Genflex rural | B9: GR | C9: 0 | D9: 2 | E9: =B9&C9&D9&IF($A$2="Non-municipal","N",IF($A$2="Municiple","Y","error")) -> GR02N | I9: ≥ 500V & ≤ 22kV | J9: 255.22 | K9: 290.95 | L9: 77.32 | M9: 88.14 | N9: 41.98 | O9: 47.86 | P9: 83.26 | Q9: 94.92 | R9: 57.29 | S9: 65.31 | T9: 36.34 | U9: 41.43 | V9: 13.64 | W9: 15.55
A10: Genflex rural | B10: GR | E10: GRN | J10: 0 | L10: 0 | N10: 0 | P10: 0 | R10: 0 | T10: 0 | V10: 0
A11: Genflex rural | B11: GR | E11: GRN | J11: 0 | L11: 0 | N11: 0 | P11: 0 | R11: 0 | T11: 0 | V11: 0
A12: Genflex rural | B12: GR | C12: 1 | D12: 1 | E12: GR11N | H12: > 300km and ≤ 600km | I12: < 500V | J12: 260.35 | K12: 296.8 | L12: 78.87 | M12: 89.91 | N12: 42.83 | O12: 48.83 | P12: 84.92 | Q12: 96.81 | R12: 58.45 | S12: 66.63 | T12: 37.09 | U12: 42.28 | V12: 14.93 | W12: 17.02
A13: Genflex rural | B13: GR | C13: 1 | D13: 2 | E13: GR12N | I13: ≥ 500V & ≤ 22kV | J13: 257.76 | K13: 293.85 | L13: 78.08 | M13: 89.01 | N13: 42.41 | O13: 48.35 | P13: 84.09 | Q13: 95.86 | R13: 57.86 | S13: 65.96 | T13: 36.71 | U13: 41.85 | V13: 13.73 | W13: 15.65
A14: Genflex rural | B14: GR | E14: GRN | J14: 0 | L14: 0 | N14: 0 | P14: 0 | R14: 0 | T14: 0 | V14: 0
A15: Genflex rural | B15: GR | E15: GRN | J15: 0 | L15: 0 | N15: 0 | P15: 0 | R15: 0 | T15: 0 | V15: 0
A16: Genflex rural | B16: GR | C16: 2 | D16: 1 | E16: GR21N | H16: > 600km and ≤ 900km | I16: < 500V | J16: 262.95 | K16: 299.76 | L16: 79.66 | M16: 90.81 | N16: 43.25 | O16: 49.31 | P16: 85.78 | Q16: 97.79 | R16: 59.03 | S16: 67.29 | T16: 37.46 | U16: 42.7 | V16: 15.01 | W16: 17.11
A17: Genflex rural | B17: GR | C17: 2 | D17: 2 | E17: GR22N | I17: ≥ 500V & ≤ 22kV | J17: 260.34 | K17: 296.79 | L17: 78.86 | M17: 89.9 | N17: 42.83 | O17: 48.83 | P17: 84.92 | Q17: 96.81 | R17: 58.45 | S17: 66.63 | T17: 37.09 | U17: 42.28 | V17: 13.78 | W17: 15.71
A18: Genflex rural | B18: GR | E18: GRN | J18: 0 | L18: 0 | N18: 0 | P18: 0 | R18: 0 | T18: 0 | V18: 0
A19: Genflex rural | B19: GR | E19: GRN | J19: 0 | L19: 0 | N19: 0 | P19: 0 | R19: 0 | T19: 0 | V19: 0
A20: Genflex rural | B20: GR | C20: 3 | D20: 1 | E20: GR31N | H20: > 900km | I20: < 500V | J20: 265.58 | K20: 302.76 | L20: 80.46 | M20: 91.72 | N20: 43.68 | O20: 49.8 | P20: 86.62 | Q20: 98.75 | R20: 59.62 | S20: 67.97 | T20: 37.83 | U20: 43.13 | V20: 15.07 | W20: 17.18
A21: Genflex rural | B21: GR | C21: 3 | D21: 2 | E21: GR32N | I21: ≥ 500V & ≤ 22kV | J21: 262.94 | K21: 299.75 | L21: 79.66 | M21: 90.81 | N21: 43.25 | O21: 49.31 | P21: 85.78 | Q21: 97.79 | R21: 59.03 | S21: 67.29 | T21: 37.46 | U21: 42.7 | V21: 13.79 | W21: 15.72
N22: 0
N23: 0
A24: Gen-purchase | B24: NLPurchADJ | C24: 0 | D24: 4 | E24: =B24&C24&D24&IF($A$2="Non-municipal","N",IF($A$2="Municiple","Y","error")) -> NLPurchADJ04N
H28: Customer categories | J28: Service charge [R/account/day] | L28: Administration charge [R/POD/day] | O28: Voltage | Q28: Ancillary service charge [c/kWh]
H29: [kVA or MVA = loads] | R29: VAT incl
A30: Tariff | B30: Tariff nameBillcode | C30: Tx zone | D30: Voltage | E30: Billcode | H30: [kW or MW = generators] | K30: VAT incl | M30: VAT incl | O30: < 500V | Q30: 0.33 | R30: =ROUND(Q30 * (1 + VAT), 2) -> 0.38
A31: Genflex rural | B31: GR | C31: 0 | D31: 1 | E31: =B31&C31&D31&IF($A$2="Non-municipal","N",IF($A$2="Municiple","Y","error")) -> GR01N | H31: ≤ 100 kVA/kW | J31: 14.64 | K31: =ROUND(J31 * (1 + VAT), 2) -> 16.69 | L31: 4.16 | M31: =ROUND(L31 * (1 + VAT), 2) -> 4.74 | O31: ≥ 500V & < 22kV | Q31: 0.33 | R31: =ROUND(Q31 * (1 + VAT), 2) -> 0.38
A32: Genflex rural | B32: GR | C32: 0 | D32: 1 | E32: =B32&C32&D32&IF($A$2="Non-municipal","N",IF($A$2="Municiple","Y","error")) -> GR01N | H32: > 100 KVA/kW & ≤ 500 kVA/kW | J32: 49.94 | K32: =ROUND(J32 * (1 + VAT), 2) -> 56.93 | L32: 23.15 | M32: =ROUND(L32 * (1 + VAT), 2) -> 26.39
A33: Genflex rural | B33: GR | C33: 0 | D33: 1 | E33: =B33&C33&D33&IF($A$2="Non-municipal","N",IF($A$2="Municiple","Y","error")) -> GR01N | H33: > 500 kVA/kW & ≤ 1 MVA/MW | J33: 153.63 | K33: =ROUND(J33 * (1 + VAT), 2) -> 175.14 | L33: 35.53 | M33: =ROUND(L33 * (1 + VAT), 2) -> 40.5 | O33: Reactive energy charge [c/kVArh] | S33: Network demand charge [c/kWh]
A34: Genflex rural | B34: GR | C34: 0 | D34: 1 | E34: =B34&C34&D34&IF($A$2="Non-municipal","N",IF($A$2="Municiple","Y","error")) -> GR01N | H34: > 1 MVA/MW | J34: 153.63 | K34: =ROUND(J34 * (1 + VAT), 2) -> 175.14 | L34: 65.93 | M34: =ROUND(L34 * (1 + VAT), 2) -> 75.16 | O34: High season | Q34: Low season | T34: VAT incl
A35: Genflex rural | B35: GR | C35: 0 | D35: 1 | E35: =B35&C35&D35&IF($A$2="Non-municipal","N",IF($A$2="Municiple","Y","error")) -> GR01N | H35: Key customers | J35: 3010.96 | K35: =ROUND(J35 * (1 + VAT), 2) -> 3432.49 | L35: 65.93 | M35: =ROUND(L35 * (1 + VAT), 2) -> 75.16 | P35: VAT incl | R35: VAT incl | S35: 21.19 | T35: =ROUND(S35 * (1 + VAT), 2) -> 24.16
O36: 7.16 | P36: =ROUND(O36 * (1 + VAT), 2) -> 8.16 | Q36: 0 | R36: =ROUND(Q36 * (1 + VAT), 2) -> 0 | S36: 18.57 | T36: =ROUND(S36 * (1 + VAT), 2) -> 21.17

Sheet Landrate inc
H1: Back to menu
A2: Non-municipal | H2: Landrate tariffs | R2: Non-local authority
J4: Energy charge [c/kWh] | L4: Ancillary service charge [c/kWh] | N4: Network demand charge [c/kWh] | P4: Network capacity charge [R/POD/day] | R4: Service charge [R/POD/day]
A5: Tariff | B5: Tariff nameBillcode | C5: Tx zone | D5: Voltage | E5: Billcode | K5: VAT incl | M5: VAT incl | O5: VAT incl | Q5: VAT incl | S5: VAT incl
A6: Landrate 1 | B6: L1 | C6: 0 | D6: 1 | E6: =B6&C6&D6&IF($A$2="Non-municipal","N",IF($A$2="Municiple","Y","error")) -> L101N | H6: Landrate 1 | J6: 84.82 | K6: =ROUND(J6 * (1 + VAT), 2) -> 96.69 | L6: 0.33 | M6: =ROUND(L6 * (1 + VAT), 2) -> 0.38 | N6: 21.19 | O6: =ROUND(N6 * (1 + VAT), 2) -> 24.16 | P6: 22.65 | Q6: =ROUND(P6 * (1 + VAT), 2) -> 25.82 | R6: 18.81 | S6: =ROUND(R6 * (1 + VAT), 2) -> 21.44
A7: Landrate 2 | B7: L2 | C7: 0 | D7: 1 | E7: =B7&C7&D7&IF($A$2="Non-municipal","N",IF($A$2="Municiple","Y","error")) -> L201N | H7: Landrate 2 | J7: 84.82 | K7: =ROUND(J7 * (1 + VAT), 2) -> 96.69 | L7: 0.33 | M7: =ROUND(L7 * (1 + VAT), 2) -> 0.38 | N7: 21.19 | O7: =ROUND(N7 * (1 + VAT), 2) -> 24.16 | P7: 34.82 | Q7: =ROUND(P7 * (1 + VAT), 2) -> 39.69 | R7: 18.81 | S7: =ROUND(R7 * (1 + VAT), 2) -> 21.44
A8: Landrate 3 | B8: L3 | C8: 0 | D8: 1 | E8: L301N | H8: Landrate 3 | J8: 84.82 | K8: =ROUND(J8 * (1 + VAT), 2) -> 96.69 | L8: 0.33 | M8: =ROUND(L8 * (1 + VAT), 2) -> 0.38 | N8: 21.19 | O8: =ROUND(N8 * (1 + VAT), 2) -> 24.16 | P8: 55.67 | Q8: =ROUND(P8 * (1 + VAT), 2) -> 63.46 | R8: 18.81 | S8: =ROUND(R8 * (1 + VAT), 2) -> 21.44
A9: Landrate 4 | B9: L4 | C9: 0 | D9: 1 | E9: L401N | H9: Landrate 4 | J9: 183.19 | K9: =ROUND(J9 * (1 + VAT), 2) -> 208.84 | L9: 0.33 | M9: =ROUND(L9 * (1 + VAT), 2) -> 0.38 | N9: 21.19 | O9: =ROUND(N9 * (1 + VAT), 2) -> 24.16 | P9: 18.04 | Q9: =ROUND(P9 * (1 + VAT), 2) -> 20.57 | R9: 0 | S9: =ROUND(R9 * (1 + VAT), 2) -> 0
A10: Landlight | B10: Lt | C10: 0 | D10: 1 | E10: Lt01N | H10: Landlight | J10: 313.23 | K10: =ROUND(J10 * (1 + VAT), 2) -> 357.08
A11: Landrate Dx | B11: Ld | C11: 0 | D11: 1 | E11: Ld01N | H11: Landrate Dx | R11: 40.34610576 | S11: =ROUND(R11 * (1 + VAT), 2) -> 45.99

Sheet Landrate Munic inc
H1: Back to menu
A2: Municiple | H2: Landrate tariffs | S2: Local authority
J4: Energy charge [c/kWh] | L4: Ancillary service charge [c/kWh] | N4: Network demand charge [c/kWh] | P4: Network capacity charge [R/POD/day] | R4: Service charge [R/POD/day]
A5: Tariff | B5: Tariff nameBillcode | C5: Tx zone | D5: Voltage | E5: Billcode | K5: VAT incl | M5: VAT incl | O5: VAT incl | Q5: VAT incl | S5: VAT incl
A6: Landrate 1 | B6: L1 | C6: 0 | D6: 1 | E6: =B6&C6&D6&IF($A$2="Non-municipal","N",IF($A$2="Municiple","Y","error")) -> L101Y | H6: Landrate 1 | J6: 88.08 | K6: =ROUND(J6 * (1 + VAT), 2) -> 100.41 | L6: 0.33 | M6: =ROUND(L6 * (1 + VAT), 2) -> 0.38 | N6: 21.71 | O6: =ROUND(N6 * (1 + VAT), 2) -> 24.75 | P6: 23.18 | Q6: =ROUND(P6 * (1 + VAT), 2) -> 26.43 | R6: 18.99 | S6: =ROUND(R6 * (1 + VAT), 2) -> 21.65
A7: Landrate 2 | B7: L2 | C7: 0 | D7: 1 | E7: =B7&C7&D7&IF($A$2="Non-municipal","N",IF($A$2="Municiple","Y","error")) -> L201Y | H7: Landrate 2 | J7: 88.08 | K7: =ROUND(J7 * (1 + VAT), 2) -> 100.41 | L7: 0.33 | M7: =ROUND(L7 * (1 + VAT), 2) -> 0.38 | N7: 21.71 | O7: =ROUND(N7 * (1 + VAT), 2) -> 24.75 | P7: 35.64 | Q7: =ROUND(P7 * (1 + VAT), 2) -> 40.63 | R7: 18.99 | S7: =ROUND(R7 * (1 + VAT), 2) -> 21.65
A8: Landrate 3 | B8: L3 | C8: 0 | D8: 1 | E8: L301Y | H8: Landrate 3 | J8: 88.08 | K8: =ROUND(J8 * (1 + VAT), 2) -> 100.41 | L8: 0.33 | M8: =ROUND(L8 * (1 + VAT), 2) -> 0.38 | N8: 21.71 | O8: =ROUND(N8 * (1 + VAT), 2) -> 24.75 | P8: 56.99 | Q8: =ROUND(P8 * (1 + VAT), 2) -> 64.97 | R8: 18.99 | S8: =ROUND(R8 * (1 + VAT), 2) -> 21.65
A9: Landrate 4 | B9: L4 | C9: 0 | D9: 1 | E9: L401Y | H9: Landrate 4 | J9: 190.23 | K9: =ROUND(J9 * (1 + VAT), 2) -> 216.86 | L9: 0.33 | M9: =ROUND(L9 * (1 + VAT), 2) -> 0.38 | N9: 21.71 | O9: =ROUND(N9 * (1 + VAT), 2) -> 24.75 | P9: 18.47 | Q9: =ROUND(P9 * (1 + VAT), 2) -> 21.06
A10: Landrate Dx | B10: Ld | C10: 0 | D10: 1 | E10: =B10&C10&D10&IF($A$2="Non-municipal","N",IF($A$2="Municiple","Y","error")) -> Ld01Y | H10: Landrate Dx | R10: 41.08037959 | S10: =ROUND(R10 * (1 + VAT), 2) -> 46.83

Sheet Homeflex inc
B2: Homeflex | O2: Non-local authority | AC2: =SUM(F6,J6:J16,L6:N16) -> 384.52 | AD2: check value
F4: Peak energy charge [c/kWh] | H4: Off peak energy charge [c/kWh] | J4: Service & administration charge [c/kWh] | L4: Network demand charge [c/kWh] | N4: Network capacity charge [R/POD/day]
G5: VAT incl | I5: VAT incl | K5: VAT incl | M5: VAT incl | O5: VAT incl
D6: Homeflex 1 | E6: High Demand | F6: 262.52 | G6: =ROUND(F6 * (1 + VAT), 2) -> 299.27 | H6: 85.87 | I6: =ROUND(H6 * (1 + VAT), 2) -> 97.89 | J6: 4.37 | K6: 4.98 | L6: 0 | M6: 0 | N6: 5.43 | O6: 6.19
E7: Low Demand | F7: 101.74 | G7: =ROUND(F7 * (1 + VAT), 2) -> 115.98 | H7: 69.34 | I7: 79.05 | J7: 4.37 | K7: 4.98 | L7: 0 | M7: 0 | N7: 5.43 | O7: 6.19
D8: Homeflex 2 | E8: High Demand | F8: 262.52 | G8: 299.27 | H8: 85.87 | I8: 97.89 | J8: 4.37 | K8: 4.98 | L8: 0 | M8: 0 | N8: 11.72 | O8: 13.36
E9: Low Demand | F9: 101.74 | G9: 115.98 | H9: 69.34 | I9: 79.05 | J9: 4.37 | K9: 4.98 | L9: 0 | M9: 0 | N9: 11.72 | O9: 13.36
D10: Homeflex 3 | E10: High Demand | F10: 262.52 | G10: 299.27 | H10: 85.87 | I10: 97.89 | J10: 4.37 | K10: 4.98 | L10: 0 | M10: 0 | N10: 23.6 | O10: 26.9
E11: Low Demand | F11: 101.74 | G11: 115.98 | H11: 69.34 | I11: 79.05 | J11: 4.37 | K11: 4.98 | L11: 0 | M11: 0 | N11: 23.6 | O11: 26.9
D12: Homeflex 4 | E12: High Demand | F12: 262.52 | G12: 299.27 | H12: 85.87 | I12: 97.89 | J12: 4.37 | K12: 4.98 | L12: 0 | M12: 0 | N12: 2.77 | O12: 3.16
E13: Low Demand | F13: 101.74 | G13: 115.98 | H13: 69.34 | I13: 79.05 | J13: 4.37 | K13: 4.98 | L13: 0 | M13: 0 | N13: 2.77 | O13: 3.16
F14: The Network capacity charge is a R/kVA charge and is based on the Notified Maximum Demand (NMD).

Sheet TOuS Original (hidden)
B4: Reliability service charge urban | D4: Charge [c/kWh]
E5: VAT incl
B6: < 500V | D6: 0.27 | E6: =ROUND(D6 * (1 + VAT), 2) -> 0.31
B7: ≥ 500V & < 66kV | D7: 0.26 | E7: =ROUND(D7 * (1 + VAT), 2) -> 0.3
B8: ≥ 66kV & ≤ 132kV | D8: 0.25 | E8: =ROUND(D8 * (1 + VAT), 2) -> 0.29
B9: > 132kV | D9: 0.23 | E9: =ROUND(D9 * (1 + VAT), 2) -> 0.26
B12: Reliability service charge rural | D12: Charge [c/kWh]
E13: VAT incl
B14: < 500V | D14: 0.27 | E14: =ROUND(D14 * (1 + VAT), 2) -> 0.31
B15: ≥ 500V & ≤ 22kV | D15: 0.27 | E15: =ROUND(D15 * (1 + VAT), 2) -> 0.31
C18: Transmission zone | D18: Voltage | E18: R/kVA
F19: VAT incl
B20: ETUoS urban | C20: ≤ 300km | D20: < 500V | E20: 11.36438596 | F20: =ROUND(E20 * (1 + VAT), 2) -> 12.96
D21: ≥ 500V & < 66kV | E21: 11.19400536 | F21: 12.76
D22: ≥ 66kV & ≤ 132kV | E22: 10.8362061 | F22: 12.35
C23: > 300km & ≤ 600km | D23: < 500V | E23: 11.46661432 | F23: 13.07
D24: ≥ 500V & < 66kV | E24: 11.31327178 | F24: 12.9
D25: ≥ 66kV & ≤ 132kV | E25: 10.95547252 | F25: 12.49
C26: > 600km & ≤ 900km | D26: < 500V | E26: 11.58588074 | F26: 13.21
D27: ≥ 500V & < 66kV | E27: 11.4325382 | F27: 13.03
D28: ≥ 66kV & ≤ 132kV | E28: 11.05770088 | F28: 12.61
C29: > 900km | D29: < 500V | E29: 11.70514716 | F29: 13.34
D30: ≥ 500V & < 66kV | E30: 11.55180462 | F30: 13.17
D31: ≥ 66kV & ≤ 132kV | E31: 11.1769673 | F31: 12.74
C34: Transmission zone | D34: Voltage | E34: R/kVA
F35: VAT incl
B36: ETUoS rural | C36: ≤ 300km | D36: < 500V | E36: 11.7732994 | F36: =ROUND(E36 * (1 + VAT), 2) -> 13.42
D37: ≥ 500V & < 66kV | E37: 11.67107104 | F37: 13.31
C38: > 300km & ≤ 600km | D38: < 500V | E38: 11.89256582 | F38: 13.56
D39: ≥ 500V & < 66kV | E39: 11.79033746 | F39: 13.44
C40: > 600km & ≤ 900km | D40: < 500V | E40: 12.01183224 | F40: 13.69
D41: ≥ 500V & < 66kV | E41: 11.90960388 | F41: 13.58
C42: > 900km | D42: < 500V | E42: 12.13109866 | F42: 13.83
D43: ≥ 500V & < 66kV | E43: 12.0288703 | F43: 13.71
B46: Distribution network charges urban
D47: Network access charge [R/kVA/m] | F47: Network demand charge [R/kVA/m] | H47: Urban low voltage subsidy charge [R/kVA/m]
B49: Voltage | E49: VAT incl | G49: VAT incl | I49: VAT incl
B50: < 500V | D50: =#REF! ->  | E50: =ROUND(D50 * (1 + VAT), 2) ->  | F50: =#REF! ->  | G50: =ROUND(F50 * (1 + VAT), 2) ->  | H50: =#REF! ->  | I50: =ROUND(H50 * (1 + VAT), 2) -> 
B51: ≥ 500V & < 66kV | D51: =#REF! ->  | E51: =ROUND(D51 * (1 + VAT), 2) ->  | F51: =#REF! ->  | G51: =ROUND(F51 * (1 + VAT), 2) ->  | H51: =#REF! ->  | I51: =ROUND(H51 * (1 + VAT), 2) -> 
B52: ≥ 66kV & ≤ 132kV | D52: =#REF! ->  | E52: =ROUND(D52 * (1 + VAT), 2) ->  | F52: =#REF! ->  | G52: =ROUND(F52 * (1 + VAT), 2) ->  | H52: =#REF! ->  | I52: =ROUND(H52 * (1 + VAT), 2) -> 
B53: > 132kV | D53: =#REF! ->  | E53: =ROUND(D53 * (1 + VAT), 2) ->  | F53: =#REF! ->  | G53: =ROUND(F53 * (1 + VAT), 2) ->  | H53: =#REF! ->  | I53: =ROUND(H53 * (1 + VAT), 2) -> 
B56: Distribution network charges rural
D57: Network access charge [R/kVA/m] | F57: Network demand charge [c/kWh]
B59: Voltage | E59: VAT incl | G59: VAT incl
B60: < 500V | D60: 6.201664795 | E60: =ROUND(D60 * (1 + VAT), 2) -> 7.07 | F60: 19.67324725 | G60: =ROUND(F60 * (1 + VAT), 2) -> 22.43
B61: ≥ 500V & ≤ 22kV | D61: 2.297555913 | E61: =ROUND(D61 * (1 + VAT), 2) -> 2.62 | F61: 17.23886725 | G61: =ROUND(F61 * (1 + VAT), 2) -> 19.65
B64: Distribution network charges for Generators
D65: Network access charge [R/MW/m]
B67: Voltage | E67: VAT incl
B68: < 500V
B69: ≥ 500V & < 66kV
B70: ≥ 66kV & ≤ 132kV | D70: 9.4 | E70: =ROUND(D70 * (1 + VAT), 2) -> 10.72
B73: Electrification and rural network subsidy charge [c/kWh]
D74: Rural network subsidy charge [c/kWh] | F74: Electrification networks subsidy charge [c/kWh] | H74: Total electrification and rural network subsidy charge [c/kWh]
B76: Tariff | E76: VAT incl | G76: VAT incl | I76: VAT incl
B77: Megaflex, Miniflex, Nightsave Urban Large, Nightsave Urban Small, Businessrate
D78: 2.68 | E78: =ROUND(D78 * (1 + VAT), 2) -> 3.06 | F78: 0.91 | G78: =ROUND(F78 * (1 + VAT), 2) -> 1.04 | H78: 3.59 | I78: =ROUND(H78 * (1 + VAT), 2) -> 4.09
B83: Service and admin charges
B84: Customer categories | D84: Service charge [R/account/day] | F84: Administration charge [R/POD/day]
E86: VAT incl | G86: VAT incl
B87: ≤ 100 kVA | D87: 9.49 | E87: =ROUND(D87 * (1 + VAT), 2) -> 10.82 | F87: 2.08 | G87: =ROUND(F87 * (1 + VAT), 2) -> 2.37
B88: > 100 kVA & ≤ 500 kVA | D88: 43.38 | E88: =ROUND(D88 * (1 + VAT), 2) -> 49.45 | F88: 12.16 | G88: =ROUND(F88 * (1 + VAT), 2) -> 13.86
B89: > 500 kVA & ≤ 1 MVA | D89: 133.5 | E89: =ROUND(D89 * (1 + VAT), 2) -> 152.19 | F89: 24.17 | G89: =ROUND(F89 * (1 + VAT), 2) -> 27.55
B90: > 1 MVA | D90: 133.5 | E90: =ROUND(D90 * (1 + VAT), 2) -> 152.19 | F90: 60.17 | G90: =ROUND(F90 * (1 + VAT), 2) -> 68.59
B91: Key customers | D91: 2616.06 | E91: =ROUND(D91 * (1 + VAT), 2) -> 2982.31 | F91: 83.55 | G91: =ROUND(F91 * (1 + VAT), 2) -> 95.25
B94: Distribution loss factors | F94: Transmission loss factors for loads
B95: Voltage | C95: Urban loss factor | D95: Rural loss factor | F95: Distance from Johannesburg | G95: Zone | H95: Loss factor
B96: < 500V | C96: ='Loss Factors'!O6 -> 1.1111 | D96: ='Loss Factors'!P6 -> 1.1527 | F96: 0 to 300 km | G96: 0 | H96: ='Loss Factors'!T6 -> 1.0107
B97: ≥ 500V & < 66kV | C97: ='Loss Factors'!O7 -> 1.0957 | D97: ='Loss Factors'!P7 -> 1.1412 | F97: 301 to 600 km | G97: 1 | H97: ='Loss Factors'!T7 -> 1.0208
B98: ≥ 66kV & ≤ 132kV | C98: ='Loss Factors'!O8 -> 1.0611 | F98: 601 to 900 km | G98: 2 | H98: ='Loss Factors'!T8 -> 1.031
B99: > 132kV | C99: ='Loss Factors'!O9 -> 1 | F99: > 900 km | G99: 3 | H99: ='Loss Factors'!T9 -> 1.0413
K104: TUoS [ > 132kV] | M104: Charge R/kVA
N105: VAT incl
L106: ≤ 300km | M106: =#REF! ->  | N106: =ROUND(M106 * (1 + VAT), 2) -> 
L107: > 300km & ≤ 600km | M107: =#REF! ->  | N107: =ROUND(M107 * (1 + VAT), 2) -> 
L108: > 600km & ≤ 900km | M108: =#REF! ->  | N108: =ROUND(M108 * (1 + VAT), 2) -> 
L109: > 900km | M109: =#REF! ->  | N109: =ROUND(M109 * (1 + VAT), 2) -> 

Sheet TOuS
H1: Back to menu
A2: Non-municipal
H3: TUoS (Transmission use of system) charges (> 132 KV or direct Transmission connected) network charge for loads
H6: Electrification and rural network subsidy charge [c/kWh]
J7: Electrification and rural network subsidy charge [c/kWh]
A9: Tariff | B9: Tariff nameBillcode | C9: Tx zone | D9: Voltage | E9: Billcode | H9: Tariff | K9: VAT incl
H10: Megaflex, Miniflex, Nightsave Urban Large, Nightsave Urban Small, Businessrate
A11: Megaflex | B11: Me | C11: 0 | D11: 1 | E11: =B11&C11&D11&IF($A$2="Non-municipal","N",IF($A$2="Municiple","Y","error")) -> Me01N | J11: ='Megaflex inc'!H46 -> 6.33 | K11: 7.17
H15: Service and admin charges
H16: Utilised capacity/maximum export capacity | J16: Service charge [R/account/day] | L16: Administration charge [R/POD/day]
H19: [kVA/MVA = loads]
A20: Tariff | B20: Tariff nameBillcode | C20: Tx zone | D20: Voltage | E20: Billcode | H20: [kW/MW = generators] | K20: VAT incl | M20: VAT incl
A21: Miniflex | B21: Mi | C21: 0 | D21: 1 | E21: =B21&C21&D21&IF($B$28="Non-municipal","N",IF($B$28="Municiple","Y","error")) -> Mi01N | H21: ≤ 100 kVA/kW | J21: 11.55 | K21: 13.09 | L21: 2.54 | M21: 2.87
A22: Miniflex | B22: Mi | C22: 0 | D22: 1 | E22: =B22&C22&D22&IF($B$28="Non-municipal","N",IF($B$28="Municiple","Y","error")) -> Mi01N | H22: > 100 kVA/kW & ≤ 500 kVA/kW | J22: 52.8 | K22: 59.82 | L22: 14.8 | M22: 16.77
A23: Miniflex | B23: Mi | C23: 0 | D23: 1 | E23: Mi01N | H23: > 500 kVA/kW & ≤ 1 MVA/MW | J23: 162.48 | K23: 184.09 | L23: 29.41 | M23: 33.32
A24: Miniflex | B24: Mi | C24: 0 | D24: 1 | E24: Mi01N | H24: > 1 MVA/MW | J24: 162.48 | K24: 184.09 | L24: 73.23 | M24: 82.97
A25: Miniflex | B25: Mi | C25: 0 | D25: 1 | E25: Mi01N | H25: Key customers or Transmission connected generators | J25: 3183.88 | K25: 3607.39 | L25: 101.68 | M25: 115.21
B28: Non-municipal | H28: Transmission loss factors for loads
A29: Tariff | B29: Tariff nameBillcode | C29: Tx zone | D29: Voltage | E29: Billcode | H29: Distance from Johannesburg | I29: Zone | J29: Loss factor
A30: Transmission loss factor | B30: TxLoss | C30: 0 | D30: 4 | E30: =B30&C30&D30&IF($B$28="Non-municipal","N",IF($B$28="Municiple","Y","error")) -> TxLoss04N | H30: ≤ 300km | I30: 0 | J30: 1.0107
A31: Transmission loss factor | B31: TxLoss | C31: 1 | D31: 4 | E31: =B31&C31&D31&IF($B$28="Non-municipal","N",IF($B$28="Municiple","Y","error")) -> TxLoss14N | H31: > 300km & ≤ 600km | I31: 1 | J31: 1.0208
A32: Transmission loss factor | B32: TxLoss | C32: 2 | D32: 4 | E32: =B32&C32&D32&IF($B$28="Non-municipal","N",IF($B$28="Municiple","Y","error")) -> TxLoss24N | H32: > 600km & ≤ 900km | I32: 2 | J32: 1.031
A33: Transmission loss factor | B33: TxLoss | C33: 3 | D33: 4 | E33: =B33&C33&D33&IF($B$28="Non-municipal","N",IF($B$28="Municiple","Y","error")) -> TxLoss34N | H33: > 900km | I33: 3 | J33: 1.0413
H36: Loss factors for Transmission connected generators | J36: Loss factor
A37: Tariff | B37: Tariff nameBillcode | C37: Tx zone | D37: Voltage | E37: Billcode
A38: TUoS network charges for Transmission connected generators | B38: GenTUOS | C38: Cape | D38: 4 | E38: =B38&C38&D38&IF($A$2="Non-municipal","N",IF($A$2="Municiple","Y","error")) -> GenTUOSCape4N | I38: Cape | J38: ='Loss Factors'!P14 -> 0.971
A39: TUoS network charges for Transmission connected generators | B39: GenTUOS | C39: Karoo | D39: 4 | E39: GenTUOSKaroo4N | I39: Karoo | J39: ='Loss Factors'!P15 -> 0.995
A40: TUoS network charges for Transmission connected generators | B40: GenTUOS | C40: Kwazulu-Natal | D40: 4 | E40: GenTUOSKwazulu-Natal4N | I40: Kwazulu-Natal | J40: ='Loss Factors'!P16 -> 1.004
A41: TUoS network charges for Transmission connected generators | B41: GenTUOS | C41: Vaal | D41: 4 | E41: GenTUOSVaal4N | I41: Vaal | J41: ='Loss Factors'!P17 -> 1.02
A42: TUoS network charges for Transmission connected generators | B42: GenTUOS | C42: Waterburg | D42: 4 | E42: GenTUOSWaterburg4N | I42: Waterberg | J42: ='Loss Factors'!P18 -> 1.023
A43: TUoS network charges for Transmission connected generators | B43: GenTUOS | C43: Mpumalanga | D43: 4 | E43: GenTUOSMpumalanga4N | I43: Mpumalanga | J43: ='Loss Factors'!P19 -> 1.021
H46: TUoS [ > 132kV] | J46: Network capacity charge [R/kVA]
A47: Tariff | B47: Tariff nameBillcode | C47: Tx zone | D47: Voltage | E47: Billcode | K47: VAT incl
A48: WEPS | B48: We | C48: 0 | D48: 1 | E48: =B48&C48&D48&IF($A$2="Non-municipal","N",IF($A$2="Municiple","Y","error")) -> We01N | I48: ≤ 300km | J48: ='WEPS inc'!V11 -> 8.01 | K48: 9.07
A49: WEPS | B49: We | C49: 0 | D49: 2 | E49: We02N | I49: > 300km & ≤ 600km | J49: ='WEPS inc'!V15 -> 8.09 | K49: 9.17
A50: WEPS | B50: We | C50: 0 | D50: 3 | E50: We03N | I50: > 600km & ≤ 900km | J50: ='WEPS inc'!V19 -> 8.2 | K50: 9.29
A51: WEPS | B51: We | C51: 0 | D51: 4 | E51: We04N | I51: > 900km | J51: ='WEPS inc'!V23 -> 8.26 | K51: 9.36
H54: TUoS network charges for Transmission connected generators | J54: Network charge [R/kW]
A55: Tariff | B55: Tariff nameBillcode | C55: Tx zone | D55: Voltage | E55: Billcode | K55: VAT incl
A56: TUoS network charges for Transmission connected generators | B56: GenTUOS | C56: Cape | D56: 4 | E56: =B56&C56&D56&IF($A$2="Non-municipal","N",IF($A$2="Municiple","Y","error")) -> GenTUOSCape4N | I56: Cape | J56: 0 | K56: 0
A57: TUoS network charges for Transmission connected generators | B57: GenTUOS | C57: Karoo | D57: 4 | E57: GenTUOSKaroo4N | I57: Karoo | J57: 0 | K57: 0
A58: TUoS network charges for Transmission connected generators | B58: GenTUOS | C58: Kwazulu-Natal | D58: 4 | E58: GenTUOSKwazulu-Natal4N | I58: Kwazulu-Natal | J58: 1.68 | K58: 1.9
A59: TUoS network charges for Transmission connected generators | B59: GenTUOS | C59: Vaal | D59: 4 | E59: GenTUOSVaal4N | I59: Vaal | J59: 5.6 | K59: 6.35
A60: TUoS network charges for Transmission connected generators | B60: GenTUOS | C60: Waterburg | D60: 4 | E60: GenTUOSWaterburg4N | I60: Waterberg | J60: 7.18 | K60: 8.13
A61: TUoS network charges for Transmission connected generators | B61: GenTUOS | C61: Mpumalanga | D61: 4 | E61: GenTUOSMpumalanga4N | I61: Mpumalanga | J61: 6.65 | K61: 7.54
H64: Transmission connected ancillary service charge | J64: Ancillary service charge [c/kWh]
A66: Tariff | B66: Tariff nameBillcode | C66: Tx zone | D66: Voltage | E66: Billcode | K66: VAT incl
A67: TUoS network charges for Transmission connected generators | B67: GenTUOS | C67: Cape | D67: 4 | E67: =B67&C67&D67&IF($A$2="Non-municipal","N",IF($A$2="Municiple","Y","error")) -> GenTUOSCape4N | H67: Generators | J67: 0.28 | K67: 0.32
A68: TUoS network charges for Transmission connected generators | B68: GenTUOS | C68: Cape | D68: 4 | E68: =B68&C68&D68&IF($A$2="Non-municipal","N",IF($A$2="Municiple","Y","error")) -> GenTUOSCape4N | H68: Loads | J68: 0.28 | K68: 0.32

Sheet DUoS
A2: Non-Municipal | H2: Back to menu
H4: DUoS (Distribution use of system) charges
H7: Ancillary service charge Urbanp | J7: Charge [c/kWh]
A8: Tariff | B8: Tariff nameBillcode | C8: Tx zone | D8: Voltage | E8: Billcode | K8: VAT incl
A9: Gen-DUoS urban | B9: NEGenDUoSU | C9: 0 | D9: 1 | E9: =B9&C9&D9&IF($A$2="Non-municipal","N",IF($A$2="Municiple","Y","error")) -> NEGenDUoSU01N | H9: < 500V | J9: 0.33 | K9: =ROUND(J9 * (1 + VAT), 2) -> 0.38
A10: Gen-DUoS urban | B10: NEGenDUoSU | C10: 0 | D10: 2 | E10: =B10&C10&D10&IF($A$2="Non-municipal","N",IF($A$2="Municiple","Y","error")) -> NEGenDUoSU02N | H10: ≥ 500V & < 66kV | J10: 0.32 | K10: =ROUND(J10 * (1 + VAT), 2) -> 0.36
A11: Gen-DUoS urban | B11: NEGenDUoSU | C11: 0 | D11: 3 | E11: NEGenDUoSU03N | H11: ≥ 66kV & ≤ 132kV | J11: 0.3 | K11: =ROUND(J11 * (1 + VAT), 2) -> 0.34
H15: Ancillary service charge Ruralp | J15: Charge [c/kWh]
A16: Tariff | B16: Tariff nameBillcode | C16: Tx zone | D16: Voltage | E16: Billcode | K16: VAT incl
A17: Gen-DUoS rural | B17: NEGenDUoSR | C17: 0 | D17: 1 | E17: =B17&C17&D17&IF($A$2="Non-municipal","N",IF($A$2="Municiple","Y","error")) -> NEGenDUoSR01N | H17: < 500V | J17: 0.33 | K17: =ROUND(J17 * (1 + VAT), 2) -> 0.38
A18: Gen-DUoS rural | B18: NEGenDUoSR | C18: 0 | D18: 2 | E18: =B18&C18&D18&IF($A$2="Non-municipal","N",IF($A$2="Municiple","Y","error")) -> NEGenDUoSR02N | H18: ≥ 500V & ≤ 22kV | J18: 0.33 | K18: =ROUND(J18 * (1 + VAT), 2) -> 0.38
I21: Transmission zone | J21: Voltage | K21: [R/kVA]
A22: Tariff | B22: Tariff nameBillcode | C22: Tx zone | D22: Voltage | E22: Billcode | L22: VAT incl
H23: ETUoS Urbanp | I23: ≤ 300km | J23: < 500V | K23: ='Megaflex inc'!V8 -> 7.12 | L23: =ROUND(K23 * (1 + VAT), 2) -> 8.12
J24: ≥ 500V & < 66kV | K24: ='Megaflex inc'!V9 -> 6.51 | L24: 7.42
J25: ≥ 66kV & ≤ 132kV | K25: ='Megaflex inc'!V10 -> 6.34 | L25: 7.23
I26: > 300km & ≤ 600km | J26: < 500V | K26: ='Megaflex inc'!V12 -> 7.18 | L26: 8.19
J27: ≥ 500V & < 66kV | K27: ='Megaflex inc'!V13 -> 6.57 | L27: 7.49
J28: ≥ 66kV & ≤ 132kV | K28: ='Megaflex inc'!V14 -> 6.39 | L28: 7.28
I29: > 600km & ≤ 900km | J29: < 500V | K29: ='Megaflex inc'!V16 -> 7.27 | L29: 8.29
J30: ≥ 500V & < 66kV | K30: ='Megaflex inc'!V17 -> 6.63 | L30: 7.56
J31: ≥ 66kV & ≤ 132kV | K31: ='Megaflex inc'!V18 -> 6.43 | L31: 7.33
I32: > 900km | J32: < 500V | K32: ='Megaflex inc'!V20 -> 7.29 | L32: 8.31
J33: ≥ 500V & < 66kV | K33: ='Megaflex inc'!V21 -> 6.71 | L33: 7.65
J34: ≥ 66kV & ≤ 132kV | K34: ='Megaflex inc'!V22 -> 6.48 | L34: 7.39
I37: Transmission zone | J37: Voltage | K37: [R/kVA]
A38: Tariff | B38: Tariff nameBillcode | C38: Tx zone | D38: Voltage | E38: Billcode | L38: VAT incl
H39: ETUoS Rural p | I39: ≤ 300km | J39: < 500V | K39: ='Ruraflex inc'!V8 -> 14.88 | L39: =ROUND(K39 * (1 + VAT), 2) -> 16.96
J40: ≥ 500V & < 66kV | K40: ='Ruraflex inc'!V9 -> 13.64 | L40: 15.55
I41: > 300km & ≤ 600km | J41: < 500V | K41: ='Ruraflex inc'!V12 -> 14.93 | L41: 17.02
J42: ≥ 500V & < 66kV | K42: ='Ruraflex inc'!V13 -> 13.73 | L42: 15.65
I43: > 600km & ≤ 900km | J43: < 500V | K43: ='Ruraflex inc'!V16 -> 15.01 | L43: 17.11
J44: ≥ 500V & < 66kV | K44: ='Ruraflex inc'!V17 -> 13.78 | L44: 15.71
I45: > 900km | J45: < 500V | K45: ='Ruraflex inc'!V20 -> 15.07 | L45: 17.18
J46: ≥ 500V & < 66kV | K46: ='Ruraflex inc'!V21 -> 13.79 | L46: 15.72
H49: Distribution network charges urbanp
J50: Network capacity charge [R/kVA/m] | L50: Network demand charge [R/kVA/m] | N50: Urban low voltage subsidy charge [R/kVA/m]
A52: Tariff | B52: Tariff nameBillcode | C52: Tx zone | D52: Voltage | E52: Billcode | H52: Voltage | K52: VAT incl | M52: VAT incl | O52: VAT incl
A53: Gen-DUoS urban | B53: NEGenDUoSU | C53: 0 | D53: 1 | E53: =B53&C53&D53&IF($A$2="Non-municipal","N",IF($A$2="Municiple","Y","error")) -> NEGenDUoSU01N | H53: < 500V | J53: ='Megaflex inc'!J30 -> 14.15 | K53: =ROUND(J53 * (1 + VAT), 2) -> 16.13 | L53: ='Megaflex inc'!L30 -> 26.83 | M53: =ROUND(L53 * (1 + VAT), 2) -> 30.59 | N53: ='Megaflex inc'!N30 -> 0 | O53: =ROUND(N53 * (1 + VAT), 2) -> 0
A54: Gen-DUoS urban | B54: NEGenDUoSU | C54: 0 | D54: 2 | E54: =B54&C54&D54&IF($A$2="Non-municipal","N",IF($A$2="Municiple","Y","error")) -> NEGenDUoSU02N | H54: ≥ 500V & < 66kV | J54: ='Megaflex inc'!J31 -> 12.98 | K54: =ROUND(J54 * (1 + VAT), 2) -> 14.8 | L54: ='Megaflex inc'!L31 -> 24.62 | M54: =ROUND(L54 * (1 + VAT), 2) -> 28.07 | N54: ='Megaflex inc'!N31 -> 0 | O54: =ROUND(N54 * (1 + VAT), 2) -> 0
A55: Gen-DUoS urban | B55: NEGenDUoSU | C55: 0 | D55: 3 | E55: NEGenDUoSU03N | H55: ≥ 66kV & ≤ 132kV | J55: ='Megaflex inc'!J32 -> 4.63 | K55: =ROUND(J55 * (1 + VAT), 2) -> 5.28 | L55: ='Megaflex inc'!L32 -> 8.58 | M55: =ROUND(L55 * (1 + VAT), 2) -> 9.78 | N55: ='Megaflex inc'!N32 -> 11.43 | O55: =ROUND(N55 * (1 + VAT), 2) -> 13.03
A56: Gen-DUoS urban | B56: NEGenDUoSU | C56: 0 | D56: 4 | E56: =B56&C56&D56&IF($A$2="Non-municipal","N",IF($A$2="Municiple","Y","error")) -> NEGenDUoSU04N | H56: > 132kV | J56: ='Megaflex inc'!J33 -> 0 | K56: =ROUND(J56 * (1 + VAT), 2) -> 0 | L56: ='Megaflex inc'!L33 -> 0 | M56: =ROUND(L56 * (1 + VAT), 2) -> 0 | N56: ='Megaflex inc'!N33 -> 11.43 | O56: =ROUND(N56 * (1 + VAT), 2) -> 13.03
H59: Distribution network charges ruralp
J60: Network capacity charge [R/kVA/m] | L60: Network demand charge [c/kWh]
A62: Tariff | B62: Tariff nameBillcode | C62: Tx zone | D62: Voltage | E62: Billcode | H62: Voltage | K62: VAT incl | M62: VAT incl
A63: Gen-DUoS rural | B63: NEGenDUoSR | C63: 0 | D63: 1 | E63: =B63&C63&D63&IF($A$2="Non-municipal","N",IF($A$2="Municiple","Y","error")) -> NEGenDUoSR01N | H63: < 500V | J63: ='Ruraflex inc'!V8 -> 14.88 | K63: =ROUND(J63 * (1 + VAT), 2) -> 16.96 | L63: ='Ruraflex inc'!S28 -> 21.19 | M63: =ROUND(L63 * (1 + VAT), 2) -> 24.16
A64: Gen-DUoS rural | B64: NEGenDUoSR | C64: 0 | D64: 2 | E64: =B64&C64&D64&IF($A$2="Non-municipal","N",IF($A$2="Municiple","Y","error")) -> NEGenDUoSR02N | H64: ≥ 500V & ≤ 22kV | J64: ='Ruraflex inc'!V9 -> 13.64 | K64: =ROUND(J64 * (1 + VAT), 2) -> 15.55 | L64: ='Ruraflex inc'!S29 -> 18.57 | M64: =ROUND(L64 * (1 + VAT), 2) -> 21.17
H67: Distribution network charges for Generators
J68: Network capacity charge [R/kW/m]
A70: Tariff | B70: Tariff nameBillcode | C70: Tx zone | D70: Voltage | E70: Billcode | H70: Voltage | K70: VAT incl
A71: Gen-DUoS urban | B71: NEGenDUoSU | C71: 0 | D71: 1 | E71: =B71&C71&D71&IF($A$2="Non-municipal","N",IF($A$2="Municiple","Y","error")) -> NEGenDUoSU01N | H71: < 500V
A72: Gen-DUoS urban | B72: NEGenDUoSU | C72: 0 | D72: 2 | E72: =B72&C72&D72&IF($A$2="Non-municipal","N",IF($A$2="Municiple","Y","error")) -> NEGenDUoSU02N | H72: ≥ 500V & < 66kV
A73: Gen-DUoS urban | B73: NEGenDUoSU | C73: 0 | D73: 3 | E73: NEGenDUoSU03N | H73: ≥ 66kV & ≤ 132kV | J73: 11.44 | K73: =ROUND(J73 * (1 + VAT), 2) -> 13.04
H75: Electrification and rural network subsidy charge | R75: Electrification and rural network subsidy charge
J77: Rural network subsidy charge [c/kWh] | L77: Electrification networks subsidy charge [c/kWh] | N77: Total electrification and rural network subsidy charge [c/kWh] | R77: Tariff | T77: Total electrification and rural network subsidy charge [c/kWh]
A79: Tariff | B79: Tariff nameBillcode | C79: Tx zone | D79: Voltage | E79: Billcode | H79: Tariff | K79: VAT incl | M79: VAT incl | O79: VAT incl | U79: VAT incl
H80: Megaflex, Miniflex, Nightsave Urban Large, Nightsave Urban Small, Businessrate | R80: Megaflex, Miniflex, Nightsave Urban Large, Nightsave Urban Small, Businessrate
A81: Megaflex | B81: Me | C81: 0 | D81: 1 | E81: =B81&C81&D81&IF($A$2="Non-municipal","N",IF($A$2="Municiple","Y","error")) -> Me01N | J81: 4.2 | K81: =ROUND(J81 * (1 + VAT), 2) -> 4.79 | L81: 2.13 | M81: =ROUND(L81 * (1 + VAT), 2) -> 2.43 | N81: =SUM(J81, L81) -> 6.33 | O81: =ROUND(N81 * (1 + VAT), 2) -> 7.22 | T81: 6.33 | U81: =ROUND(T81 * (1 + VAT), 2) -> 7.22
A82: 0.6637010676
A83: 0.3362989324
H86: Service and administration charges (urbanp )
H87: Customer categories utilised capacity / maximum export capacity | J87: Service charge [R/account/day] | L87: Administration charge [R/POD/day]
H90: [kVA or MVA = loads]
A91: Tariff | B91: Tariff nameBillcode | C91: Tx zone | D91: Voltage | E91: Billcode | H91: [kW or MW = generators] | K91: VAT incl | M91: VAT incl
A92: Miniflex | B92: Mi | C92: 0 | D92: 1 | E92: =B92&C92&D92&IF($A$2="Non-municipal","N",IF($A$2="Municiple","Y","error")) -> Mi01N | H92: ≤ 100 kVA/kW | J92: 11.55 | K92: =ROUND(J92 * (1 + VAT), 2) -> 13.17 | L92: 2.54 | M92: =ROUND(L92 * (1 + VAT), 2) -> 2.9
A93: Miniflex | B93: Mi | C93: 0 | D93: 1 | E93: =B93&C93&D93&IF($A$2="Non-municipal","N",IF($A$2="Municiple","Y","error")) -> Mi01N | H93: > 100 kVA/kW & ≤ 500 kVA/kW | J93: 52.8 | K93: =ROUND(J93 * (1 + VAT), 2) -> 60.19 | L93: 14.8 | M93: =ROUND(L93 * (1 + VAT), 2) -> 16.87
A94: Miniflex | B94: Mi | C94: 0 | D94: 1 | E94: Mi01N | H94: > 500 kVA/kW & ≤ 1 MVA/MW | J94: 162.48 | K94: =ROUND(J94 * (1 + VAT), 2) -> 185.23 | L94: 29.41 | M94: =ROUND(L94 * (1 + VAT), 2) -> 33.53
A95: Miniflex | B95: Mi | C95: 0 | D95: 1 | E95: Mi01N | H95: > 1 MVA/MW | J95: 162.48 | K95: =ROUND(J95 * (1 + VAT), 2) -> 185.23 | L95: 73.23 | M95: =ROUND(L95 * (1 + VAT), 2) -> 83.48
A96: Miniflex | B96: Mi | C96: 0 | D96: 1 | E96: Mi01N | H96: Key customers or Transmission connected | J96: 3183.88 | K96: =ROUND(J96 * (1 + VAT), 2) -> 3629.62 | L96: 101.68 | M96: =ROUND(L96 * (1 + VAT), 2) -> 115.92
H99: Service and administration charges (ruralp)
H100: Customer categories utilised capacity / maximum export capacity | J100: Service charge [R/account/day] | L100: Administration charge [R/POD/day]
H103: [kVA or MVA = loads]
A104: Tariff | B104: Tariff nameBillcode | C104: Tx zone | D104: Voltage | E104: Billcode | H104: [kW or MW = generators] | K104: VAT incl | M104: VAT incl
A105: Ruraflex | B105: Ru | C105: 0 | D105: 1 | E105: =B105&C105&D105&IF($A$2="Non-municipal","N",IF($A$2="Municiple","Y","error")) -> Ru01N | H105: ≤ 100 kVA/kW | J105: 14.64 | K105: =ROUND(J105 * (1 + VAT), 2) -> 16.69 | L105: 4.16 | M105: =ROUND(L105 * (1 + VAT), 2) -> 4.74
A106: Ruraflex | B106: Ru | C106: 0 | D106: 1 | E106: =B106&C106&D106&IF($A$2="Non-municipal","N",IF($A$2="Municiple","Y","error")) -> Ru01N | H106: > 100 kVA/kW & ≤ 500 kVA/kW | J106: 49.94 | K106: =ROUND(J106 * (1 + VAT), 2) -> 56.93 | L106: 23.15 | M106: =ROUND(L106 * (1 + VAT), 2) -> 26.39
A107: Ruraflex | B107: Ru | C107: 0 | D107: 1 | E107: Ru01N | H107: > 500 kVA/kW & ≤ 1 MVA/MW | J107: 153.63 | K107: =ROUND(J107 * (1 + VAT), 2) -> 175.14 | L107: 35.53 | M107: =ROUND(L107 * (1 + VAT), 2) -> 40.5
A108: Ruraflex | B108: Ru | C108: 0 | D108: 1 | E108: Ru01N | H108: > 1 MVA/MW | J108: 153.63 | K108: =ROUND(J108 * (1 + VAT), 2) -> 175.14 | L108: 65.93 | M108: =ROUND(L108 * (1 + VAT), 2) -> 75.16
A109: Ruraflex | B109: Ru | C109: 0 | D109: 1 | E109: Ru01N | H109: Key customers | J109: 3010.96 | K109: =ROUND(J109 * (1 + VAT), 2) -> 3432.49 | L109: 65.93 | M109: =ROUND(L109 * (1 + VAT), 2) -> 75.16
H111: Distribution loss factors | L111: Transmission loss factors for loads
A112: Tariff | B112: Tariff nameBillcode | C112: Tx zone | D112: Voltage | E112: Billcode | H112: Voltage | I112: Urban loss factor | J112: Rural loss factor | L112: Distance from Johannesburg | M112: Zone | N112: Loss factor
A113: Distribution loss factor - Urban | B113: DxLossUrb | C113: 0 | D113: 1 | E113: =B113&C113&D113&IF($A$2="Non-municipal","N",IF($A$2="Municiple","Y","error")) -> DxLossUrb01N | H113: < 500V | I113: 1.1111 | J113: 1.1527 | L113: ≤ 300km | M113: 0 | N113: 1.0107
A114: Distribution loss factor - Urban | B114: DxLossUrb | C114: 0 | D114: 2 | E114: =B114&C114&D114&IF($A$2="Non-municipal","N",IF($A$2="Municiple","Y","error")) -> DxLossUrb02N | H114: ≥ 500V & < 66kV | I114: 1.0957 | J114: 1.1412 | L114: > 300km & ≤ 600km | M114: 1 | N114: 1.0208
A115: Distribution loss factor - Urban | B115: DxLossUrb | C115: 0 | D115: 3 | E115: DxLossUrb03N | H115: ≥ 66kV & ≤ 132kV | I115: 1.0611 | L115: > 600km & ≤ 900km | M115: 2 | N115: 1.031
A116: Distribution loss factor - Urban | B116: DxLossUrb | C116: 0 | D116: 4 | E116: DxLossUrb04N | H116: > 132kV | I116: 1 | L116: > 900km | M116: 3 | N116: 1.0413
A118: Distribution loss factor - Rural | B118: DxLossRur | C118: 0 | D118: 1 | E118: =B118&C118&D118&IF($A$2="Non-municipal","N",IF($A$2="Municiple","Y","error")) -> DxLossRur01N
A119: Distribution loss factor - Rural | B119: DxLossRur | C119: 0 | D119: 2 | E119: =B119&C119&D119&IF($A$2="Non-municipal","N",IF($A$2="Municiple","Y","error")) -> DxLossRur02N
A122: Transmission loss factor | B122: TxLoss | C122: 0 | D122: 4 | E122: =B122&C122&D122&IF($A$2="Non-municipal","N",IF($A$2="Municiple","Y","error")) -> TxLoss04N
A123: Transmission loss factor | B123: TxLoss | C123: 1 | D123: 4 | E123: =B123&C123&D123&IF($A$2="Non-municipal","N",IF($A$2="Municiple","Y","error")) -> TxLoss14N
A124: Transmission loss factor | B124: TxLoss | C124: 2 | D124: 4 | E124: TxLoss24N
A125: Transmission loss factor | B125: TxLoss | C125: 3 | D125: 4 | E125: TxLoss34N

Sheet Loss Factors
N1: Back to menu | AL1: 0.14
N2: Loss factors
A3: Non-municipal
N4: Distribution loss factors | R4: Transmission loss factors for loads
A5: Tariff | B5: Tariff nameBillcode | C5: Tx zone | D5: Voltage | E5: Billcode | G5: Tariff | H5: Tariff nameBillcode | I5: Tx zone | J5: Voltage | K5: Billcode | N5: Voltage | O5: Urban loss factor | P5: Rural loss factor | R5: Distance from Johannesburg | S5: Zone | T5: Loss factor
A6: Distribution loss factor - Urban | B6: DxLossUrb | C6: 0 | D6: 1 | E6: =B6&C6&D6&IF($A$3="Non-municipal","N",IF($A$3="Municiple","Y","error")) -> DxLossUrb01N | G6: Transmission loss factor | H6: TxLoss | I6: 0 | J6: 4 | K6: =H6&I6&J6&IF($A$3="Non-municipal","N",IF($A$3="Municiple","Y","error")) -> TxLoss04N | N6: < 500V | O6: 1.1111 | P6: 1.1527 | R6: ≤ 300km | S6: 0 | T6: 1.0107
A7: Distribution loss factor - Urban | B7: DxLossUrb | C7: 0 | D7: 2 | E7: =B7&C7&D7&IF($A$3="Non-municipal","N",IF($A$3="Municiple","Y","error")) -> DxLossUrb02N | G7: Transmission loss factor | H7: TxLoss | I7: 1 | J7: 4 | K7: =H7&I7&J7&IF($A$3="Non-municipal","N",IF($A$3="Municiple","Y","error")) -> TxLoss14N | N7: ≥ 500V & < 66kV | O7: 1.0957 | P7: 1.1412 | R7: > 300km & ≤ 600km | S7: 1 | T7: 1.0208
A8: Distribution loss factor - Urban | B8: DxLossUrb | C8: 0 | D8: 3 | E8: =B8&C8&D8&IF($A$3="Non-municipal","N",IF($A$3="Municiple","Y","error")) -> DxLossUrb03N | G8: Transmission loss factor | H8: TxLoss | I8: 2 | J8: 4 | K8: =H8&I8&J8&IF($A$3="Non-municipal","N",IF($A$3="Municiple","Y","error")) -> TxLoss24N | N8: ≥ 66kV & ≤ 132kV | O8: 1.0611 | R8: > 600km & ≤ 900km | S8: 2 | T8: 1.031
A9: Distribution loss factor - Urban | B9: DxLossUrb | C9: 0 | D9: 4 | E9: =B9&C9&D9&IF($A$3="Non-municipal","N",IF($A$3="Municiple","Y","error")) -> DxLossUrb04N | G9: Transmission loss factor | H9: TxLoss | I9: 3 | J9: 4 | K9: =H9&I9&J9&IF($A$3="Non-municipal","N",IF($A$3="Municiple","Y","error")) -> TxLoss34N | N9: > 132kV/Transmission connected | O9: 1 | R9: > 900km | S9: 3 | T9: 1.0413
A11: Distribution loss factor - Rural | B11: DxLossRur | C11: 0 | D11: 1 | E11: =B11&C11&D11&IF($A$3="Non-municipal","N",IF($A$3="Municiple","Y","error")) -> DxLossRur01N | P11: 2012/13
A12: Distribution loss factor - Rural | B12: DxLossRur | C12: 0 | D12: 2 | E12: =B12&C12&D12&IF($A$3="Non-municipal","N",IF($A$3="Municiple","Y","error")) -> DxLossRur02N | N12: Loss factors for Transmission connected generators | P12: Loss factor
A13: Tariff | B13: Tariff nameBillcode | C13: Tx zone | D13: Voltage | E13: Billcode
A14: TUoS network charges for Transmission connected generators | B14: GenTUOS | C14: Cape | D14: 4 | E14: =B14&C14&D14&IF($A$3="Non-municipal","N",IF($A$3="Municiple","Y","error")) -> GenTUOSCape4N | O14: Cape | P14: 0.971
A15: TUoS network charges for Transmission connected generators | B15: GenTUOS | C15: Karoo | D15: 4 | E15: GenTUOSKaroo4N | O15: Karoo | P15: 0.995
A16: TUoS network charges for Transmission connected generators | B16: GenTUOS | C16: Kwazulu-Natal | D16: 4 | E16: GenTUOSKwazulu-Natal4N | O16: Kwazulu-Natal | P16: 1.004
A17: TUoS network charges for Transmission connected generators | B17: GenTUOS | C17: Vaal | D17: 4 | E17: GenTUOSVaal4N | O17: Vaal | P17: 1.02
A18: TUoS network charges for Transmission connected generators | B18: GenTUOS | C18: Waterburg | D18: 4 | E18: GenTUOSWaterburg4N | O18: Waterburg | P18: 1.023
A19: TUoS network charges for Transmission connected generators | B19: GenTUOS | C19: Mpumalanga | D19: 4 | E19: GenTUOSMpumalanga4N | O19: Mpumalanga | P19: 1.021

Sheet Excess NAC
S1: Back to menu
A2: Non-municipal | S2: Urban - Excess NAC Megaflex [non local authorities] | X2: Urban - Excess NAC Nightsave Urban Large [non local authorities] | AD2: Urban - Excess NAC Miniflex [non local authorities]
U4: Excess network charge [R/kVA/m] | AA4: Excess network charge [R/kVA/m] | AG4: Excess network charge [R/kVA/m]
S5: Transmission zone | Y5: Transmission zone | AE5: Transmission zone
T6: Voltage | Z6: Voltage | AF6: Voltage
A7: Tariff | B7: Tariff nameBillcode | C7: Tx zone | D7: Voltage | E7: Billcode | G7: Tariff | H7: Tariff nameBillcode | I7: Tx zone | J7: Voltage | K7: Billcode | M7: Tariff | N7: Tariff nameBillcode | O7: Tx zone | P7: Voltage | Q7: Billcode | V7: VAT incl | AB7: VAT incl | AH7: VAT incl
A8: Excess NAC Megaflex | B8: ExNACMe | C8: 0 | D8: 1 | E8: =B8&C8&D8&IF($A$2="Non-municipal","N",IF($A$2="Municiple","Y","error")) -> ExNACMe01N | G8: Excess NAC Nightsave Large | H8: ExNACNL | I8: 0 | J8: 1 | K8: =H8&I8&J8&IF($A$2="Non-municipal","N",IF($A$2="Municiple","Y","error")) -> ExNACNL01N | M8: Excess NAC Miniflex | N8: ExNACMi | O8: 0 | P8: 1 | Q8: =N8&O8&P8&IF($A$2="Non-municipal","N",IF($A$2="Municiple","Y","error")) -> ExNACMi01N | S8: ≤ 300km | T8: < 500V | U8: 21.27 | V8: =ROUND(U8 * (1 + VAT), 2) -> 24.25 | Y8: ≤ 300km | Z8: < 500V | AA8: 21.27 | AB8: =ROUND(AA8 * (1 + VAT), 2) -> 24.25 | AE8: ≤ 300km | AF8: < 500V | AG8: 21.25 | AH8: =ROUND(AG8 * (1 + VAT), 2) -> 24.23
A9: Excess NAC Megaflex | B9: ExNACMe | C9: 0 | D9: 2 | E9: =B9&C9&D9&IF($A$2="Non-municipal","N",IF($A$2="Municiple","Y","error")) -> ExNACMe02N | G9: Excess NAC Nightsave Large | H9: ExNACNL | I9: 0 | J9: 2 | K9: =H9&I9&J9&IF($A$2="Non-municipal","N",IF($A$2="Municiple","Y","error")) -> ExNACNL02N | M9: Excess NAC Miniflex | N9: ExNACMi | O9: 0 | P9: 2 | Q9: =N9&O9&P9&IF($A$2="Non-municipal","N",IF($A$2="Municiple","Y","error")) -> ExNACMi02N | T9: ≥ 500V & < 66kV | U9: 19.49 | V9: 22.22 | Z9: ≥ 500V & < 66kV | AA9: 19.49 | AB9: 22.22 | AF9: ≥ 500V & < 66kV | AG9: 19.47 | AH9: 22.2
A10: Excess NAC Megaflex | B10: ExNACMe | C10: 0 | D10: 3 | E10: ExNACMe03N | G10: Excess NAC Nightsave Large | H10: ExNACNL | I10: 0 | J10: 3 | K10: ExNACNL03N | M10: Excess NAC Miniflex | N10: ExNACMi | O10: 0 | P10: 3 | Q10: ExNACMi03N | T10: ≥ 66kV & ≤ 132kV | U10: 22.4 | V10: 25.54 | Z10: ≥ 66kV & ≤ 132kV | AA10: 22.4 | AB10: 25.54 | AF10: ≥ 66kV & ≤ 132kV | AG10: 22.37 | AH10: 25.5
A11: Excess NAC Megaflex | B11: ExNACMe | C11: 0 | D11: 4 | E11: ExNACMe04N | G11: Excess NAC Nightsave Large | H11: ExNACNL | I11: 0 | J11: 4 | K11: ExNACNL04N | M11: Excess NAC Miniflex | N11: ExNACMi | O11: 0 | P11: 4 | Q11: ExNACMi04N | T11: > 132kV* | U11: 19.44 | V11: 22.16 | Z11: > 132kV* | AA11: 19.44 | AB11: 22.16 | AF11: > 132kV* | AG11: 19.4 | AH11: 22.12
A12: Excess NAC Megaflex | B12: ExNACMe | C12: 1 | D12: 1 | E12: ExNACMe11N | G12: Excess NAC Nightsave Large | H12: ExNACNL | I12: 1 | J12: 1 | K12: ExNACNL11N | M12: Excess NAC Miniflex | N12: ExNACMi | O12: 1 | P12: 1 | Q12: ExNACMi11N | S12: > 300km and ≤ 600km | T12: < 500V | U12: 21.33 | V12: 24.32 | Y12: > 300km and ≤ 600km | Z12: < 500V | AA12: 21.33 | AB12: 24.32 | AE12: > 300km and ≤ 600km | AF12: < 500V | AG12: 21.3 | AH12: 24.28
A13: Excess NAC Megaflex | B13: ExNACMe | C13: 1 | D13: 2 | E13: ExNACMe12N | G13: Excess NAC Nightsave Large | H13: ExNACNL | I13: 1 | J13: 2 | K13: ExNACNL12N | M13: Excess NAC Miniflex | N13: ExNACMi | O13: 1 | P13: 2 | Q13: ExNACMi12N | T13: ≥ 500V & < 66kV | U13: 19.55 | V13: 22.29 | Z13: ≥ 500V & < 66kV | AA13: 19.55 | AB13: 22.29 | AF13: ≥ 500V & < 66kV | AG13: 19.53 | AH13: 22.26
A14: Excess NAC Megaflex | B14: ExNACMe | C14: 1 | D14: 3 | E14: ExNACMe13N | G14: Excess NAC Nightsave Large | H14: ExNACNL | I14: 1 | J14: 3 | K14: ExNACNL13N | M14: Excess NAC Miniflex | N14: ExNACMi | O14: 1 | P14: 3 | Q14: ExNACMi13N | T14: ≥ 66kV & ≤ 132kV | U14: 22.45 | V14: 25.59 | Z14: ≥ 66kV & ≤ 132kV | AA14: 22.45 | AB14: 25.59 | AF14: ≥ 66kV & ≤ 132kV | AG14: 22.42 | AH14: 25.56
A15: Excess NAC Megaflex | B15: ExNACMe | C15: 1 | D15: 4 | E15: ExNACMe14N | G15: Excess NAC Nightsave Large | H15: ExNACNL | I15: 1 | J15: 4 | K15: ExNACNL14N | M15: Excess NAC Miniflex | N15: ExNACMi | O15: 1 | P15: 4 | Q15: ExNACMi14N | T15: > 132kV* | U15: 19.52 | V15: 22.25 | Z15: > 132kV* | AA15: 19.52 | AB15: 22.25 | AF15: > 132kV* | AG15: 19.49 | AH15: 22.22
A16: Excess NAC Megaflex | B16: ExNACMe | C16: 2 | D16: 1 | E16: ExNACMe21N | G16: Excess NAC Nightsave Large | H16: ExNACNL | I16: 2 | J16: 1 | K16: ExNACNL21N | M16: Excess NAC Miniflex | N16: ExNACMi | O16: 2 | P16: 1 | Q16: ExNACMi21N | S16: > 600km and ≤ 900km | T16: < 500V | U16: 21.42 | V16: 24.42 | Y16: > 600km and ≤ 900km | Z16: < 500V | AA16: 21.42 | AB16: 24.42 | AE16: > 600km and ≤ 900km | AF16: < 500V | AG16: 21.4 | AH16: 24.4
A17: Excess NAC Megaflex | B17: ExNACMe | C17: 2 | D17: 2 | E17: ExNACMe22N | G17: Excess NAC Nightsave Large | H17: ExNACNL | I17: 2 | J17: 2 | K17: ExNACNL22N | M17: Excess NAC Miniflex | N17: ExNACMi | O17: 2 | P17: 2 | Q17: ExNACMi22N | T17: ≥ 500V & < 66kV | U17: 19.61 | V17: 22.36 | Z17: ≥ 500V & < 66kV | AA17: 19.61 | AB17: 22.36 | AF17: ≥ 500V & < 66kV | AG17: 19.59 | AH17: 22.33
A18: Excess NAC Megaflex | B18: ExNACMe | C18: 2 | D18: 3 | E18: ExNACMe23N | G18: Excess NAC Nightsave Large | H18: ExNACNL | I18: 2 | J18: 3 | K18: ExNACNL23N | M18: Excess NAC Miniflex | N18: ExNACMi | O18: 2 | P18: 3 | Q18: ExNACMi23N | T18: ≥ 66kV & ≤ 132kV | U18: 22.49 | V18: 25.64 | Z18: ≥ 66kV & ≤ 132kV | AA18: 22.49 | AB18: 25.64 | AF18: ≥ 66kV & ≤ 132kV | AG18: 22.47 | AH18: 25.62
A19: Excess NAC Megaflex | B19: ExNACMe | C19: 2 | D19: 4 | E19: ExNACMe24N | G19: Excess NAC Nightsave Large | H19: ExNACNL | I19: 2 | J19: 4 | K19: ExNACNL24N | M19: Excess NAC Miniflex | N19: ExNACMi | O19: 2 | P19: 4 | Q19: ExNACMi24N | T19: > 132kV* | U19: 19.63 | V19: 22.38 | Z19: > 132kV* | AA19: 19.63 | AB19: 22.38 | AF19: > 132kV* | AG19: 19.6 | AH19: 22.34
A20: Excess NAC Megaflex | B20: ExNACMe | C20: 3 | D20: 1 | E20: ExNACMe31N | G20: Excess NAC Nightsave Large | H20: ExNACNL | I20: 3 | J20: 1 | K20: ExNACNL31N | M20: Excess NAC Miniflex | N20: ExNACMi | O20: 3 | P20: 1 | Q20: ExNACMi31N | S20: > 900km | T20: < 500V | U20: 21.44 | V20: 24.44 | Y20: > 900km | Z20: < 500V | AA20: 21.44 | AB20: 24.44 | AE20: > 900km | AF20: < 500V | AG20: 21.42 | AH20: 24.42
A21: Excess NAC Megaflex | B21: ExNACMe | C21: 3 | D21: 2 | E21: ExNACMe32N | G21: Excess NAC Nightsave Large | H21: ExNACNL | I21: 3 | J21: 2 | K21: ExNACNL32N | M21: Excess NAC Miniflex | N21: ExNACMi | O21: 3 | P21: 2 | Q21: ExNACMi32N | T21: ≥ 500V & < 66kV | U21: 19.69 | V21: 22.45 | Z21: ≥ 500V & < 66kV | AA21: 19.69 | AB21: 22.45 | AF21: ≥ 500V & < 66kV | AG21: 19.66 | AH21: 22.41
A22: Excess NAC Megaflex | B22: ExNACMe | C22: 3 | D22: 3 | E22: ExNACMe33N | G22: Excess NAC Nightsave Large | H22: ExNACNL | I22: 3 | J22: 3 | K22: ExNACNL33N | M22: Excess NAC Miniflex | N22: ExNACMi | O22: 3 | P22: 3 | Q22: ExNACMi33N | T22: ≥ 66kV & ≤ 132kV | U22: 22.54 | V22: 25.7 | Z22: ≥ 66kV & ≤ 132kV | AA22: 22.54 | AB22: 25.7 | AF22: ≥ 66kV & ≤ 132kV | AG22: 22.52 | AH22: 25.67
A23: Excess NAC Megaflex | B23: ExNACMe | C23: 3 | D23: 4 | E23: ExNACMe34N | G23: Excess NAC Nightsave Large | H23: ExNACNL | I23: 3 | J23: 4 | K23: ExNACNL34N | M23: Excess NAC Miniflex | N23: ExNACMi | O23: 3 | P23: 4 | Q23: ExNACMi34N | T23: > 132kV* | U23: 19.69 | V23: 22.45 | Z23: > 132kV* | AA23: 19.69 | AB23: 22.45 | AF23: > 132kV* | AG23: 19.66 | AH23: 22.41
T24: * 132 kV or Transmission connected | Z24: * 132 kV or Transmission connected | AF24: * 132 kV or Transmission connected
S25: Urban - Excess NAC Nightsave Urban Small [non local authorities] | X25: Rural - Excess NAC Nightsave Rural [non local authorities] | AD25: Rural - Excess NAC Ruraflex [non local authorities]
U27: Excess network charge [R/kVA/m] | AA27: Excess network charge [R/kVA/m] | AG27: Excess network charge [R/kVA/m]
S28: Transmission zone | Y28: Transmission zone | AE28: Transmission zone
T29: Voltage | Z29: Voltage | AF29: Voltage
A30: Tariff | B30: Tariff nameBillcode | C30: Tx zone | D30: Voltage | E30: Billcode | G30: Tariff | H30: Tariff nameBillcode | I30: Tx zone | J30: Voltage | K30: Billcode | M30: Tariff | N30: Tariff nameBillcode | O30: Tx zone | P30: Voltage | Q30: Billcode | V30: VAT incl | AB30: VAT incl | AH30: VAT incl
A31: Excess NAC Nightsave Small | B31: ExNACNS | C31: 0 | D31: 1 | E31: =B31&C31&D31&IF($A$2="Non-municipal","N",IF($A$2="Municiple","Y","error")) -> ExNACNS01N | G31: Excess NAC Nightsave Rural | H31: ExNACNR | I31: 0 | J31: 1 | K31: =H31&I31&J31&IF($A$2="Non-municipal","N",IF($A$2="Municiple","Y","error")) -> ExNACNR01N | M31: Excess NAC Ruraflex | N31: ExNACRu | O31: 0 | P31: 1 | Q31: =N31&O31&P31&IF($A$2="Non-municipal","N",IF($A$2="Municiple","Y","error")) -> ExNACRu01N | S31: ≤ 300km | T31: < 500V | U31: 21.27 | V31: =ROUND(U31 * (1 + VAT), 2) -> 24.25 | Y31: ≤ 300km | Z31: < 500V | AA31: 10.65 | AB31: =ROUND(AA31 * (1 + VAT), 2) -> 12.14 | AE31: ≤ 300km | AF31: < 500V | AG31: 14.88 | AH31: =ROUND(AG31 * (1 + VAT), 2) -> 16.96
A32: Excess NAC Nightsave Small | B32: ExNACNS | C32: 0 | D32: 2 | E32: =B32&C32&D32&IF($A$2="Non-municipal","N",IF($A$2="Municiple","Y","error")) -> ExNACNS02N | G32: Excess NAC Nightsave Rural | H32: ExNACNR | I32: 0 | J32: 2 | K32: =H32&I32&J32&IF($A$2="Non-municipal","N",IF($A$2="Municiple","Y","error")) -> ExNACNR02N | M32: Excess NAC Ruraflex | N32: ExNACRu | O32: 0 | P32: 2 | Q32: =N32&O32&P32&IF($A$2="Non-municipal","N",IF($A$2="Municiple","Y","error")) -> ExNACRu02N | T32: ≥ 500V & < 66kV | U32: 19.49 | V32: 22.22 | Z32: ≥ 500V & ≤ 22kV | AA32: 9.78 | AB32: 11.15 | AF32: ≥ 500V & ≤ 22kV | AG32: 13.64 | AH32: 15.55
A33: Excess NAC Nightsave Small | B33: ExNACNS | C33: 0 | D33: 3 | E33: ExNACNS03N | G33: Excess NAC Nightsave Rural | H33: ExNACNR | I33: 0 | J33: 3 | K33: ExNACNR03N | M33: Excess NAC Ruraflex | N33: ExNACRu | O33: 0 | P33: 3 | Q33: ExNACRu03N | T33: ≥ 66kV & ≤ 132kV | U33: 22.4 | V33: 25.54
A34: Excess NAC Nightsave Small | B34: ExNACNS | C34: 0 | D34: 4 | E34: ExNACNS04N | G34: Excess NAC Nightsave Rural | H34: ExNACNR | I34: 0 | J34: 4 | K34: ExNACNR04N | M34: Excess NAC Ruraflex | N34: ExNACRu | O34: 0 | P34: 4 | Q34: ExNACRu04N | T34: > 132kV* | U34: 19.44 | V34: 22.16
A35: Excess NAC Nightsave Small | B35: ExNACNS | C35: 1 | D35: 1 | E35: ExNACNS11N | G35: Excess NAC Nightsave Rural | H35: ExNACNR | I35: 1 | J35: 1 | K35: ExNACNR11N | M35: Excess NAC Ruraflex | N35: ExNACRu | O35: 1 | P35: 1 | Q35: ExNACRu11N | S35: > 300km and ≤ 600km | T35: < 500V | U35: 21.33 | V35: 24.32 | Y35: > 300km and ≤ 600km | Z35: < 500V | AA35: 10.68 | AB35: =ROUND(AA35 * (1 + VAT), 2) -> 12.18 | AE35: > 300km and ≤ 600km | AF35: < 500V | AG35: 14.93 | AH35: =ROUND(AG35 * (1 + VAT), 2) -> 17.02
A36: Excess NAC Nightsave Small | B36: ExNACNS | C36: 1 | D36: 2 | E36: ExNACNS12N | G36: Excess NAC Nightsave Rural | H36: ExNACNR | I36: 1 | J36: 2 | K36: ExNACNR12N | M36: Excess NAC Ruraflex | N36: ExNACRu | O36: 1 | P36: 2 | Q36: ExNACRu12N | T36: ≥ 500V & < 66kV | U36: 19.55 | V36: 22.29 | Z36: ≥ 500V & ≤ 22kV | AA36: 9.83 | AB36: 11.21 | AF36: ≥ 500V & ≤ 22kV | AG36: 13.73 | AH36: 15.65
A37: Excess NAC Nightsave Small | B37: ExNACNS | C37: 1 | D37: 3 | E37: ExNACNS13N | G37: Excess NAC Nightsave Rural | H37: ExNACNR | I37: 1 | J37: 3 | K37: ExNACNR13N | M37: Excess NAC Ruraflex | N37: ExNACRu | O37: 1 | P37: 3 | Q37: ExNACRu13N | T37: ≥ 66kV & ≤ 132kV | U37: 22.45 | V37: 25.59
A38: Excess NAC Nightsave Small | B38: ExNACNS | C38: 1 | D38: 4 | E38: ExNACNS14N | G38: Excess NAC Nightsave Rural | H38: ExNACNR | I38: 1 | J38: 4 | K38: ExNACNR14N | M38: Excess NAC Ruraflex | N38: ExNACRu | O38: 1 | P38: 4 | Q38: ExNACRu14N | T38: > 132kV* | U38: 19.52 | V38: 22.25
A39: Excess NAC Nightsave Small | B39: ExNACNS | C39: 2 | D39: 1 | E39: ExNACNS21N | G39: Excess NAC Nightsave Rural | H39: ExNACNR | I39: 2 | J39: 1 | K39: ExNACNR21N | M39: Excess NAC Ruraflex | N39: ExNACRu | O39: 2 | P39: 1 | Q39: ExNACRu21N | S39: > 600km and ≤ 900km | T39: < 500V | U39: 21.42 | V39: 24.42 | Y39: > 600km and ≤ 900km | Z39: < 500V | AA39: 10.78 | AB39: =ROUND(AA39 * (1 + VAT), 2) -> 12.29 | AE39: > 600km and ≤ 900km | AF39: < 500V | AG39: 15.01 | AH39: =ROUND(AG39 * (1 + VAT), 2) -> 17.11
A40: Excess NAC Nightsave Small | B40: ExNACNS | C40: 2 | D40: 2 | E40: ExNACNS22N | G40: Excess NAC Nightsave Rural | H40: ExNACNR | I40: 2 | J40: 2 | K40: ExNACNR22N | M40: Excess NAC Ruraflex | N40: ExNACRu | O40: 2 | P40: 2 | Q40: ExNACRu22N | T40: ≥ 500V & < 66kV | U40: 19.61 | V40: 22.36 | Z40: ≥ 500V & ≤ 22kV | AA40: 9.89 | AB40: 11.27 | AF40: ≥ 500V & ≤ 22kV | AG40: 13.78 | AH40: 15.71
A41: Excess NAC Nightsave Small | B41: ExNACNS | C41: 2 | D41: 3 | E41: ExNACNS23N | G41: Excess NAC Nightsave Rural | H41: ExNACNR | I41: 2 | J41: 3 | K41: ExNACNR23N | M41: Excess NAC Ruraflex | N41: ExNACRu | O41: 2 | P41: 3 | Q41: ExNACRu23N | T41: ≥ 66kV & ≤ 132kV | U41: 22.49 | V41: 25.64
A42: Excess NAC Nightsave Small | B42: ExNACNS | C42: 2 | D42: 4 | E42: ExNACNS24N | G42: Excess NAC Nightsave Rural | H42: ExNACNR | I42: 2 | J42: 4 | K42: ExNACNR24N | M42: Excess NAC Ruraflex | N42: ExNACRu | O42: 2 | P42: 4 | Q42: ExNACRu24N | T42: > 132kV* | U42: 19.63 | V42: 22.38
A43: Excess NAC Nightsave Small | B43: ExNACNS | C43: 3 | D43: 1 | E43: ExNACNS31N | G43: Excess NAC Nightsave Rural | H43: ExNACNR | I43: 3 | J43: 1 | K43: ExNACNR31N | M43: Excess NAC Ruraflex | N43: ExNACRu | O43: 3 | P43: 1 | Q43: ExNACRu31N | S43: > 900km | T43: < 500V | U43: 21.44 | V43: 24.44 | Y43: > 900km | Z43: < 500V | AA43: 10.8 | AB43: =ROUND(AA43 * (1 + VAT), 2) -> 12.31 | AE43: > 900km | AF43: < 500V | AG43: 15.07 | AH43: =ROUND(AG43 * (1 + VAT), 2) -> 17.18
A44: Excess NAC Nightsave Small | B44: ExNACNS | C44: 3 | D44: 2 | E44: ExNACNS32N | G44: Excess NAC Nightsave Rural | H44: ExNACNR | I44: 3 | J44: 2 | K44: ExNACNR32N | M44: Excess NAC Ruraflex | N44: ExNACRu | O44: 3 | P44: 2 | Q44: ExNACRu32N | T44: ≥ 500V & < 66kV | U44: 19.69 | V44: 22.45 | Z44: ≥ 500V & ≤ 22kV | AA44: 9.91 | AB44: 11.3 | AF44: ≥ 500V & ≤ 22kV | AG44: 13.79 | AH44: 15.72
A45: Excess NAC Nightsave Small | B45: ExNACNS | C45: 3 | D45: 3 | E45: ExNACNS33N | G45: Excess NAC Nightsave Rural | H45: ExNACNR | I45: 3 | J45: 3 | K45: ExNACNR33N | M45: Excess NAC Ruraflex | N45: ExNACRu | O45: 3 | P45: 3 | Q45: ExNACRu33N | T45: ≥ 66kV & ≤ 132kV | U45: 22.54 | V45: 25.7
A46: Excess NAC Nightsave Small | B46: ExNACNS | C46: 3 | D46: 4 | E46: ExNACNS34N | G46: Excess NAC Nightsave Rural | H46: ExNACNR | I46: 3 | J46: 4 | K46: ExNACNR34N | M46: Excess NAC Ruraflex | N46: ExNACRu | O46: 3 | P46: 4 | Q46: ExNACRu34N | T46: > 132kV* | U46: 19.69 | V46: 22.45
T47: * 132 kV or Transmission connected

Sheet Excess NAC Munic
S1: Back to menu
A2: Municiple | S2: Urban - Excess NAC Megaflex [Local authorities] | X2: Urban - Excess NAC Nightsave Urban Large [Local authorities] | AD2: Urban - Excess NAC Miniflex [Local authorities]
U4: Excess network charge [R/kVA/m] | AA4: Excess network charge [R/kVA/m] | AG4: Excess network charge [R/kVA/m]
S5: Transmission zone | Y5: Transmission zone | AE5: Transmission zone
T6: Voltage | Z6: Voltage | AF6: Voltage
A7: Tariff | B7: Tariff nameBillcode | C7: Tx zone | D7: Voltage | E7: Billcode | G7: Tariff | H7: Tariff nameBillcode | I7: Tx zone | J7: Voltage | K7: Billcode | M7: Tariff | N7: Tariff nameBillcode | O7: Tx zone | P7: Voltage | Q7: Billcode | V7: VAT incl | AB7: VAT incl | AH7: VAT incl
A8: Excess NAC Megaflex | B8: ExNACMe | C8: 0 | D8: 1 | E8: =B8&C8&D8&IF($A$2="Non-municipal","N",IF($A$2="Municiple","Y","error")) -> ExNACMe01Y | G8: Excess NAC Nightsave Large | H8: ExNACNL | I8: 0 | J8: 1 | K8: =H8&I8&J8&IF($A$2="Non-municipal","N",IF($A$2="Municiple","Y","error")) -> ExNACNL01Y | M8: Excess NAC Miniflex | N8: ExNACMi | O8: 0 | P8: 1 | Q8: =N8&O8&P8&IF($A$2="Non-municipal","N",IF($A$2="Municiple","Y","error")) -> ExNACMi01Y | S8: ≤ 300km | T8: < 500V | U8: 21.56 | V8: =ROUND(U8 * (1 + VAT), 2) -> 24.58 | Y8: ≤ 300km | Z8: < 500V | AA8: 21.56 | AB8: =ROUND(AA8 * (1 + VAT), 2) -> 24.58 | AE8: ≤ 300km | AF8: < 500V | AG8: 21.56 | AH8: =ROUND(AG8 * (1 + VAT), 2) -> 24.58
A9: Excess NAC Megaflex | B9: ExNACMe | C9: 0 | D9: 2 | E9: =B9&C9&D9&IF($A$2="Non-municipal","N",IF($A$2="Municiple","Y","error")) -> ExNACMe02Y | G9: Excess NAC Nightsave Large | H9: ExNACNL | I9: 0 | J9: 2 | K9: =H9&I9&J9&IF($A$2="Non-municipal","N",IF($A$2="Municiple","Y","error")) -> ExNACNL02Y | M9: Excess NAC Miniflex | N9: ExNACMi | O9: 0 | P9: 2 | Q9: =N9&O9&P9&IF($A$2="Non-municipal","N",IF($A$2="Municiple","Y","error")) -> ExNACMi02Y | T9: ≥ 500V & < 66kV | U9: 19.74 | V9: 22.5 | Z9: ≥ 500V & < 66kV | AA9: 19.74 | AB9: 22.5 | AF9: ≥ 500V & < 66kV | AG9: 19.75 | AH9: 22.52
A10: Excess NAC Megaflex | B10: ExNACMe | C10: 0 | D10: 3 | E10: ExNACMe03Y | G10: Excess NAC Nightsave Large | H10: ExNACNL | I10: 0 | J10: 3 | K10: ExNACNL03Y | M10: Excess NAC Miniflex | N10: ExNACMi | O10: 0 | P10: 3 | Q10: ExNACMi03Y | T10: ≥ 66kV & ≤ 132kV | U10: 22.64 | V10: 25.81 | Z10: ≥ 66kV & ≤ 132kV | AA10: 22.64 | AB10: 25.81 | AF10: ≥ 66kV & ≤ 132kV | AG10: 22.62 | AH10: 25.79
A11: Excess NAC Megaflex | B11: ExNACMe | C11: 0 | D11: 4 | E11: ExNACMe04Y | G11: Excess NAC Nightsave Large | H11: ExNACNL | I11: 0 | J11: 4 | K11: ExNACNL04Y | M11: Excess NAC Miniflex | N11: ExNACMi | O11: 0 | P11: 4 | Q11: ExNACMi04Y | T11: > 132kV* | U11: 19.62 | V11: 22.37 | Z11: > 132kV* | AA11: 19.62 | AB11: 22.37 | AF11: > 132kV* | AG11: 19.62 | AH11: 22.37
A12: Excess NAC Megaflex | B12: ExNACMe | C12: 1 | D12: 1 | E12: ExNACMe11Y | G12: Excess NAC Nightsave Large | H12: ExNACNL | I12: 1 | J12: 1 | K12: ExNACNL11Y | M12: Excess NAC Miniflex | N12: ExNACMi | O12: 1 | P12: 1 | Q12: ExNACMi11Y | S12: > 300km and ≤ 600km | T12: < 500V | U12: 21.6 | V12: 24.62 | Y12: > 300km and ≤ 600km | Z12: < 500V | AA12: 21.6 | AB12: 24.62 | AE12: > 300km and ≤ 600km | AF12: < 500V | AG12: 21.6 | AH12: 24.62
A13: Excess NAC Megaflex | B13: ExNACMe | C13: 1 | D13: 2 | E13: ExNACMe12Y | G13: Excess NAC Nightsave Large | H13: ExNACNL | I13: 1 | J13: 2 | K13: ExNACNL12Y | M13: Excess NAC Miniflex | N13: ExNACMi | O13: 1 | P13: 2 | Q13: ExNACMi12Y | T13: ≥ 500V & < 66kV | U13: 19.81 | V13: 22.58 | Z13: ≥ 500V & < 66kV | AA13: 19.81 | AB13: 22.58 | AF13: ≥ 500V & < 66kV | AG13: 19.81 | AH13: 22.58
A14: Excess NAC Megaflex | B14: ExNACMe | C14: 1 | D14: 3 | E14: ExNACMe13Y | G14: Excess NAC Nightsave Large | H14: ExNACNL | I14: 1 | J14: 3 | K14: ExNACNL13Y | M14: Excess NAC Miniflex | N14: ExNACMi | O14: 1 | P14: 3 | Q14: ExNACMi13Y | T14: ≥ 66kV & ≤ 132kV | U14: 22.68 | V14: 25.86 | Z14: ≥ 66kV & ≤ 132kV | AA14: 22.68 | AB14: 25.86 | AF14: ≥ 66kV & ≤ 132kV | AG14: 22.68 | AH14: 25.86
A15: Excess NAC Megaflex | B15: ExNACMe | C15: 1 | D15: 4 | E15: ExNACMe14Y | G15: Excess NAC Nightsave Large | H15: ExNACNL | I15: 1 | J15: 4 | K15: ExNACNL14Y | M15: Excess NAC Miniflex | N15: ExNACMi | O15: 1 | P15: 4 | Q15: ExNACMi14Y | T15: > 132kV* | U15: 19.7 | V15: 22.46 | Z15: > 132kV* | AA15: 19.7 | AB15: 22.46 | AF15: > 132kV* | AG15: 19.7 | AH15: 22.46
A16: Excess NAC Megaflex | B16: ExNACMe | C16: 2 | D16: 1 | E16: ExNACMe21Y | G16: Excess NAC Nightsave Large | H16: ExNACNL | I16: 2 | J16: 1 | K16: ExNACNL21Y | M16: Excess NAC Miniflex | N16: ExNACMi | O16: 2 | P16: 1 | Q16: ExNACMi21Y | S16: > 600km and ≤ 900km | T16: < 500V | U16: 21.69 | V16: 24.73 | Y16: > 600km and ≤ 900km | Z16: < 500V | AA16: 21.69 | AB16: 24.73 | AE16: > 600km and ≤ 900km | AF16: < 500V | AG16: 21.71 | AH16: 24.75
A17: Excess NAC Megaflex | B17: ExNACMe | C17: 2 | D17: 2 | E17: ExNACMe22Y | G17: Excess NAC Nightsave Large | H17: ExNACNL | I17: 2 | J17: 2 | K17: ExNACNL22Y | M17: Excess NAC Miniflex | N17: ExNACMi | O17: 2 | P17: 2 | Q17: ExNACMi22Y | T17: ≥ 500V & < 66kV | U17: 19.86 | V17: 22.64 | Z17: ≥ 500V & < 66kV | AA17: 19.86 | AB17: 22.64 | AF17: ≥ 500V & < 66kV | AG17: 19.87 | AH17: 22.65
A18: Excess NAC Megaflex | B18: ExNACMe | C18: 2 | D18: 3 | E18: ExNACMe23Y | G18: Excess NAC Nightsave Large | H18: ExNACNL | I18: 2 | J18: 3 | K18: ExNACNL23Y | M18: Excess NAC Miniflex | N18: ExNACMi | O18: 2 | P18: 3 | Q18: ExNACMi23Y | T18: ≥ 66kV & ≤ 132kV | U18: 22.74 | V18: 25.92 | Z18: ≥ 66kV & ≤ 132kV | AA18: 22.74 | AB18: 25.92 | AF18: ≥ 66kV & ≤ 132kV | AG18: 22.73 | AH18: 25.91
A19: Excess NAC Megaflex | B19: ExNACMe | C19: 2 | D19: 4 | E19: ExNACMe24Y | G19: Excess NAC Nightsave Large | H19: ExNACNL | I19: 2 | J19: 4 | K19: ExNACNL24Y | M19: Excess NAC Miniflex | N19: ExNACMi | O19: 2 | P19: 4 | Q19: ExNACMi24Y | T19: > 132kV* | U19: 19.81 | V19: 22.58 | Z19: > 132kV* | AA19: 19.81 | AB19: 22.58 | AF19: > 132kV* | AG19: 19.81 | AH19: 22.58
A20: Excess NAC Megaflex | B20: ExNACMe | C20: 3 | D20: 1 | E20: ExNACMe31Y | G20: Excess NAC Nightsave Large | H20: ExNACNL | I20: 3 | J20: 1 | K20: ExNACNL31Y | M20: Excess NAC Miniflex | N20: ExNACMi | O20: 3 | P20: 1 | Q20: ExNACMi31Y | S20: > 900km | T20: < 500V | U20: 21.73 | V20: 24.77 | Y20: > 900km | Z20: < 500V | AA20: 21.73 | AB20: 24.77 | AE20: > 900km | AF20: < 500V | AG20: 21.73 | AH20: 24.77
A21: Excess NAC Megaflex | B21: ExNACMe | C21: 3 | D21: 2 | E21: ExNACMe32Y | G21: Excess NAC Nightsave Large | H21: ExNACNL | I21: 3 | J21: 2 | K21: ExNACNL32Y | M21: Excess NAC Miniflex | N21: ExNACMi | O21: 3 | P21: 2 | Q21: ExNACMi32Y | T21: ≥ 500V & < 66kV | U21: 19.93 | V21: 22.72 | Z21: ≥ 500V & < 66kV | AA21: 19.93 | AB21: 22.72 | AF21: ≥ 500V & < 66kV | AG21: 19.95 | AH21: 22.74
A22: Excess NAC Megaflex | B22: ExNACMe | C22: 3 | D22: 3 | E22: ExNACMe33Y | G22: Excess NAC Nightsave Large | H22: ExNACNL | I22: 3 | J22: 3 | K22: ExNACNL33Y | M22: Excess NAC Miniflex | N22: ExNACMi | O22: 3 | P22: 3 | Q22: ExNACMi33Y | T22: ≥ 66kV & ≤ 132kV | U22: 22.79 | V22: 25.98 | Z22: ≥ 66kV & ≤ 132kV | AA22: 22.79 | AB22: 25.98 | AF22: ≥ 66kV & ≤ 132kV | AG22: 22.77 | AH22: 25.96
A23: Excess NAC Megaflex | B23: ExNACMe | C23: 3 | D23: 4 | E23: ExNACMe34Y | G23: Excess NAC Nightsave Large | H23: ExNACNL | I23: 3 | J23: 4 | K23: ExNACNL34Y | M23: Excess NAC Miniflex | N23: ExNACMi | O23: 3 | P23: 4 | Q23: ExNACMi34Y | T23: > 132kV* | U23: 19.87 | V23: 22.65 | Z23: > 132kV* | AA23: 19.87 | AB23: 22.65 | AF23: > 132kV* | AG23: 19.87 | AH23: 22.65
T24: * 132 kV or Transmission connected | Z24: * 132 kV or Transmission connected | AF24: * 132 kV or Transmission connected
S25: Urban - Excess NAC Nightsave Urban Small [Local authorities] | X25: Rural - Excess NAC Nightsave Rural [Local authorities] | AD25: Rural - Excess NAC Ruraflex [Local authorities]
U27: Excess network charge [R/kVA/m] | AA27: Excess network charge [R/kVA/m] | AG27: Excess network charge [R/kVA/m]
S28: Transmission zone | Y28: Transmission zone | AE28: Transmission zone
T29: Voltage | Z29: Voltage | AF29: Voltage
A30: Tariff | B30: Tariff nameBillcode | C30: Tx zone | D30: Voltage | E30: Billcode | G30: Tariff | H30: Tariff nameBillcode | I30: Tx zone | J30: Voltage | K30: Billcode | M30: Tariff | N30: Tariff nameBillcode | O30: Tx zone | P30: Voltage | Q30: Billcode | V30: VAT incl | AB30: VAT incl | AH30: VAT incl
A31: Excess NAC Nightsave Small | B31: ExNACNS | C31: 0 | D31: 1 | E31: =B31&C31&D31&IF($A$2="Non-municipal","N",IF($A$2="Municiple","Y","error")) -> ExNACNS01Y | G31: Excess NAC Nightsave Rural | H31: ExNACNR | I31: 0 | J31: 1 | K31: =H31&I31&J31&IF($A$2="Non-municipal","N",IF($A$2="Municiple","Y","error")) -> ExNACNR01Y | M31: Excess NAC Ruraflex | N31: ExNACRu | O31: 0 | P31: 1 | Q31: =N31&O31&P31&IF($A$2="Non-municipal","N",IF($A$2="Municiple","Y","error")) -> ExNACRu01Y | S31: ≤ 300km | T31: < 500V | U31: 21.56 | V31: =ROUND(U31 * (1 + VAT), 2) -> 24.58 | Y31: ≤ 300km | Z31: < 500V | AA31: 10.91 | AB31: =ROUND(AA31 * (1 + VAT), 2) -> 12.44 | AE31: ≤ 300km | AF31: < 500V | AG31: 15.22 | AH31: =ROUND(AG31 * (1 + VAT), 2) -> 17.35
A32: Excess NAC Nightsave Small | B32: ExNACNS | C32: 0 | D32: 2 | E32: =B32&C32&D32&IF($A$2="Non-municipal","N",IF($A$2="Municiple","Y","error")) -> ExNACNS02Y | G32: Excess NAC Nightsave Rural | H32: ExNACNR | I32: 0 | J32: 2 | K32: =H32&I32&J32&IF($A$2="Non-municipal","N",IF($A$2="Municiple","Y","error")) -> ExNACNR02Y | M32: Excess NAC Ruraflex | N32: ExNACRu | O32: 0 | P32: 2 | Q32: =N32&O32&P32&IF($A$2="Non-municipal","N",IF($A$2="Municiple","Y","error")) -> ExNACRu02Y | T32: ≥ 500V & < 66kV | U32: 19.74 | V32: 22.5 | Z32: ≥ 500V & ≤ 22kV | AA32: 10.02 | AB32: 11.42 | AF32: ≥ 500V & ≤ 22kV | AG32: 13.96 | AH32: 15.91
A33: Excess NAC Nightsave Small | B33: ExNACNS | C33: 0 | D33: 3 | E33: ExNACNS03Y | G33: Excess NAC Nightsave Rural | H33: ExNACNR | I33: 0 | J33: 3 | K33: ExNACNR03Y | M33: Excess NAC Ruraflex | N33: ExNACRu | O33: 0 | P33: 3 | Q33: ExNACRu03Y | T33: ≥ 66kV & ≤ 132kV | U33: 22.64 | V33: 25.81
A34: Excess NAC Nightsave Small | B34: ExNACNS | C34: 0 | D34: 4 | E34: ExNACNS04Y | G34: Excess NAC Nightsave Rural | H34: ExNACNR | I34: 0 | J34: 4 | K34: ExNACNR04Y | M34: Excess NAC Ruraflex | N34: ExNACRu | O34: 0 | P34: 4 | Q34: ExNACRu04Y | T34: > 132kV* | U34: 19.62 | V34: 22.37
A35: Excess NAC Nightsave Small | B35: ExNACNS | C35: 1 | D35: 1 | E35: ExNACNS11Y | G35: Excess NAC Nightsave Rural | H35: ExNACNR | I35: 1 | J35: 1 | K35: ExNACNR11Y | M35: Excess NAC Ruraflex | N35: ExNACRu | O35: 1 | P35: 1 | Q35: ExNACRu11Y | S35: > 300km and ≤ 600km | T35: < 500V | U35: 21.6 | V35: 24.62 | Y35: > 300km and ≤ 600km | Z35: < 500V | AA35: 10.93 | AB35: =ROUND(AA35 * (1 + VAT), 2) -> 12.46 | AE35: > 300km and ≤ 600km | AF35: < 500V | AG35: 15.29 | AH35: =ROUND(AG35 * (1 + VAT), 2) -> 17.43
A36: Excess NAC Nightsave Small | B36: ExNACNS | C36: 1 | D36: 2 | E36: ExNACNS12Y | G36: Excess NAC Nightsave Rural | H36: ExNACNR | I36: 1 | J36: 2 | K36: ExNACNR12Y | M36: Excess NAC Ruraflex | N36: ExNACRu | O36: 1 | P36: 2 | Q36: ExNACRu12Y | T36: ≥ 500V & < 66kV | U36: 19.81 | V36: 22.58 | Z36: ≥ 500V & ≤ 22kV | AA36: 10.06 | AB36: 11.47 | AF36: ≥ 500V & ≤ 22kV | AG36: 14.05 | AH36: 16.02
A37: Excess NAC Nightsave Small | B37: ExNACNS | C37: 1 | D37: 3 | E37: ExNACNS13Y | G37: Excess NAC Nightsave Rural | H37: ExNACNR | I37: 1 | J37: 3 | K37: ExNACNR13Y | M37: Excess NAC Ruraflex | N37: ExNACRu | O37: 1 | P37: 3 | Q37: ExNACRu13Y | T37: ≥ 66kV & ≤ 132kV | U37: 22.68 | V37: 25.86
A38: Excess NAC Nightsave Small | B38: ExNACNS | C38: 1 | D38: 4 | E38: ExNACNS14Y | G38: Excess NAC Nightsave Rural | H38: ExNACNR | I38: 1 | J38: 4 | K38: ExNACNR14Y | M38: Excess NAC Ruraflex | N38: ExNACRu | O38: 1 | P38: 4 | Q38: ExNACRu14Y | T38: > 132kV* | U38: 19.7 | V38: 22.46
A39: Excess NAC Nightsave Small | B39: ExNACNS | C39: 2 | D39: 1 | E39: ExNACNS21Y | G39: Excess NAC Nightsave Rural | H39: ExNACNR | I39: 2 | J39: 1 | K39: ExNACNR21Y | M39: Excess NAC Ruraflex | N39: ExNACRu | O39: 2 | P39: 1 | Q39: ExNACRu21Y | S39: > 600km and ≤ 900km | T39: < 500V | U39: 21.69 | V39: 24.73 | Y39: > 600km and ≤ 900km | Z39: < 500V | AA39: 11.04 | AB39: =ROUND(AA39 * (1 + VAT), 2) -> 12.59 | AE39: > 600km and ≤ 900km | AF39: < 500V | AG39: 15.37 | AH39: =ROUND(AG39 * (1 + VAT), 2) -> 17.52
A40: Excess NAC Nightsave Small | B40: ExNACNS | C40: 2 | D40: 2 | E40: ExNACNS22Y | G40: Excess NAC Nightsave Rural | H40: ExNACNR | I40: 2 | J40: 2 | K40: ExNACNR22Y | M40: Excess NAC Ruraflex | N40: ExNACRu | O40: 2 | P40: 2 | Q40: ExNACRu22Y | T40: ≥ 500V & < 66kV | U40: 19.86 | V40: 22.64 | Z40: ≥ 500V & ≤ 22kV | AA40: 10.12 | AB40: 11.54 | AF40: ≥ 500V & ≤ 22kV | AG40: 14.11 | AH40: 16.09
A41: Excess NAC Nightsave Small | B41: ExNACNS | C41: 2 | D41: 3 | E41: ExNACNS23Y | G41: Excess NAC Nightsave Rural | H41: ExNACNR | I41: 2 | J41: 3 | K41: ExNACNR23Y | M41: Excess NAC Ruraflex | N41: ExNACRu | O41: 2 | P41: 3 | Q41: ExNACRu23Y | T41: ≥ 66kV & ≤ 132kV | U41: 22.74 | V41: 25.92
A42: Excess NAC Nightsave Small | B42: ExNACNS | C42: 2 | D42: 4 | E42: ExNACNS24Y | G42: Excess NAC Nightsave Rural | H42: ExNACNR | I42: 2 | J42: 4 | K42: ExNACNR24Y | M42: Excess NAC Ruraflex | N42: ExNACRu | O42: 2 | P42: 4 | Q42: ExNACRu24Y | T42: > 132kV* | U42: 19.81 | V42: 22.58
A43: Excess NAC Nightsave Small | B43: ExNACNS | C43: 3 | D43: 1 | E43: ExNACNS31Y | G43: Excess NAC Nightsave Rural | H43: ExNACNR | I43: 3 | J43: 1 | K43: ExNACNR31Y | M43: Excess NAC Ruraflex | N43: ExNACRu | O43: 3 | P43: 1 | Q43: ExNACRu31Y | S43: > 900km | T43: < 500V | U43: 21.73 | V43: 24.77 | Y43: > 900km | Z43: < 500V | AA43: 11.05 | AB43: =ROUND(AA43 * (1 + VAT), 2) -> 12.6 | AE43: > 900km | AF43: < 500V | AG43: 15.42 | AH43: =ROUND(AG43 * (1 + VAT), 2) -> 17.58
A44: Excess NAC Nightsave Small | B44: ExNACNS | C44: 3 | D44: 2 | E44: ExNACNS32Y | G44: Excess NAC Nightsave Rural | H44: ExNACNR | I44: 3 | J44: 2 | K44: ExNACNR32Y | M44: Excess NAC Ruraflex | N44: ExNACRu | O44: 3 | P44: 2 | Q44: ExNACRu32Y | T44: ≥ 500V & < 66kV | U44: 19.93 | V44: 22.72 | Z44: ≥ 500V & ≤ 22kV | AA44: 10.13 | AB44: 11.55 | AF44: ≥ 500V & ≤ 22kV | AG44: 14.12 | AH44: 16.1
A45: Excess NAC Nightsave Small | B45: ExNACNS | C45: 3 | D45: 3 | E45: ExNACNS33Y | G45: Excess NAC Nightsave Rural | H45: ExNACNR | I45: 3 | J45: 3 | K45: ExNACNR33Y | M45: Excess NAC Ruraflex | N45: ExNACRu | O45: 3 | P45: 3 | Q45: ExNACRu33Y | T45: ≥ 66kV & ≤ 132kV | U45: 22.79 | V45: 25.98
A46: Excess NAC Nightsave Small | B46: ExNACNS | C46: 3 | D46: 4 | E46: ExNACNS34Y | G46: Excess NAC Nightsave Rural | H46: ExNACNR | I46: 3 | J46: 4 | K46: ExNACNR34Y | M46: Excess NAC Ruraflex | N46: ExNACRu | O46: 3 | P46: 4 | Q46: ExNACRu34Y | T46: > 132kV* | U46: 19.87 | V46: 22.65
T47: * 132 kV or Transmission connected

Sheet Miniflex CPD
A1: MiCPDPf
A2: MiCPDPn | D2: Miniflex Critical Peak Day tariff | P2: Non-local authority
A3: 0 | B3: 1 | D3: N
A4: 1 | B4: 2 | F4: Active energy charge [c/kWh] NON-CRITICAL PEAK DAY rates for 348 NORMAL days | R4: Active energy charge [c/kWh] CRITICAL PEAK DAY rates for 17 CRITICAL PEAK days | AD4: Network capacity charges [R/kVA/m]*
A5: 2 | B5: 3 | D5: Transmission zone | F5: High demand season [Jun - Aug] | L5: Low demand season [Sep - May] | R5: High demand season [Jun - Aug] | X5: Low demand season [Sep - May]
A6: 3 | B6: 4 | E6: Voltage | F6: Peak | H6: Standard | J6: Off Peak | L6: Peak | N6: Standard | P6: Off Peak | R6: Peak | T6: Standard | V6: Off Peak | X6: Peak | Z6: Standard | AB6: Off Peak
G7: VAT incl | I7: VAT incl | K7: VAT incl | M7: VAT incl | O7: VAT incl | Q7: VAT incl | S7: VAT incl | U7: VAT incl | W7: VAT incl | Y7: VAT incl | AA7: VAT incl | AC7: VAT incl | AE7: VAT incl
A8: =$A$2&$A$3&$B$3&$D$3 -> MiCPDPn01N | B8: =$A$1&$A$3&$B$3&$D$3 -> MiCPDPf01N | D8: ≤ 300km | E8: < 500V | F8: 204.13 | G8: =ROUND(F8 * (1 + VAT), 2) -> 232.71 | H8: 62.1 | I8: =ROUND(H8 * (1 + VAT), 2) -> 70.79 | J8: 41.35 | K8: =ROUND(J8 * (1 + VAT), 2) -> 47.14 | L8: 66.84 | M8: =ROUND(L8 * (1 + VAT), 2) -> 76.2 | N8: 46.12 | O8: =ROUND(N8 * (1 + VAT), 2) -> 52.58 | P8: 35.86 | Q8: =ROUND(P8 * (1 + VAT), 2) -> 40.88 | R8: 447.54 | S8: =ROUND(R8 * (1 + VAT), 2) -> 510.2 | T8: 305.51 | U8: =ROUND(T8 * (1 + VAT), 2) -> 348.28 | V8: 41.35 | W8: =ROUND(V8 * (1 + VAT), 2) -> 47.14 | X8: 310.25 | Y8: =ROUND(X8 * (1 + VAT), 2) -> 353.69 | Z8: 289.53 | AA8: =ROUND(Z8 * (1 + VAT), 2) -> 330.06 | AB8: 35.86 | AC8: =ROUND(AB8 * (1 + VAT), 2) -> 40.88 | AD8: 21.25 | AE8: =ROUND(AD8 * (1 + VAT), 2) -> 24.23
A9: =$A$2&$A$3&$B$4&$D$3 -> MiCPDPn02N | B9: =$A$1&$A$3&$B$4&$D$3 -> MiCPDPf02N | E9: ≥ 500V & < 66kV | F9: 200.92 | G9: 229.05 | H9: 60.86 | I9: 69.38 | J9: 40.31 | K9: 45.95 | L9: 65.54 | M9: 74.72 | N9: 45.11 | O9: 51.43 | P9: 34.9 | Q9: 39.79 | R9: 444.33 | S9: 506.54 | T9: 304.27 | U9: 346.87 | V9: 40.31 | W9: 45.95 | X9: 308.95 | Y9: 352.2 | Z9: 288.52 | AA9: 328.91 | AB9: 34.9 | AC9: 39.79 | AD9: 19.47 | AE9: 22.2
A10: =$A$2&$A$3&$B$5&$D$3 -> MiCPDPn03N | B10: =$A$1&$A$3&$B$5&$D$3 -> MiCPDPf03N | E10: ≥ 66kV & ≤ 132kV | F10: 194.56 | G10: 221.8 | H10: 58.94 | I10: 67.19 | J10: 39.04 | K10: 44.51 | L10: 63.47 | M10: 72.36 | N10: 43.68 | O10: 49.8 | P10: 33.8 | Q10: 38.53 | R10: 437.97 | S10: 499.29 | T10: 302.35 | U10: 344.68 | V10: 39.04 | W10: 44.51 | X10: 306.88 | Y10: 349.84 | Z10: 287.09 | AA10: 327.28 | AB10: 33.8 | AC10: 38.53 | AD10: 10.94 | AE10: 12.47
A11: =$A$2&$A$3&$B$6&$D$3 -> MiCPDPn04N | B11: =$A$1&$A$3&$B$6&$D$3 -> MiCPDPf04N | E11: > 132kV* | F11: 183.37 | G11: 209.04 | H11: 55.54 | I11: 63.32 | J11: 36.79 | K11: 41.94 | L11: 59.82 | M11: 68.19 | N11: 41.17 | O11: 46.93 | P11: 31.86 | Q11: 36.32 | R11: 426.78 | S11: 486.53 | T11: 298.96 | U11: 340.81 | V11: 36.79 | W11: 41.94 | X11: 303.23 | Y11: 345.68 | Z11: 284.58 | AA11: 324.42 | AB11: 31.86 | AC11: 36.32 | AD11: 7.97 | AE11: 9.09
A12: =$A$2&$A$4&$B$3&$D$3 -> MiCPDPn11N | B12: =$A$1&$A$4&$B$3&$D$3 -> MiCPDPf11N | D12: > 300km and ≤ 600km | E12: < 500V | F12: 205.78 | G12: 234.59 | H12: 62.35 | I12: 71.08 | J12: 41.29 | K12: 47.07 | L12: 67.13 | M12: 76.53 | N12: 46.21 | O12: 52.68 | P12: 35.76 | Q12: 40.77 | R12: 449.19 | S12: 512.08 | T12: 305.76 | U12: 348.57 | V12: 41.29 | W12: 47.07 | X12: 310.54 | Y12: 354.02 | Z12: 289.62 | AA12: 330.17 | AB12: 35.76 | AC12: 40.77 | AD12: 21.3 | AE12: 24.28
A13: =$A$2&$A$4&$B$4&$D$3 -> MiCPDPn12N | B13: =$A$1&$A$4&$B$4&$D$3 -> MiCPDPf12N | E13: ≥ 500V & < 66kV | F13: 202.92 | G13: 231.33 | H13: 61.47 | I13: 70.08 | J13: 40.71 | K13: 46.41 | L13: 66.21 | M13: 75.48 | N13: 45.55 | O13: 51.93 | P13: 35.25 | Q13: 40.19 | R13: 446.33 | S13: 508.82 | T13: 304.88 | U13: 347.56 | V13: 40.71 | W13: 46.41 | X13: 309.62 | Y13: 352.97 | Z13: 288.96 | AA13: 329.41 | AB13: 35.25 | AC13: 40.19 | AD13: 19.53 | AE13: 22.26
A14: =$A$2&$A$4&$B$5&$D$3 -> MiCPDPn13N | B14: =$A$1&$A$4&$B$5&$D$3 -> MiCPDPf13N | E14: ≥ 66kV & ≤ 132kV | F14: 196.48 | G14: 223.99 | H14: 59.51 | I14: 67.84 | J14: 39.41 | K14: 44.93 | L14: 64.09 | M14: 73.06 | N14: 44.1 | O14: 50.27 | P14: 34.12 | Q14: 38.9 | R14: 439.89 | S14: 501.47 | T14: 302.92 | U14: 345.33 | V14: 39.41 | W14: 44.93 | X14: 307.5 | Y14: 350.55 | Z14: 287.51 | AA14: 327.76 | AB14: 34.12 | AC14: 38.9 | AD14: 10.99 | AE14: 12.53
A15: =$A$2&$A$4&$B$6&$D$3 -> MiCPDPn14N | B15: =$A$1&$A$4&$B$6&$D$3 -> MiCPDPf14N | E15: > 132kV* | F15: 185.19 | G15: 211.12 | H15: 56.11 | I15: 63.97 | J15: 37.14 | K15: 42.34 | L15: 60.4 | M15: 68.86 | N15: 41.57 | O15: 47.39 | P15: 32.16 | Q15: 36.66 | R15: 428.61 | S15: 488.62 | T15: 299.52 | U15: 341.45 | V15: 37.14 | W15: 42.34 | X15: 303.81 | Y15: 346.34 | Z15: 284.98 | AA15: 324.88 | AB15: 32.16 | AC15: 36.66 | AD15: 8.06 | AE15: 9.19
A16: =$A$2&$A$5&$B$3&$D$3 -> MiCPDPn21N | B16: =$A$1&$A$5&$B$3&$D$3 -> MiCPDPf21N | D16: > 600km and ≤ 900km | E16: < 500V | F16: 207.83 | G16: 236.93 | H16: 62.95 | I16: 71.76 | J16: 41.68 | K16: 47.52 | L16: 67.79 | M16: 77.28 | N16: 46.66 | O16: 53.19 | P16: 36.09 | Q16: 41.14 | R16: 451.24 | S16: 514.41 | T16: 306.36 | U16: 349.25 | V16: 41.68 | W16: 47.52 | X16: 311.2 | Y16: 354.77 | Z16: 290.08 | AA16: 330.69 | AB16: 36.09 | AC16: 41.14 | AD16: 21.4 | AE16: 24.4
A17: =$A$2&$A$5&$B$4&$D$3 -> MiCPDPn22N | B17: =$A$1&$A$5&$B$4&$D$3 -> MiCPDPf22N | E17: ≥ 500V & < 66kV | F17: 204.95 | G17: 233.64 | H17: 62.09 | I17: 70.78 | J17: 41.12 | K17: 46.88 | L17: 66.86 | M17: 76.22 | N17: 46.01 | O17: 52.45 | P17: 35.6 | Q17: 40.58 | R17: 448.36 | S17: 511.13 | T17: 305.5 | U17: 348.27 | V17: 41.12 | W17: 46.88 | X17: 310.27 | Y17: 353.71 | Z17: 289.42 | AA17: 329.94 | AB17: 35.6 | AC17: 40.58 | AD17: 19.59 | AE17: 22.33
A18: =$A$2&$A$5&$B$5&$D$3 -> MiCPDPn23N | B18: =$A$1&$A$5&$B$5&$D$3 -> MiCPDPf23N | E18: ≥ 66kV & ≤ 132kV | F18: 198.47 | G18: 226.26 | H18: 60.12 | I18: 68.54 | J18: 39.81 | K18: 45.38 | L18: 64.74 | M18: 73.8 | N18: 44.56 | O18: 50.8 | P18: 34.47 | Q18: 39.3 | R18: 441.88 | S18: 503.74 | T18: 303.53 | U18: 346.02 | V18: 39.81 | W18: 45.38 | X18: 308.15 | Y18: 351.29 | Z18: 287.97 | AA18: 328.29 | AB18: 34.47 | AC18: 39.3 | AD18: 11.04 | AE18: 12.59
A19: =$A$2&$A$5&$B$6&$D$3 -> MiCPDPn24N | B19: =$A$1&$A$5&$B$6&$D$3 -> MiCPDPf24N | E19: > 132kV* | F19: 187.05 | G19: 213.24 | H19: 56.66 | I19: 64.59 | J19: 37.54 | K19: 42.8 | L19: 61.02 | M19: 69.56 | N19: 41.99 | O19: 47.87 | P19: 32.5 | Q19: 37.05 | R19: 430.46 | S19: 490.72 | T19: 300.07 | U19: 342.08 | V19: 37.54 | W19: 42.8 | X19: 304.43 | Y19: 347.05 | Z19: 285.4 | AA19: 325.36 | AB19: 32.5 | AC19: 37.05 | AD19: 8.17 | AE19: 9.31
A20: =$A$2&$A$6&$B$3&$D$3 -> MiCPDPn31N | B20: =$A$1&$A$6&$B$3&$D$3 -> MiCPDPf31N | D20: > 900km | E20: < 500V | F20: 209.92 | G20: 239.31 | H20: 63.6 | I20: 72.5 | J20: 42.12 | K20: 48.02 | L20: 68.48 | M20: 78.07 | N20: 47.13 | O20: 53.73 | P20: 36.48 | Q20: 41.59 | R20: 453.33 | S20: 516.8 | T20: 307.01 | U20: 349.99 | V20: 42.12 | W20: 48.02 | X20: 311.89 | Y20: 355.55 | Z20: 290.54 | AA20: 331.22 | AB20: 36.48 | AC20: 41.59 | AD20: 21.42 | AE20: 24.42
A21: =$A$2&$A$6&$B$4&$D$3 -> MiCPDPn32N | B21: =$A$1&$A$6&$B$4&$D$3 -> MiCPDPf32N | E21: ≥ 500V & < 66kV | F21: 207 | G21: 235.98 | H21: 62.7 | I21: 71.48 | J21: 41.51 | K21: 47.32 | L21: 67.52 | M21: 76.97 | N21: 46.46 | O21: 52.96 | P21: 35.95 | Q21: 40.98 | R21: 450.41 | S21: 513.47 | T21: 306.11 | U21: 348.97 | V21: 41.51 | W21: 47.32 | X21: 310.93 | Y21: 354.46 | Z21: 289.87 | AA21: 330.45 | AB21: 35.95 | AC21: 40.98 | AD21: 19.66 | AE21: 22.41
A22: =$A$2&$A$6&$B$5&$D$3 -> MiCPDPn33N | B22: =$A$1&$A$6&$B$5&$D$3 -> MiCPDPf33N | E22: ≥ 66kV & ≤ 132kV | F22: 200.46 | G22: 228.52 | H22: 60.73 | I22: 69.23 | J22: 40.21 | K22: 45.84 | L22: 65.38 | M22: 74.53 | N22: 45.01 | O22: 51.31 | P22: 34.82 | Q22: 39.69 | R22: 443.87 | S22: 506.01 | T22: 304.14 | U22: 346.72 | V22: 40.21 | W22: 45.84 | X22: 308.79 | Y22: 352.02 | Z22: 288.42 | AA22: 328.8 | AB22: 34.82 | AC22: 39.69 | AD22: 11.09 | AE22: 12.64
A23: =$A$2&$A$6&$B$6&$D$3 -> MiCPDPn34N | B23: =$A$1&$A$6&$B$6&$D$3 -> MiCPDPf34N | E23: > 132kV* | F23: 188.89 | G23: 215.33 | H23: 57.25 | I23: 65.27 | J23: 37.93 | K23: 43.24 | L23: 61.65 | M23: 70.28 | N23: 42.44 | O23: 48.38 | P23: 32.86 | Q23: 37.46 | R23: 432.3 | S23: 492.82 | T23: 300.66 | U23: 342.75 | V23: 37.93 | W23: 43.24 | X23: 305.06 | Y23: 347.77 | Z23: 285.85 | AA23: 325.87 | AB23: 32.86 | AC23: 37.46 | AD23: 8.23 | AE23: 9.38
E24: * 132 kV or Transmission connected
D26: Customer categories | F26: Service charge [R/account/day]* | H26: Administration charge [R/POD/day]*
G28: VAT incl | I28: VAT incl | L28: Ancillary service charge [c/kWh]* | N28: Network demand charge [c/kWh]* [Peak & Standard] | Q28: Urban low voltage subsidy charge [R/kVA/m]*
A29: =$A$2&$A$3&$B$3&$D$3 -> MiCPDPn01N | D29: ≤ 100 kVA | F29: 11.55 | G29: =ROUND(F29 * (1 + VAT), 2) -> 13.17 | H29: 2.54 | I29: =ROUND(H29 * (1 + VAT), 2) -> 2.9 | K29: Voltage | M29: VAT incl | O29: VAT incl | S29: VAT incl
A30: =$A$2&$A$3&$B$3&$D$3 -> MiCPDPn01N | D30: > 100 kVA & ≤ 500 kVA | F30: 52.8 | G30: =ROUND(F30 * (1 + VAT), 2) -> 60.19 | H30: 14.8 | I30: =ROUND(H30 * (1 + VAT), 2) -> 16.87 | K30: < 500V | L30: 0.33 | M30: =ROUND(L30 * (1 + VAT), 2) -> 0.38 | N30: 13.14 | O30: =ROUND(N30 * (1 + VAT), 2) -> 14.98 | Q30: < 500V | R30: 0 | S30: =ROUND(R30 * (1 + VAT), 2) -> 0
A31: =$A$2&$A$3&$B$4&$D$3 -> MiCPDPn02N | D31: > 500 kVA & ≤ 1 MVA | F31: 162.48 | G31: =ROUND(F31 * (1 + VAT), 2) -> 185.23 | H31: 29.41 | I31: =ROUND(H31 * (1 + VAT), 2) -> 33.53 | K31: ≥ 500V & < 66kV | L31: 0.32 | M31: =ROUND(L31 * (1 + VAT), 2) -> 0.36 | N31: 5.51 | O31: =ROUND(N31 * (1 + VAT), 2) -> 6.28 | Q31: ≥ 500V & < 66kV | R31: 0 | S31: =ROUND(R31 * (1 + VAT), 2) -> 0
A32: =$A$2&$A$3&$B$5&$D$3 -> MiCPDPn03N | D32: > 1 MVA | F32: 162.48 | G32: =ROUND(F32 * (1 + VAT), 2) -> 185.23 | H32: 73.23 | I32: =ROUND(H32 * (1 + VAT), 2) -> 83.48 | K32: ≥ 66kV & ≤ 132kV | L32: 0.3 | M32: =ROUND(L32 * (1 + VAT), 2) -> 0.34 | N32: 1.92 | O32: =ROUND(N32 * (1 + VAT), 2) -> 2.19 | Q32: ≥ 66kV & ≤ 132kV | R32: 11.43 | S32: =ROUND(R32 * (1 + VAT), 2) -> 13.03
A33: =$A$2&$A$3&$B$6&$D$3 -> MiCPDPn04N | D33: Key customers | F33: 3183.88 | G33: =ROUND(F33 * (1 + VAT), 2) -> 3629.62 | H33: 101.68 | I33: =ROUND(H33 * (1 + VAT), 2) -> 115.92 | K33: > 132kV / Transmission connected | L33: 0.28 | M33: =ROUND(L33 * (1 + VAT), 2) -> 0.32 | N33: 0 | O33: =ROUND(N33 * (1 + VAT), 2) -> 0 | Q33: > 132kV / Transmission connected | R33: 11.43 | S33: =ROUND(R33 * (1 + VAT), 2) -> 13.03
D36: Electrification and rural network subsidy charge [c/kWh]* | F36: Affordability subsidy charge [c/kWh] payable by non-local authority tariffs* | K36: Reactive energy charge [c/kVArh]*
D38: All seasons | F38: All seasons | K38: High season | M38: Low season
E39: VAT incl | G39: VAT incl | L39: VAT incl | N39: VAT incl
A40: =$A$2&$A$3&$B$3&$D$3 -> MiCPDPn01N | D40: 6.33 | E40: =ROUND(D40 * (1 + VAT), 2) -> 7.22 | F40: 2.44 | G40: =ROUND(F40 * (1 + VAT), 2) -> 2.78 | K40: 4.99 | L40: =ROUND(K40 * (1 + VAT), 2) -> 5.69 | M40: 0 | N40: =ROUND(M40 * (1 + VAT), 2) -> 0
D44: *These charges are the same as the standard tariff and remain unchanged.

Sheet Nightsave Small CPD
A1: NSCPDPF
A2: NSCPDPn | D2: Nightsave Urban Small Critical Peak Day tariff | R2: Non-local authority
A3: 0 | B3: 1 | E3: N
A4: 1 | B4: 2 | F4: Active energy charge [c/kWh] NON-CRITICAL PEAK DAY rates for 348 NORMAL days | J4: Active energy charge [c/kWh] CRITICAL PEAK DAY rates for 17 CRITICAL PEAK days | N4: Energy demand charge [R/kVA/m]* | R4: Transmission network charges [R/kVA/m]*
A5: 2 | B5: 3 | D5: Transmission zone | F5: High demand season [Jun - Aug] | H5: Low demand season [Sep - May] | J5: High demand season [Jun - Aug] | L5: Low demand season [Sep - May] | N5: High demand season [Jun - Aug] | P5: Low demand season [Sep - May]
A6: 3 | B6: 4 | E6: Voltage
G7: VAT incl | I7: VAT incl | K7: VAT incl | M7: VAT incl | O7: VAT incl | Q7: VAT incl | S7: VAT incl
A8: =$A$2&$A$3&$B$3&$E$3 -> NSCPDPn01N | B8: =$A$1&$A$3&$B$3&$E$3 -> NSCPDPF01N | D8: ≤ 300km | E8: < 500V | F8: 51.67 | G8: =ROUND(F8 * (1 + VAT), 2) -> 58.9 | H8: 40.17 | I8: =ROUND(H8 * (1 + VAT), 2) -> 45.79 | J8: 295.08 | K8: =ROUND(J8 * (1 + VAT), 2) -> 336.39 | L8: 283.58 | M8: =ROUND(L8 * (1 + VAT), 2) -> 323.28 | N8: 131.39 | O8: =ROUND(N8 * (1 + VAT), 2) -> 149.78 | P8: 16.93 | Q8: =ROUND(P8 * (1 + VAT), 2) -> 19.3 | R8: 7.12 | S8: =ROUND(R8 * (1 + VAT), 2) -> 8.12
A9: =$A$2&$A$3&$B$4&$E$3 -> NSCPDPn02N | B9: =$A$1&$A$3&$B$4&$E$3 -> NSCPDPF02N | E9: ≥ 500V & < 66kV | F9: 48.93 | G9: 55.78 | H9: 38.19 | I9: 43.54 | J9: 292.34 | K9: 333.27 | L9: 281.6 | M9: 321.02 | N9: 127.16 | O9: 144.96 | P9: 16.36 | Q9: 18.65 | R9: 6.51 | S9: 7.42
A10: =$A$2&$A$3&$B$5&$E$3 -> NSCPDPn03N | B10: =$A$1&$A$3&$B$5&$E$3 -> NSCPDPF03N | E10: ≥ 66kV & ≤ 132kV | F10: 48.57 | G10: 55.37 | H10: 37.73 | I10: 43.01 | J10: 291.98 | K10: 332.86 | L10: 281.14 | M10: 320.5 | N10: 122.48 | O10: 139.63 | P10: 15.75 | Q10: 17.96 | R10: 6.34 | S10: 7.23
A11: =$A$2&$A$3&$B$6&$E$3 -> NSCPDPn04N | B11: =$A$1&$A$3&$B$6&$E$3 -> NSCPDPF04N | E11: > 132kV* | F11: 45.44 | G11: 51.8 | H11: 35.34 | I11: 40.29 | J11: 288.85 | K11: 329.29 | L11: 278.75 | M11: 317.78 | N11: 118.2 | O11: 134.75 | P11: 15.2 | Q11: 17.33 | R11: 8.01 | S11: 9.13
A12: =$A$2&$A$4&$B$3&$E$3 -> NSCPDPn11N | B12: =$A$1&$A$4&$B$3&$E$3 -> NSCPDPF11N | D12: > 300km and ≤ 600km | E12: < 500V | F12: 52.36 | G12: 59.69 | H12: 40.6 | I12: 46.28 | J12: 295.77 | K12: 337.18 | L12: 284.01 | M12: 323.77 | N12: 132.73 | O12: 151.31 | P12: 17.07 | Q12: 19.46 | R12: 7.18 | S12: 8.19
A13: =$A$2&$A$4&$B$4&$E$3 -> NSCPDPn12N | B13: =$A$1&$A$4&$B$4&$E$3 -> NSCPDPF12N | E13: ≥ 500V & < 66kV | F13: 49.96 | G13: 56.95 | H13: 38.97 | I13: 44.43 | J13: 293.37 | K13: 334.44 | L13: 282.38 | M13: 321.91 | N13: 128.44 | O13: 146.42 | P13: 16.52 | Q13: 18.83 | R13: 6.57 | S13: 7.49
A14: =$A$2&$A$4&$B$5&$E$3 -> NSCPDPn13N | B14: =$A$1&$A$4&$B$5&$E$3 -> NSCPDPF13N | E14: ≥ 66kV & ≤ 132kV | F14: 49.58 | G14: 56.52 | H14: 38.49 | I14: 43.88 | J14: 292.99 | K14: 334.01 | L14: 281.91 | M14: 321.38 | N14: 123.74 | O14: 141.06 | P14: 15.92 | Q14: 18.15 | R14: 6.39 | S14: 7.28
A15: =$A$2&$A$4&$B$6&$E$3 -> NSCPDPn14N | B15: =$A$1&$A$4&$B$6&$E$3 -> NSCPDPF14N | E15: > 132kV* | F15: 46.38 | G15: 52.87 | H15: 36.05 | I15: 41.1 | J15: 289.79 | K15: 330.36 | L15: 279.46 | M15: 318.58 | N15: 119.38 | O15: 136.09 | P15: 15.36 | Q15: 17.51 | R15: 8.09 | S15: 9.22
A16: =$A$2&$A$5&$B$3&$E$3 -> NSCPDPn21N | B16: =$A$1&$A$5&$B$3&$E$3 -> NSCPDPF21N | D16: > 600km and ≤ 900km | E16: < 500V | F16: 52.85 | G16: 60.25 | H16: 41.01 | I16: 46.75 | J16: 296.26 | K16: 337.74 | L16: 284.42 | M16: 324.24 | N16: 134.03 | O16: 152.79 | P16: 17.23 | Q16: 19.64 | R16: 7.27 | S16: 8.29
A17: =$A$2&$A$5&$B$4&$E$3 -> NSCPDPn22N | B17: =$A$1&$A$5&$B$4&$E$3 -> NSCPDPF22N | E17: ≥ 500V & < 66kV | F17: 50.45 | G17: 57.51 | H17: 39.36 | I17: 44.87 | J17: 293.86 | K17: 335 | L17: 282.77 | M17: 322.36 | N17: 129.75 | O17: 147.92 | P17: 16.69 | Q17: 19.03 | R17: 6.63 | S17: 7.56
A18: =$A$2&$A$5&$B$5&$E$3 -> NSCPDPn23N | B18: =$A$1&$A$5&$B$5&$E$3 -> NSCPDPF23N | E18: ≥ 66kV & ≤ 132kV | F18: 50.08 | G18: 57.09 | H18: 38.89 | I18: 44.33 | J18: 293.49 | K18: 334.58 | L18: 282.3 | M18: 321.82 | N18: 124.98 | O18: 142.48 | P18: 16.08 | Q18: 18.33 | R18: 6.43 | S18: 7.33
A19: =$A$2&$A$5&$B$6&$E$3 -> NSCPDPn24N | B19: =$A$1&$A$5&$B$6&$E$3 -> NSCPDPF24N | E19: > 132kV* | F19: 46.85 | G19: 53.41 | H19: 36.42 | I19: 41.52 | J19: 290.26 | K19: 330.9 | L19: 279.83 | M19: 319.01 | N19: 120.56 | O19: 137.44 | P19: 15.51 | Q19: 17.68 | R19: 8.2 | S19: 9.35
A20: =$A$2&$A$6&$B$3&$E$3 -> NSCPDPn31N | B20: =$A$1&$A$6&$B$3&$E$3 -> NSCPDPF31N | D20: > 900km | E20: < 500V | F20: 53.42 | G20: 60.9 | H20: 41.42 | I20: 47.22 | J20: 296.83 | K20: 338.39 | L20: 284.84 | M20: 324.72 | N20: 135.4 | O20: 154.36 | P20: 17.41 | Q20: 19.85 | R20: 7.29 | S20: 8.31
A21: =$A$2&$A$6&$B$4&$E$3 -> NSCPDPn32N | B21: =$A$1&$A$6&$B$4&$E$3 -> NSCPDPF32N | E21: ≥ 500V & < 66kV | F21: 50.95 | G21: 58.08 | H21: 39.75 | I21: 45.32 | J21: 294.36 | K21: 335.57 | L21: 283.16 | M21: 322.8 | N21: 131.02 | O21: 149.36 | P21: 16.86 | Q21: 19.22 | R21: 6.71 | S21: 7.65
A22: =$A$2&$A$6&$B$5&$E$3 -> NSCPDPn33N | B22: =$A$1&$A$6&$B$5&$E$3 -> NSCPDPF33N | E22: ≥ 66kV & ≤ 132kV | F22: 50.59 | G22: 57.67 | H22: 39.27 | I22: 44.77 | J22: 294 | K22: 335.16 | L22: 282.68 | M22: 322.26 | N22: 126.26 | O22: 143.94 | P22: 16.25 | Q22: 18.53 | R22: 6.48 | S22: 7.39
A23: =$A$2&$A$6&$B$6&$E$3 -> NSCPDPn34N | B23: =$A$1&$A$6&$B$6&$E$3 -> NSCPDPF34N | E23: > 132kV* | F23: 47.34 | G23: 53.97 | H23: 36.82 | I23: 41.97 | J23: 290.75 | K23: 331.46 | L23: 280.23 | M23: 319.46 | N23: 121.82 | O23: 138.87 | P23: 15.69 | Q23: 17.89 | R23: 8.26 | S23: 9.42
E24: * 132 kV or Transmission connected
D26: Distribution network charges*
F27: Network capacity charge* [R/kVA/m] | H27: Network demand charge* [R/kVA/m] | J27: Urban low voltage subsidy charge [R/kVA/m]*
N28: Ancillary service charge [c/kWh]*
D29: Voltage | G29: VAT incl | I29: VAT incl | K29: VAT incl | M29: Voltage | O29: VAT incl
A30: =$A$2&$A$3&$B$3&$E$3 -> NSCPDPn01N | D30: < 500V | F30: 14.15 | G30: =ROUND(F30 * (1 + VAT), 2) -> 16.13 | H30: 26.83 | I30: =ROUND(H30 * (1 + VAT), 2) -> 30.59 | J30: 0 | K30: =ROUND(J30 * (1 + VAT), 2) -> 0 | M30: < 500V | N30: 0.33 | O30: =ROUND(N30 * (1 + VAT), 2) -> 0.38
A31: =$A$2&$A$3&$B$4&$E$3 -> NSCPDPn02N | D31: ≥ 500V & < 66kV | F31: 12.98 | G31: =ROUND(F31 * (1 + VAT), 2) -> 14.8 | H31: 24.62 | I31: =ROUND(H31 * (1 + VAT), 2) -> 28.07 | J31: 0 | K31: =ROUND(J31 * (1 + VAT), 2) -> 0 | M31: ≥ 500V & < 66kV | N31: 0.32 | O31: =ROUND(N31 * (1 + VAT), 2) -> 0.36
A32: =$A$2&$A$3&$B$5&$E$3 -> NSCPDPn03N | D32: ≥ 66kV & ≤ 132kV | F32: 4.63 | G32: =ROUND(F32 * (1 + VAT), 2) -> 5.28 | H32: 8.58 | I32: =ROUND(H32 * (1 + VAT), 2) -> 9.78 | J32: 11.43 | K32: =ROUND(J32 * (1 + VAT), 2) -> 13.03 | M32: ≥ 66kV & ≤ 132kV | N32: 0.3 | O32: =ROUND(N32 * (1 + VAT), 2) -> 0.34
A33: =$A$2&$A$3&$B$6&$E$3 -> NSCPDPn04N | D33: > 132kV / Transmission connected | F33: 0 | G33: =ROUND(F33 * (1 + VAT), 2) -> 0 | H33: 0 | I33: =ROUND(H33 * (1 + VAT), 2) -> 0 | J33: 11.43 | K33: =ROUND(J33 * (1 + VAT), 2) -> 13.03 | M33: > 132kV / Transmission connected | N33: 0.28 | O33: =ROUND(N33 * (1 + VAT), 2) -> 0.32
D36: Customer categories | E36: Service charge [R/account/day]* | G36: Administration charge [R/POD/day]*
F38: VAT incl | H38: VAT incl
A39: =$A$2&$A$3&$B$3&$E$3 -> NSCPDPn01N | D39: ≤ 100 kVA | E39: 11.55 | F39: =ROUND(E39 * (1 + VAT), 2) -> 13.17 | G39: 2.54 | H39: =ROUND(G39 * (1 + VAT), 2) -> 2.9
A40: =$A$2&$A$3&$B$4&$E$3 -> NSCPDPn02N | D40: > 100 kVA & ≤ 500 kVA | E40: 52.8 | F40: =ROUND(E40 * (1 + VAT), 2) -> 60.19 | G40: 14.8 | H40: =ROUND(G40 * (1 + VAT), 2) -> 16.87
A41: =$A$2&$A$3&$B$5&$E$3 -> NSCPDPn03N | D41: > 500 kVA & ≤ 1 MVA | E41: 162.48 | F41: =ROUND(E41 * (1 + VAT), 2) -> 185.23 | G41: 29.41 | H41: =ROUND(G41 * (1 + VAT), 2) -> 33.53
A42: =$A$2&$A$3&$B$6&$E$3 -> NSCPDPn04N | D42: Key customers | E42: 3183.88 | F42: =ROUND(E42 * (1 + VAT), 2) -> 3629.62 | G42: 101.68 | H42: =ROUND(G42 * (1 + VAT), 2) -> 115.92
D44: Electrification and rural network subsidy charge [c/kWh]* | F44: Affordability subsidy charge [c/kWh] payable by non-local authority tariffs*
F46: All seasons
E47: VAT incl | G47: VAT incl
A48: =$A$2&$A$3&$B$3&$E$3 -> NSCPDPn01N | D48: 6.33 | E48: =ROUND(D48 * (1 + VAT), 2) -> 7.22 | F48: 2.44 | G48: =ROUND(F48 * (1 + VAT), 2) -> 2.78
D51: *These charges are the same as the standard tariff and remain unchanged.

Sheet Ruraflex CPD
A1: RuCPDPF | C1: Back to menu
A2: RuCPDPn | D2: Ruraflex Critical Peak Day tariff | P2: Non-local authority
A3: 0 | B3: 1 | E3: N
A4: 1 | B4: 2 | F4: Active energy charge [c/kWh] NON-CRITICAL PEAK DAY rates for 348 NORMAL days | R4: Active energy charge [c/kWh] CRITICAL PEAK DAY rates for 17 CRITICAL PEAK days | AD4: Network capacity charges [R/kVA/m]*
A5: 2 | B5: 3 | D5: Transmission zone | F5: High demand season [Jun - Aug] | L5: Low demand season [Sep - May] | R5: High demand season [Jun - Aug] | X5: Low demand season [Sep - May]
A6: 3 | B6: 4 | E6: Voltage | F6: Peak | H6: Standard | J6: Off Peak | L6: Peak | N6: Standard | P6: Off Peak | R6: Peak | T6: Standard | V6: Off Peak | X6: Peak | Z6: Standard | AB6: Off Peak
G7: VAT incl | I7: VAT incl | K7: VAT incl | M7: VAT incl | O7: VAT incl | Q7: VAT incl | S7: VAT incl | U7: VAT incl | W7: VAT incl | Y7: VAT incl | AA7: VAT incl | AC7: VAT incl | AE7: VAT incl
A8: =$A$2&$A$3&$B$3&$E$3 -> RuCPDPn01N | B8: =$A$1&$A$3&$B$3&$E$3 -> RuCPDPF01N | D8: ≤ 300km | E8: < 500V | F8: 209.9 | G8: =ROUND(F8 * (1 + VAT), 2) -> 239.29 | H8: 63.59 | I8: =ROUND(H8 * (1 + VAT), 2) -> 72.49 | J8: 42.41 | K8: =ROUND(J8 * (1 + VAT), 2) -> 48.35 | L8: 68.47 | M8: =ROUND(L8 * (1 + VAT), 2) -> 78.06 | N8: 47.13 | O8: =ROUND(N8 * (1 + VAT), 2) -> 53.73 | P8: 36.71 | Q8: =ROUND(P8 * (1 + VAT), 2) -> 41.85 | R8: 453.31 | S8: =ROUND(R8 * (1 + VAT), 2) -> 516.77 | T8: 307 | U8: =ROUND(T8 * (1 + VAT), 2) -> 349.98 | V8: 42.41 | W8: =ROUND(V8 * (1 + VAT), 2) -> 48.35 | X8: 311.88 | Y8: =ROUND(X8 * (1 + VAT), 2) -> 355.54 | Z8: 290.54 | AA8: =ROUND(Z8 * (1 + VAT), 2) -> 331.22 | AB8: 36.71 | AC8: =ROUND(AB8 * (1 + VAT), 2) -> 41.85 | AD8: 14.88 | AE8: =ROUND(AD8 * (1 + VAT), 2) -> 16.96
A9: =$A$2&$A$3&$B$4&$E$3 -> RuCPDPn02N | B9: =$A$1&$A$3&$B$4&$E$3 -> RuCPDPF02N | E9: ≥ 500V & ≤ 22kV | F9: 207.81 | G9: 236.9 | H9: 62.96 | I9: 71.77 | J9: 41.98 | K9: 47.86 | L9: 67.79 | M9: 77.28 | N9: 46.64 | O9: 53.17 | P9: 36.34 | Q9: 41.43 | R9: 451.22 | S9: 514.39 | T9: 306.37 | U9: 349.26 | V9: 41.98 | W9: 47.86 | X9: 311.2 | Y9: 354.77 | Z9: 290.05 | AA9: 330.66 | AB9: 36.34 | AC9: 41.43 | AD9: 13.64 | AE9: 15.55
A10: =$A$2&$A$3&$B$5&$E$3 -> RuCPDPn03N | B10: =$A$1&$A$3&$B$5&$E$3 -> RuCPDPF03N | F10: 0 | H10: 0 | J10: 0 | L10: 0 | N10: 0 | P10: 0 | R10: 0 | T10: 0 | V10: 0 | X10: 0 | Z10: 0 | AB10: 0 | AD10: 0
A11: =$A$2&$A$3&$B$6&$E$3 -> RuCPDPn04N | B11: =$A$1&$A$3&$B$6&$E$3 -> RuCPDPF04N | F11: 0 | H11: 0 | J11: 0 | L11: 0 | N11: 0 | P11: 0 | R11: 0 | T11: 0 | V11: 0 | X11: 0 | Z11: 0 | AB11: 0 | AD11: 0
A12: =$A$2&$A$4&$B$3&$E$3 -> RuCPDPn11N | B12: =$A$1&$A$4&$B$3&$E$3 -> RuCPDPF11N | D12: > 300km and ≤ 600km | E12: < 500V | F12: 211.99 | G12: 241.67 | H12: 64.22 | I12: 73.21 | J12: 42.83 | K12: 48.83 | L12: 69.15 | M12: 78.83 | N12: 47.6 | O12: 54.26 | P12: 37.09 | Q12: 42.28 | R12: 455.4 | S12: =ROUND(R12 * (1 + VAT), 2) -> 519.16 | T12: 307.63 | U12: =ROUND(T12 * (1 + VAT), 2) -> 350.7 | V12: 42.83 | W12: =ROUND(V12 * (1 + VAT), 2) -> 48.83 | X12: 312.56 | Y12: =ROUND(X12 * (1 + VAT), 2) -> 356.32 | Z12: 291.01 | AA12: =ROUND(Z12 * (1 + VAT), 2) -> 331.75 | AB12: 37.09 | AC12: =ROUND(AB12 * (1 + VAT), 2) -> 42.28 | AD12: 14.93 | AE12: 17.02
A13: =$A$2&$A$4&$B$4&$E$3 -> RuCPDPn12N | B13: =$A$1&$A$4&$B$4&$E$3 -> RuCPDPF12N | E13: ≥ 500V & ≤ 22kV | F13: 209.89 | G13: 239.27 | H13: 63.58 | I13: 72.48 | J13: 42.41 | K13: 48.35 | L13: 68.47 | M13: 78.06 | N13: 47.12 | O13: 53.72 | P13: 36.71 | Q13: 41.85 | R13: 453.3 | S13: 516.76 | T13: 306.99 | U13: 349.97 | V13: 42.41 | W13: 48.35 | X13: 311.88 | Y13: 355.54 | Z13: 290.53 | AA13: 331.2 | AB13: 36.71 | AC13: 41.85 | AD13: 13.73 | AE13: 15.65
A14: =$A$2&$A$4&$B$5&$E$3 -> RuCPDPn13N | B14: =$A$1&$A$4&$B$5&$E$3 -> RuCPDPF13N | F14: 0 | H14: 0 | J14: 0 | L14: 0 | N14: 0 | P14: 0 | R14: 0 | T14: 0 | V14: 0 | X14: 0 | Z14: 0 | AB14: 0 | AD14: 0
A15: =$A$2&$A$4&$B$6&$E$3 -> RuCPDPn14N | B15: =$A$1&$A$4&$B$6&$E$3 -> RuCPDPF14N | F15: 0 | H15: 0 | J15: 0 | L15: 0 | N15: 0 | P15: 0 | R15: 0 | T15: 0 | V15: 0 | X15: 0 | Z15: 0 | AB15: 0 | AD15: 0
A16: =$A$2&$A$5&$B$3&$E$3 -> RuCPDPn21N | B16: =$A$1&$A$5&$B$3&$E$3 -> RuCPDPF21N | D16: > 600km and ≤ 900km | E16: < 500V | F16: 214.11 | G16: 244.09 | H16: 64.86 | I16: 73.94 | J16: 43.25 | K16: 49.31 | L16: 69.85 | M16: 79.63 | N16: 48.06 | O16: 54.79 | P16: 37.46 | Q16: 42.7 | R16: 457.52 | S16: =ROUND(R16 * (1 + VAT), 2) -> 521.57 | T16: 308.27 | U16: =ROUND(T16 * (1 + VAT), 2) -> 351.43 | V16: 43.25 | W16: =ROUND(V16 * (1 + VAT), 2) -> 49.31 | X16: 313.26 | Y16: =ROUND(X16 * (1 + VAT), 2) -> 357.12 | Z16: 291.47 | AA16: =ROUND(Z16 * (1 + VAT), 2) -> 332.28 | AB16: 37.46 | AC16: =ROUND(AB16 * (1 + VAT), 2) -> 42.7 | AD16: 15.01 | AE16: 17.11
A17: =$A$2&$A$5&$B$4&$E$3 -> RuCPDPn22N | B17: =$A$1&$A$5&$B$4&$E$3 -> RuCPDPF22N | E17: ≥ 500V & ≤ 22kV | F17: 211.98 | G17: 241.66 | H17: 64.21 | I17: 73.2 | J17: 42.83 | K17: 48.83 | L17: 69.15 | M17: 78.83 | N17: 47.6 | O17: 54.26 | P17: 37.09 | Q17: 42.28 | R17: 455.39 | S17: 519.14 | T17: 307.62 | U17: 350.69 | V17: 42.83 | W17: 48.83 | X17: 312.56 | Y17: 356.32 | Z17: 291.01 | AA17: 331.75 | AB17: 37.09 | AC17: 42.28 | AD17: 13.78 | AE17: 15.71
A18: =$A$2&$A$5&$B$5&$E$3 -> RuCPDPn23N | B18: =$A$1&$A$5&$B$5&$E$3 -> RuCPDPF23N | F18: 0 | H18: 0 | J18: 0 | L18: 0 | N18: 0 | P18: 0 | R18: 0 | T18: 0 | V18: 0 | X18: 0 | Z18: 0 | AB18: 0 | AD18: 0
A19: =$A$2&$A$5&$B$6&$E$3 -> RuCPDPn24N | B19: =$A$1&$A$5&$B$6&$E$3 -> RuCPDPF24N | F19: 0 | H19: 0 | J19: 0 | L19: 0 | N19: 0 | P19: 0 | R19: 0 | T19: 0 | V19: 0 | X19: 0 | Z19: 0 | AB19: 0 | AD19: 0
A20: =$A$2&$A$6&$B$3&$E$3 -> RuCPDPn31N | B20: =$A$1&$A$6&$B$3&$E$3 -> RuCPDPF31N | D20: > 900km | E20: < 500V | F20: 216.24 | G20: 246.51 | H20: 65.52 | I20: 74.69 | J20: 43.68 | K20: 49.8 | L20: 70.54 | M20: 80.42 | N20: 48.55 | O20: 55.35 | P20: 37.83 | Q20: 43.13 | R20: 459.65 | S20: =ROUND(R20 * (1 + VAT), 2) -> 524 | T20: 308.93 | U20: =ROUND(T20 * (1 + VAT), 2) -> 352.18 | V20: 43.68 | W20: =ROUND(V20 * (1 + VAT), 2) -> 49.8 | X20: 313.95 | Y20: =ROUND(X20 * (1 + VAT), 2) -> 357.9 | Z20: 291.96 | AA20: =ROUND(Z20 * (1 + VAT), 2) -> 332.83 | AB20: 37.83 | AC20: =ROUND(AB20 * (1 + VAT), 2) -> 43.13 | AD20: 15.07 | AE20: 17.18
A21: =$A$2&$A$6&$B$4&$E$3 -> RuCPDPn32N | B21: =$A$1&$A$6&$B$4&$E$3 -> RuCPDPF32N | E21: ≥ 500V & ≤ 22kV | F21: 214.1 | G21: 244.07 | H21: 64.86 | I21: 73.94 | J21: 43.25 | K21: 49.31 | L21: 69.85 | M21: 79.63 | N21: 48.06 | O21: 54.79 | P21: 37.46 | Q21: 42.7 | R21: 457.51 | S21: 521.56 | T21: 308.27 | U21: 351.43 | V21: 43.25 | W21: 49.31 | X21: 313.26 | Y21: 357.12 | Z21: 291.47 | AA21: 332.28 | AB21: 37.46 | AC21: 42.7 | AD21: 13.79 | AE21: 15.72
A22: =$A$2&$A$6&$B$5&$E$3 -> RuCPDPn33N | B22: =$A$1&$A$6&$B$5&$E$3 -> RuCPDPF33N | F22: 0 | H22: 0 | J22: 0 | L22: 0 | N22: 0 | P22: 0 | R22: 0 | T22: 0 | V22: 0 | X22: 0 | Z22: 0 | AB22: 0 | AD22: 0
A23: =$A$2&$A$6&$B$6&$E$3 -> RuCPDPn34N | B23: =$A$1&$A$6&$B$6&$E$3 -> RuCPDPF34N | F23: 0 | H23: 0 | J23: 0 | L23: 0 | N23: 0 | P23: 0 | R23: 0 | T23: 0 | V23: 0 | X23: 0 | Z23: 0 | AB23: 0 | AD23: 0
D26: Customer categories | F26: Service charge [R/account/day]* | H26: Administration charge [R/POD/day]* | M26: Ancillary service charge [c/kWh]* | O26: Network demand charge [c/kWh]* [All time of use periods]
K27: Voltage | N27: VAT incl | P27: VAT incl
A28: =$A$2&$A$3&$B$3&$E$3 -> RuCPDPn01N | G28: VAT incl | I28: VAT incl | K28: < 500V | M28: 0.33 | N28: =ROUND(M28 * (1 + VAT), 2) -> 0.38 | O28: 21.19 | P28: =ROUND(O28 * (1 + VAT), 2) -> 24.16
A29: =$A$2&$A$3&$B$4&$E$3 -> RuCPDPn02N | D29: ≤ 100 kVA | F29: 14.64 | G29: =ROUND(F29 * (1 + VAT), 2) -> 16.69 | H29: 4.16 | I29: =ROUND(H29 * (1 + VAT), 2) -> 4.74 | K29: ≥ 500V & < 22kV | M29: 0.33 | N29: =ROUND(M29 * (1 + VAT), 2) -> 0.38 | O29: 18.57 | P29: =ROUND(O29 * (1 + VAT), 2) -> 21.17
A30: =$A$2&$A$3&$B$4&$E$3 -> RuCPDPn02N | D30: > 100 kVA & ≤ 500 kVA | F30: 49.94 | G30: =ROUND(F30 * (1 + VAT), 2) -> 56.93 | H30: 23.15 | I30: =ROUND(H30 * (1 + VAT), 2) -> 26.39
A31: RuCPDPn02N | D31: > 500 kVA & ≤ 1 MVA | F31: 153.63 | G31: =ROUND(F31 * (1 + VAT), 2) -> 175.14 | H31: 35.53 | I31: =ROUND(H31 * (1 + VAT), 2) -> 40.5 | K31: Reactive energy charge [c/kVArh]*
A32: RuCPDPn02N | D32: > 1 MVA | F32: 153.63 | G32: =ROUND(F32 * (1 + VAT), 2) -> 175.14 | H32: 65.93 | I32: =ROUND(H32 * (1 + VAT), 2) -> 75.16 | K32: High season | M32: Low season
A33: RuCPDPn02N | D33: Key customers | F33: 3010.96 | G33: =ROUND(F33 * (1 + VAT), 2) -> 3432.49 | H33: 65.93 | I33: =ROUND(H33 * (1 + VAT), 2) -> 75.16 | L33: VAT incl | N33: VAT incl
A34: =$A$2&$A$3&$B$3&$E$3 -> RuCPDPn01N | K34: 7.16 | L34: =ROUND(K34 * (1 + VAT), 2) -> 8.16 | M34: 0 | N34: =ROUND(M34 * (1 + VAT), 2) -> 0
C36: *These charges are the same as the standard tariff and remain unchanged.

Sheet Nightsave Rural CPD
A1: NRCPDPF | C1: Back to menu
A2: NRCPDPn | D2: Nightsave Rural Critical Peak Day tariff | R2: Non-local authority | AF2: =SUM(#REF!,#REF!,#REF!,#REF!,#REF!,#REF!,#REF!,#REF!,#REF!,#REF!,#REF!,#REF!,#REF!,#REF!,#REF!) ->  | AG2: check value
A3: 0 | B3: 1 | E3: N
A4: 1 | B4: 2 | F4: Active energy charge [c/kWh] NON-CRITICAL PEAK DAY rates for 348 NORMAL days | J4: Active energy charge [c/kWh] CRITICAL PEAK DAY rates for 17 CRITICAL PEAK days | N4: Energy demand charges [R/kVA/m]* | R4: Network capacity charges [R/kVA/m]*
A5: 2 | B5: 3 | D5: Transmission zone | F5: High demand season [Jun - Aug] | H5: Low demand season [Sep - May] | J5: High demand season [Jun - Aug] | L5: Low demand season [Sep - May] | N5: High demand season [Jun - Aug] | P5: Low demand season [Sep - May]
A6: 3 | B6: 4 | E6: Voltage
G7: VAT incl | I7: VAT incl | K7: VAT incl | M7: VAT incl | O7: VAT incl | Q7: VAT incl | S7: VAT incl
A8: =$A$2&$A$3&$B$3&$E$3 -> NRCPDPn01N | B8: =$A$1&$A$3&$B$3&$E$3 -> NRCPDPF01N | D8: ≤ 300km | E8: < 500V | F8: 53.14 | G8: =ROUND(F8 * (1 + VAT), 2) -> 60.58 | H8: 41.3 | I8: =ROUND(H8 * (1 + VAT), 2) -> 47.08 | J8: 296.56 | K8: =ROUND(J8 * (1 + VAT), 2) -> 338.08 | L8: 284.71 | M8: =ROUND(L8 * (1 + VAT), 2) -> 324.57 | N8: 210.66 | O8: =ROUND(N8 * (1 + VAT), 2) -> 240.15 | P8: 111.5 | Q8: =ROUND(P8 * (1 + VAT), 2) -> 127.11 | R8: 10.65 | S8: =ROUND(R8 * (1 + VAT), 2) -> 12.14
A9: =$A$2&$A$3&$B$4&$E$3 -> NRCPDPn02N | B9: =$A$1&$A$3&$B$4&$E$3 -> NRCPDPF02N | E9: ≥ 500V & ≤ 22kV | F9: 52.52 | G9: 59.87 | H9: 40.84 | I9: 46.56 | J9: 295.94 | K9: 337.37 | L9: 284.25 | M9: 324.05 | N9: 204.13 | O9: 232.71 | P9: 107.53 | Q9: 122.58 | R9: 9.78 | S9: 11.15
A10: =$A$2&$A$3&$B$5&$E$3 -> NRCPDPn03N | B10: =$A$1&$A$3&$B$5&$E$3 -> NRCPDPF03N | F10: 0 | H10: 0 | J10: 0 | L10: 0 | N10: 0 | P10: 0 | R10: 0
A11: =$A$2&$A$3&$B$6&$E$3 -> NRCPDPn04N | B11: =$A$1&$A$3&$B$6&$E$3 -> NRCPDPF04N | F11: 0 | H11: 0 | J11: 0 | L11: 0 | N11: 0 | P11: 0 | R11: 0
A12: =$A$2&$A$4&$B$3&$E$3 -> NRCPDPn11N | B12: =$A$1&$A$4&$B$3&$E$3 -> NRCPDPF11N | D12: > 300km and ≤ 600km | E12: < 500V | F12: 53.67 | G12: 61.18 | H12: 41.71 | I12: 47.55 | J12: 297.08 | K12: =ROUND(J12 * (1 + VAT), 2) -> 338.67 | L12: 285.12 | M12: =ROUND(L12 * (1 + VAT), 2) -> 325.04 | N12: 213.2 | O12: 243.05 | P12: 113.04 | Q12: 128.87 | R12: 10.68 | S12: 12.18
A13: =$A$2&$A$4&$B$4&$E$3 -> NRCPDPn12N | B13: =$A$1&$A$4&$B$4&$E$3 -> NRCPDPF12N | E13: ≥ 500V & ≤ 22kV | F13: 53.05 | G13: 60.48 | H13: 41.24 | I13: 47.01 | J13: 296.46 | K13: 337.96 | L13: 284.65 | M13: 324.5 | N13: 206.63 | O13: 235.56 | P13: 109.03 | Q13: 124.29 | R13: 9.83 | S13: 11.21
A14: =$A$2&$A$4&$B$5&$E$3 -> NRCPDPn13N | B14: =$A$1&$A$4&$B$5&$E$3 -> NRCPDPF13N | F14: 0 | H14: 0 | J14: 0 | L14: 0 | N14: 0 | P14: 0 | R14: 0
A15: =$A$2&$A$4&$B$6&$E$3 -> NRCPDPn14N | B15: =$A$1&$A$4&$B$6&$E$3 -> NRCPDPF14N | F15: 0 | H15: 0 | J15: 0 | L15: 0 | N15: 0 | P15: 0 | R15: 0
A16: =$A$2&$A$5&$B$3&$E$3 -> NRCPDPn21N | B16: =$A$1&$A$5&$B$3&$E$3 -> NRCPDPF21N | D16: > 600km and ≤ 900km | E16: < 500V | F16: 54.2 | G16: 61.79 | H16: 42.12 | I16: 48.02 | J16: 297.61 | K16: =ROUND(J16 * (1 + VAT), 2) -> 339.28 | L16: 285.53 | M16: =ROUND(L16 * (1 + VAT), 2) -> 325.5 | N16: 215.76 | O16: 245.97 | P16: 114.56 | Q16: 130.6 | R16: 10.78 | S16: 12.29
A17: =$A$2&$A$5&$B$4&$E$3 -> NRCPDPn22N | B17: =$A$1&$A$5&$B$4&$E$3 -> NRCPDPF22N | E17: ≥ 500V & ≤ 22kV | F17: 53.57 | G17: 61.07 | H17: 41.66 | I17: 47.49 | J17: 296.98 | K17: 338.56 | L17: 285.07 | M17: 324.98 | N17: 209.1 | O17: 238.37 | P17: 110.54 | Q17: 126.02 | R17: 9.89 | S17: 11.27
A18: =$A$2&$A$5&$B$5&$E$3 -> NRCPDPn23N | B18: =$A$1&$A$5&$B$5&$E$3 -> NRCPDPF23N | F18: 0 | H18: 0 | J18: 0 | L18: 0 | N18: 0 | P18: 0 | R18: 0
A19: =$A$2&$A$5&$B$6&$E$3 -> NRCPDPn24N | B19: =$A$1&$A$5&$B$6&$E$3 -> NRCPDPF24N | F19: 0 | H19: 0 | J19: 0 | L19: 0 | N19: 0 | P19: 0 | R19: 0
A20: =$A$2&$A$6&$B$3&$E$3 -> NRCPDPn31N | B20: =$A$1&$A$6&$B$3&$E$3 -> NRCPDPF31N | D20: > 900km | E20: < 500V | F20: 54.74 | G20: 62.4 | H20: 42.54 | I20: 48.5 | J20: 298.16 | K20: =ROUND(J20 * (1 + VAT), 2) -> 339.9 | L20: 285.95 | M20: =ROUND(L20 * (1 + VAT), 2) -> 325.98 | N20: 218.37 | O20: 248.94 | P20: 116.14 | Q20: 132.4 | R20: 10.8 | S20: 12.31
A21: =$A$2&$A$6&$B$4&$E$3 -> NRCPDPn32N | B21: =$A$1&$A$6&$B$4&$E$3 -> NRCPDPF32N | E21: ≥ 500V & ≤ 22kV | F21: 54.09 | G21: 61.66 | H21: 42.06 | I21: 47.95 | J21: 297.5 | K21: 339.15 | L21: 285.47 | M21: 325.44 | N21: 211.65 | O21: 241.28 | P21: 112.08 | Q21: 127.77 | R21: 9.91 | S21: 11.3
F22: 0 | H22: 0 | J22: 0 | L22: 0 | N22: 0 | P22: 0 | R22: 0
F23: 0 | H23: 0 | J23: 0 | L23: 0 | N23: 0 | P23: 0 | R23: 0
D26: Customer categories | F26: Service charge [R/account/day]* | H26: Administration charge [R/POD/day]*
A28: =$A$2&$A$3&$B$3&$E$3 -> NRCPDPn01N | G28: VAT incl | I28: VAT incl
A29: =$A$2&$A$3&$B$3&$E$3 -> NRCPDPn01N | D29: ≤ 100 kVA | F29: 14.64 | G29: =ROUND(F29 * (1 + VAT), 2) -> 16.69 | H29: 4.16 | I29: =ROUND(H29 * (1 + VAT), 2) -> 4.74
A30: NRCPDPn01N | D30: > 100 kVA & ≤ 500 kVA | F30: 49.94 | G30: =ROUND(F30 * (1 + VAT), 2) -> 56.93 | H30: 23.15 | I30: =ROUND(H30 * (1 + VAT), 2) -> 26.39 | L30: Ancillary service charge [c/kWh]* | N30: Network demand charge [c/kWh]* [All time of use periods]
A31: NRCPDPn01N | D31: > 500 kVA & ≤ 1 MVA | F31: 153.63 | G31: =ROUND(F31 * (1 + VAT), 2) -> 175.14 | H31: 35.53 | I31: =ROUND(H31 * (1 + VAT), 2) -> 40.5 | K31: Voltage | M31: VAT incl | O31: VAT incl
A32: =$A$2&$A$3&$B$3&$E$3 -> NRCPDPn01N | D32: > 1 MVA | F32: 153.63 | G32: =ROUND(F32 * (1 + VAT), 2) -> 175.14 | H32: 65.93 | I32: =ROUND(H32 * (1 + VAT), 2) -> 75.16 | K32: < 500V | L32: 0.33 | M32: =ROUND(L32 * (1 + VAT), 2) -> 0.38 | N32: 21.19 | O32: =ROUND(N32 * (1 + VAT), 2) -> 24.16
A33: =$A$2&$A$3&$B$4&$E$3 -> NRCPDPn02N | D33: Key customers | F33: 3010.96 | G33: =ROUND(F33 * (1 + VAT), 2) -> 3432.49 | H33: 65.93 | I33: =ROUND(H33 * (1 + VAT), 2) -> 75.16 | K33: ≥ 500V & ≤ 22kV | L33: 0.33 | M33: =ROUND(L33 * (1 + VAT), 2) -> 0.38 | N33: 18.57 | O33: =ROUND(N33 * (1 + VAT), 2) -> 21.17
D35: *These charges are the same as the standard tariff and remain unchanged.

Sheet Env levy (hidden)
B2: Urban
B3: Ave c/kWh | C3: Column Labels
B4: Row Labels | C4: 0 | D4: 1 | E4: 2 | F4: 3 | G4: Grand Total
B5: 1 | C5: 4.244173496 | D5: 3.922922112 | E5: 3.952738211 | F5: 3.99518266 | G5: 4.230325642
B6: 2 | C6: 3.818605965 | D6: 3.856792025 | E6: 3.895359945 | F6: 3.934313544 | G6: 3.830031886
B7: 3 | C7: 3.6978496 | D7: 3.734828096 | E7: 3.772176377 | F7: 3.809898141 | G7: 3.749584404
B8: 4 | C8: 3.485023597 | D8: 3.519873833 | E8: 3.555072571 | F8: 3.632574502 | G8: 3.497836202
B9: Grand Total | C9: 3.768693197 | D9: 3.666474757 | E9: 3.798966039 | F9: 3.84820921 | G9: 3.760612171
B11: Rural pivot(excluding landrate)
B12: Ave c/kWh | C12: Column Labels
B13: Row Labels | C13: 0 | D13: 1 | E13: 2 | F13: 3 | G13: Grand Total
B14: 1 | C14: 0 | D14: 0 | E14: 0 | F14: 0 | G14: 0
B15: 2 | C15: 0 | D15: 0 | E15: 0 | F15: 0 | G15: 0
B16: Grand Total | C16: 0 | D16: 0 | E16: 0 | F16: 0 | G16: 0
B18: Landrate
B19: Ave c/kWh | C19: Column Labels
B20: Row Labels | C20: 0 | D20: Grand Total
B21: 1 | C21: 0 | D21: 0
B22: Grand Total | C22: 0 | D22: 0
